Body Name,Body,Service Area Categorisation,Service Division Categorisation,Responsible Unit,Expenses Type,Detailed Expenses Type,Payment Date,Transaction Number,Payment Amount,Supplier Type,Supplier Name,Supplier Id
Portsmouth City Council,PCC,Highways and Transport Services,Parking Services,Regeneration,Third Party Payments,Private contractors,20/05/2020,6365886,105,VENDOR,BOARHUNT GROUP LTD,103726
Portsmouth City Council,PCC,Highways and Transport Services,Parking Services,Regeneration,Premises-Related Expenditure,Rents,20/05/2020,6365886,1600,VENDOR,BOARHUNT GROUP LTD,103726
Portsmouth City Council,PCC,Other,Suspense and Capital Schemes,Capital - Education,Capital Charges,REFCUS,29/05/2020,6367563,6984,VENDOR,SOLENT ACADEMIES TRUST,138071
Portsmouth City Council,PCC,Children's and Education Services,Special Schools,Children's Services and Education,Third Party Payments,Other establishments,14/05/2020,6365253,26224,VENDOR,ST EDWARDS SCHOOL,101262
Portsmouth City Council,PCC,Children's and Education Services,Special Schools,Children's Services and Education,Third Party Payments,Other establishments,14/05/2020,6365253,26634.5,VENDOR,ST EDWARDS SCHOOL,101262
Portsmouth City Council,PCC,Children's and Education Services,Special Schools,Children's Services and Education,Third Party Payments,Other establishments,14/05/2020,6365253,27798,VENDOR,ST EDWARDS SCHOOL,101262
Portsmouth City Council,PCC,Children's and Education Services,Special Schools,Children's Services and Education,Third Party Payments,Other establishments,14/05/2020,6365253,24241,VENDOR,ST EDWARDS SCHOOL,101262
Portsmouth City Council,PCC,Children's and Education Services,Special Schools,Children's Services and Education,Third Party Payments,Other establishments,14/05/2020,6365253,20434.5,VENDOR,ST EDWARDS SCHOOL,101262
Portsmouth City Council,PCC,Corporate and Democratic Core,Corporate Management,Corporate Services,Supplies and Services,Miscellaneous expenses,28/05/2020,6367384,1500,VENDOR,GLOBAL OUTDOOR MEDIA LIMITED,101462
Portsmouth City Council,PCC,Children's and Education Services,Children Looked After,Children's Services and Education,Third Party Payments,Other establishments,01/05/2020,6362791,4875.72,VENDOR,KEYS PCE LIMITED,137236
Portsmouth City Council,PCC,Children's and Education Services,Children Looked After,Children's Services and Education,Third Party Payments,Other establishments,01/05/2020,6362791,18374.28,VENDOR,KEYS PCE LIMITED,137236
Portsmouth City Council,PCC,Children's and Education Services,Special Schools,Children's Services and Education,Third Party Payments,Other establishments,20/05/2020,6366067,4620,VENDOR,KEYS PCE LIMITED,137236
Portsmouth City Council,PCC,Cultural and Related Services,Allocation of Management & Admin,Corporate Services,Supplies and Services,"Printing, stationery and general office expenses",01/05/2020,6362806,8495.16,VENDOR,PRODUCT DEVELOPMENT CORPORATION,134173
Portsmouth City Council,PCC,Children's and Education Services,Children Looked After,Children's Services and Education,Third Party Payments,Other establishments,27/05/2020,6367044,5136.43,VENDOR,KEYS PCE LIMITED,137236
Portsmouth City Council,PCC,Children's and Education Services,Children Looked After,Children's Services and Education,Third Party Payments,Other establishments,27/05/2020,6367044,17692.14,VENDOR,KEYS PCE LIMITED,137236
Portsmouth City Council,PCC,Planning Services,Business support,Regeneration,Supplies and Services,Communications and computing,12/05/2020,6364540,738.5,VENDOR,TECHNOLOGY WITHIN LIMITED,143958
Portsmouth City Council,PCC,Planning Services,Business support,Regeneration,Supplies and Services,Communications and computing,12/05/2020,6364540,26.38,VENDOR,TECHNOLOGY WITHIN LIMITED,143958
Portsmouth City Council,PCC,Highways and Transport Services,Parking Services,Regeneration,Third Party Payments,Private contractors,14/05/2020,6365228,230,VENDOR,ITSO LTD,136293
Portsmouth City Council,PCC,Highways and Transport Services,Parking Services,Regeneration,Third Party Payments,Private contractors,14/05/2020,6365228,320,VENDOR,ITSO LTD,136293
Portsmouth City Council,PCC,Highways and Transport Services,Parking Services,Regeneration,Third Party Payments,Private contractors,14/05/2020,6365228,1120,VENDOR,ITSO LTD,136293
Portsmouth City Council,PCC,Adult Social Care,Assistive Equipment & Technology,"Housing, Neighbourhood and Building Services",Supplies and Services,"Equipment, furniture and materials",21/05/2020,6366464,91.4,VENDOR,TYNETEC B/U OF LEGRAND ELECTRIC LTD,140439
Portsmouth City Council,PCC,Adult Social Care,Assistive Equipment & Technology,"Housing, Neighbourhood and Building Services",Supplies and Services,"Equipment, furniture and materials",21/05/2020,6366464,37.5,VENDOR,TYNETEC B/U OF LEGRAND ELECTRIC LTD,140439
Portsmouth City Council,PCC,Adult Social Care,Assistive Equipment & Technology,"Housing, Neighbourhood and Building Services",Supplies and Services,"Equipment, furniture and materials",21/05/2020,6366464,1434.8,VENDOR,TYNETEC B/U OF LEGRAND ELECTRIC LTD,140439
Portsmouth City Council,PCC,Corporate and Democratic Core,Corporate Management,Corporate Services,Supplies and Services,Miscellaneous expenses,18/05/2020,6365544,620,VENDOR,PRIMESIGHT LIMITED,130399
Portsmouth City Council,PCC,Other,Suspense and Capital Schemes,Capital - Traffic & Transportation,Capital Charges,Capital Expenditure (WIP),27/05/2020,6367018,1090,VENDOR,HYPERION INFRASTRUCTURE CONSULTANCY,144798
Portsmouth City Council,PCC,Adult Social Care,Social Care Activities,Adult Services,Third Party Payments,Other establishments,27/05/2020,6366916,387.15,VENDOR,CRESCENT COMMUNITY CARE SERVICES LTD,100118
Portsmouth City Council,PCC,Adult Social Care,Social Care Activities,Adult Services,Third Party Payments,Other establishments,27/05/2020,6366916,91.35,VENDOR,CRESCENT COMMUNITY CARE SERVICES LTD,100118
Portsmouth City Council,PCC,Adult Social Care,Social Care Activities,Adult Services,Third Party Payments,Other establishments,27/05/2020,6366916,252.3,VENDOR,CRESCENT COMMUNITY CARE SERVICES LTD,100118
Portsmouth City Council,PCC,Adult Social Care,Social Care Activities,Adult Services,Third Party Payments,Other establishments,27/05/2020,6366916,343.65,VENDOR,CRESCENT COMMUNITY CARE SERVICES LTD,100118
Portsmouth City Council,PCC,Adult Social Care,Social Care Activities,Adult Services,Third Party Payments,Other establishments,27/05/2020,6366916,939.6,VENDOR,CRESCENT COMMUNITY CARE SERVICES LTD,100118
Portsmouth City Council,PCC,Adult Social Care,Social Care Activities,Adult Services,Third Party Payments,Other establishments,27/05/2020,6366916,174,VENDOR,CRESCENT COMMUNITY CARE SERVICES LTD,100118
Portsmouth City Council,PCC,Adult Social Care,Social Care Activities,Adult Services,Third Party Payments,Other establishments,27/05/2020,6366916,648.15,VENDOR,CRESCENT COMMUNITY CARE SERVICES LTD,100118
Portsmouth City Council,PCC,Adult Social Care,Social Care Activities,Adult Services,Third Party Payments,Other establishments,27/05/2020,6366916,648.15,VENDOR,CRESCENT COMMUNITY CARE SERVICES LTD,100118
Portsmouth City Council,PCC,Adult Social Care,Social Care Activities,Adult Services,Third Party Payments,Other establishments,27/05/2020,6366916,69.6,VENDOR,CRESCENT COMMUNITY CARE SERVICES LTD,100118
Portsmouth City Council,PCC,Adult Social Care,Social Care Activities,Adult Services,Third Party Payments,Other establishments,27/05/2020,6366916,1078.8,VENDOR,CRESCENT COMMUNITY CARE SERVICES LTD,100118
Portsmouth City Council,PCC,Adult Social Care,Social Care Activities,Adult Services,Third Party Payments,Other establishments,27/05/2020,6366916,361.05,VENDOR,CRESCENT COMMUNITY CARE SERVICES LTD,100118
Portsmouth City Council,PCC,Adult Social Care,Social Care Activities,Adult Services,Third Party Payments,Other establishments,27/05/2020,6366916,243.6,VENDOR,CRESCENT COMMUNITY CARE SERVICES LTD,100118
Portsmouth City Council,PCC,Adult Social Care,Social Care Activities,Adult Services,Third Party Payments,Other establishments,27/05/2020,6366916,126.15,VENDOR,CRESCENT COMMUNITY CARE SERVICES LTD,100118
Portsmouth City Council,PCC,Adult Social Care,Social Care Activities,Adult Services,Third Party Payments,Other establishments,27/05/2020,6366916,156.6,VENDOR,CRESCENT COMMUNITY CARE SERVICES LTD,100118
Portsmouth City Council,PCC,Adult Social Care,Social Care Activities,Adult Services,Third Party Payments,Other establishments,27/05/2020,6366916,121.8,VENDOR,CRESCENT COMMUNITY CARE SERVICES LTD,100118
Portsmouth City Council,PCC,Adult Social Care,Social Care Activities,Adult Services,Third Party Payments,Other establishments,27/05/2020,6366916,609,VENDOR,CRESCENT COMMUNITY CARE SERVICES LTD,100118
Portsmouth City Council,PCC,Adult Social Care,Social Care Activities,Adult Services,Third Party Payments,Other establishments,27/05/2020,6366916,52.2,VENDOR,CRESCENT COMMUNITY CARE SERVICES LTD,100118
Portsmouth City Council,PCC,Adult Social Care,Social Care Activities,Adult Services,Third Party Payments,Other establishments,27/05/2020,6366916,243.6,VENDOR,CRESCENT COMMUNITY CARE SERVICES LTD,100118
Portsmouth City Council,PCC,Adult Social Care,Social Care Activities,Adult Services,Third Party Payments,Other establishments,27/05/2020,6366916,609,VENDOR,CRESCENT COMMUNITY CARE SERVICES LTD,100118
Portsmouth City Council,PCC,Adult Social Care,Social Care Activities,Adult Services,Third Party Payments,Other establishments,27/05/2020,6366916,34.8,VENDOR,CRESCENT COMMUNITY CARE SERVICES LTD,100118
Portsmouth City Council,PCC,Adult Social Care,Social Care Activities,Adult Services,Third Party Payments,Other establishments,27/05/2020,6366916,87,VENDOR,CRESCENT COMMUNITY CARE SERVICES LTD,100118
Portsmouth City Council,PCC,Adult Social Care,Social Care Activities,Adult Services,Third Party Payments,Other establishments,27/05/2020,6366916,121.8,VENDOR,CRESCENT COMMUNITY CARE SERVICES LTD,100118
Portsmouth City Council,PCC,Adult Social Care,Social Care Activities,Adult Services,Third Party Payments,Other establishments,27/05/2020,6366916,469.8,VENDOR,CRESCENT COMMUNITY CARE SERVICES LTD,100118
Portsmouth City Council,PCC,Adult Social Care,Social Care Activities,Adult Services,Third Party Payments,Other establishments,27/05/2020,6366916,487.2,VENDOR,CRESCENT COMMUNITY CARE SERVICES LTD,100118
Portsmouth City Council,PCC,Adult Social Care,Social Care Activities,Adult Services,Third Party Payments,Other establishments,27/05/2020,6366916,87,VENDOR,CRESCENT COMMUNITY CARE SERVICES LTD,100118
Portsmouth City Council,PCC,Adult Social Care,Social Care Activities,Adult Services,Third Party Payments,Other establishments,27/05/2020,6366916,287.1,VENDOR,CRESCENT COMMUNITY CARE SERVICES LTD,100118
Portsmouth City Council,PCC,Adult Social Care,Social Care Activities,Adult Services,Third Party Payments,Other establishments,27/05/2020,6366916,769.95,VENDOR,CRESCENT COMMUNITY CARE SERVICES LTD,100118
Portsmouth City Council,PCC,Adult Social Care,Social Care Activities,Adult Services,Third Party Payments,Other establishments,27/05/2020,6366916,243.6,VENDOR,CRESCENT COMMUNITY CARE SERVICES LTD,100118
Portsmouth City Council,PCC,Adult Social Care,Social Care Activities,Adult Services,Third Party Payments,Other establishments,27/05/2020,6366916,1096.2,VENDOR,CRESCENT COMMUNITY CARE SERVICES LTD,100118
Portsmouth City Council,PCC,Adult Social Care,Social Care Activities,Adult Services,Third Party Payments,Other establishments,27/05/2020,6366916,1096.2,VENDOR,CRESCENT COMMUNITY CARE SERVICES LTD,100118
Portsmouth City Council,PCC,Adult Social Care,Social Care Activities,Adult Services,Third Party Payments,Other establishments,27/05/2020,6366916,356.7,VENDOR,CRESCENT COMMUNITY CARE SERVICES LTD,100118
Portsmouth City Council,PCC,Adult Social Care,Social Care Activities,Adult Services,Third Party Payments,Other establishments,27/05/2020,6366916,413.25,VENDOR,CRESCENT COMMUNITY CARE SERVICES LTD,100118
Portsmouth City Council,PCC,Adult Social Care,Social Care Activities,Adult Services,Third Party Payments,Other establishments,27/05/2020,6366916,8.7,VENDOR,CRESCENT COMMUNITY CARE SERVICES LTD,100118
Portsmouth City Council,PCC,Adult Social Care,Social Care Activities,Adult Services,Third Party Payments,Other establishments,27/05/2020,6366916,17.4,VENDOR,CRESCENT COMMUNITY CARE SERVICES LTD,100118
Portsmouth City Council,PCC,Adult Social Care,Social Care Activities,Adult Services,Third Party Payments,Other establishments,27/05/2020,6366916,121.8,VENDOR,CRESCENT COMMUNITY CARE SERVICES LTD,100118
Portsmouth City Council,PCC,Adult Social Care,Social Care Activities,Adult Services,Third Party Payments,Other establishments,27/05/2020,6366916,243.6,VENDOR,CRESCENT COMMUNITY CARE SERVICES LTD,100118
Portsmouth City Council,PCC,Adult Social Care,Social Care Activities,Adult Services,Third Party Payments,Other establishments,27/05/2020,6366916,52.2,VENDOR,CRESCENT COMMUNITY CARE SERVICES LTD,100118
Portsmouth City Council,PCC,Adult Social Care,Social Care Activities,Adult Services,Third Party Payments,Other establishments,27/05/2020,6366916,617.7,VENDOR,CRESCENT COMMUNITY CARE SERVICES LTD,100118
Portsmouth City Council,PCC,Adult Social Care,Mental Health Support Older People (65 - 74),Adult Services,Third Party Payments,Other establishments,27/05/2020,6366916,556.8,VENDOR,CRESCENT COMMUNITY CARE SERVICES LTD,100118
Portsmouth City Council,PCC,Adult Social Care,Mental Health Support Older People (65 - 74),Adult Services,Third Party Payments,Other establishments,27/05/2020,6366916,330.6,VENDOR,CRESCENT COMMUNITY CARE SERVICES LTD,100118
Portsmouth City Council,PCC,Adult Social Care,Mental Health Support Older People (65 - 74),Adult Services,Third Party Payments,Other establishments,27/05/2020,6366916,174,VENDOR,CRESCENT COMMUNITY CARE SERVICES LTD,100118
Portsmouth City Council,PCC,Adult Social Care,Mental Health Support Older People (65 - 74),Adult Services,Third Party Payments,Other establishments,27/05/2020,6366916,313.2,VENDOR,CRESCENT COMMUNITY CARE SERVICES LTD,100118
Portsmouth City Council,PCC,Adult Social Care,Mental Health Support Older People (65 - 74),Adult Services,Third Party Payments,Other establishments,27/05/2020,6366916,69.6,VENDOR,CRESCENT COMMUNITY CARE SERVICES LTD,100118
Portsmouth City Council,PCC,Adult Social Care,Social Care Activities,Adult Services,Third Party Payments,Other establishments,27/05/2020,6366916,243.6,VENDOR,CRESCENT COMMUNITY CARE SERVICES LTD,100118
Portsmouth City Council,PCC,Adult Social Care,Social Care Activities,Adult Services,Third Party Payments,Other establishments,27/05/2020,6366916,870,VENDOR,CRESCENT COMMUNITY CARE SERVICES LTD,100118
Portsmouth City Council,PCC,Adult Social Care,Social Care Activities,Adult Services,Third Party Payments,Other establishments,27/05/2020,6366916,321.64,VENDOR,CRESCENT COMMUNITY CARE SERVICES LTD,100118
Portsmouth City Council,PCC,Adult Social Care,Social Care Activities,Adult Services,Third Party Payments,Other establishments,27/05/2020,6366916,-50.64,VENDOR,CRESCENT COMMUNITY CARE SERVICES LTD,100118
Portsmouth City Council,PCC,Adult Social Care,Social Care Activities,Adult Services,Third Party Payments,Other establishments,27/05/2020,6366916,5829,VENDOR,CRESCENT COMMUNITY CARE SERVICES LTD,100118
Portsmouth City Council,PCC,Adult Social Care,Social Care Activities,Adult Services,Third Party Payments,Other establishments,27/05/2020,6366916,4384.8,VENDOR,CRESCENT COMMUNITY CARE SERVICES LTD,100118
Portsmouth City Council,PCC,Adult Social Care,Physical Support Adults (18 - 64),Adult Services,Third Party Payments,Other establishments,27/05/2020,6366916,243.6,VENDOR,CRESCENT COMMUNITY CARE SERVICES LTD,100118
Portsmouth City Council,PCC,Adult Social Care,Physical Support Adults (18 - 64),Adult Services,Third Party Payments,Other establishments,27/05/2020,6366916,104.4,VENDOR,CRESCENT COMMUNITY CARE SERVICES LTD,100118
Portsmouth City Council,PCC,Adult Social Care,Physical Support Adults (18 - 64),Adult Services,Third Party Payments,Other establishments,27/05/2020,6366916,139.2,VENDOR,CRESCENT COMMUNITY CARE SERVICES LTD,100118
Portsmouth City Council,PCC,Adult Social Care,Physical Support Adults (18 - 64),Adult Services,Third Party Payments,Other establishments,27/05/2020,6366916,-118.16,VENDOR,CRESCENT COMMUNITY CARE SERVICES LTD,100118
Portsmouth City Council,PCC,Adult Social Care,Physical Support Adults (18 - 64),Adult Services,Third Party Payments,Other establishments,27/05/2020,6366916,-118.16,VENDOR,CRESCENT COMMUNITY CARE SERVICES LTD,100118
Portsmouth City Council,PCC,Adult Social Care,Physical Support Adults (18 - 64),Adult Services,Third Party Payments,Other establishments,27/05/2020,6366916,487.2,VENDOR,CRESCENT COMMUNITY CARE SERVICES LTD,100118
Portsmouth City Council,PCC,Adult Social Care,Physical Support Adults (18 - 64),Adult Services,Third Party Payments,Other establishments,27/05/2020,6366916,487.2,VENDOR,CRESCENT COMMUNITY CARE SERVICES LTD,100118
Portsmouth City Council,PCC,Adult Social Care,Physical Support Adults (18 - 64),Adult Services,Third Party Payments,Other establishments,27/05/2020,6366916,1096.2,VENDOR,CRESCENT COMMUNITY CARE SERVICES LTD,100118
Portsmouth City Council,PCC,Adult Social Care,Physical Support Adults (18 - 64),Adult Services,Third Party Payments,Other establishments,27/05/2020,6366916,1096.2,VENDOR,CRESCENT COMMUNITY CARE SERVICES LTD,100118
Portsmouth City Council,PCC,Adult Social Care,Physical Support Adults (18 - 64),Adult Services,Third Party Payments,Other establishments,27/05/2020,6366916,278.4,VENDOR,CRESCENT COMMUNITY CARE SERVICES LTD,100118
Portsmouth City Council,PCC,Adult Social Care,Physical Support Adults (18 - 64),Adult Services,Third Party Payments,Other establishments,27/05/2020,6366916,1270.2,VENDOR,CRESCENT COMMUNITY CARE SERVICES LTD,100118
Portsmouth City Council,PCC,Adult Social Care,Physical Support Adults (18 - 64),Adult Services,Third Party Payments,Other establishments,27/05/2020,6366916,1583.4,VENDOR,CRESCENT COMMUNITY CARE SERVICES LTD,100118
Portsmouth City Council,PCC,Adult Social Care,Physical Support Adults (18 - 64),Adult Services,Third Party Payments,Other establishments,27/05/2020,6366916,696,VENDOR,CRESCENT COMMUNITY CARE SERVICES LTD,100118
Portsmouth City Council,PCC,Adult Social Care,Physical Support Adults (18 - 64),Adult Services,Third Party Payments,Other establishments,27/05/2020,6366916,696,VENDOR,CRESCENT COMMUNITY CARE SERVICES LTD,100118
Portsmouth City Council,PCC,Adult Social Care,Physical Support Adults (18 - 64),Adult Services,Third Party Payments,Other establishments,27/05/2020,6366916,374.1,VENDOR,CRESCENT COMMUNITY CARE SERVICES LTD,100118
Portsmouth City Council,PCC,Adult Social Care,Physical Support Adults (18 - 64),Adult Services,Third Party Payments,Other establishments,27/05/2020,6366916,365.4,VENDOR,CRESCENT COMMUNITY CARE SERVICES LTD,100118
Portsmouth City Council,PCC,Adult Social Care,Physical Support Adults (18 - 64),Adult Services,Third Party Payments,Other establishments,27/05/2020,6366916,843.9,VENDOR,CRESCENT COMMUNITY CARE SERVICES LTD,100118
Portsmouth City Council,PCC,Adult Social Care,Physical Support Older People (85+),Adult Services,Third Party Payments,Other establishments,27/05/2020,6366916,487.2,VENDOR,CRESCENT COMMUNITY CARE SERVICES LTD,100118
Portsmouth City Council,PCC,Adult Social Care,Physical Support Older People (85+),Adult Services,Third Party Payments,Other establishments,27/05/2020,6366916,769.95,VENDOR,CRESCENT COMMUNITY CARE SERVICES LTD,100118
Portsmouth City Council,PCC,Adult Social Care,Physical Support Older People (85+),Adult Services,Third Party Payments,Other establishments,27/05/2020,6366916,104.4,VENDOR,CRESCENT COMMUNITY CARE SERVICES LTD,100118
Portsmouth City Council,PCC,Adult Social Care,Physical Support Older People (85+),Adult Services,Third Party Payments,Other establishments,27/05/2020,6366916,504.6,VENDOR,CRESCENT COMMUNITY CARE SERVICES LTD,100118
Portsmouth City Council,PCC,Adult Social Care,Physical Support Older People (85+),Adult Services,Third Party Payments,Other establishments,27/05/2020,6366916,539.4,VENDOR,CRESCENT COMMUNITY CARE SERVICES LTD,100118
Portsmouth City Council,PCC,Adult Social Care,Physical Support Older People (85+),Adult Services,Third Party Payments,Other establishments,27/05/2020,6366916,78.3,VENDOR,CRESCENT COMMUNITY CARE SERVICES LTD,100118
Portsmouth City Council,PCC,Adult Social Care,Physical Support Older People (85+),Adult Services,Third Party Payments,Other establishments,27/05/2020,6366916,1165.8,VENDOR,CRESCENT COMMUNITY CARE SERVICES LTD,100118
Portsmouth City Council,PCC,Adult Social Care,Physical Support Older People (85+),Adult Services,Third Party Payments,Other establishments,27/05/2020,6366916,365.4,VENDOR,CRESCENT COMMUNITY CARE SERVICES LTD,100118
Portsmouth City Council,PCC,Adult Social Care,Physical Support Older People (85+),Adult Services,Third Party Payments,Other establishments,27/05/2020,6366916,69.6,VENDOR,CRESCENT COMMUNITY CARE SERVICES LTD,100118
Portsmouth City Council,PCC,Adult Social Care,Physical Support Older People (85+),Adult Services,Third Party Payments,Other establishments,27/05/2020,6366916,243.6,VENDOR,CRESCENT COMMUNITY CARE SERVICES LTD,100118
Portsmouth City Council,PCC,Adult Social Care,Physical Support Older People (85+),Adult Services,Third Party Payments,Other establishments,27/05/2020,6366916,1339.8,VENDOR,CRESCENT COMMUNITY CARE SERVICES LTD,100118
Portsmouth City Council,PCC,Adult Social Care,Physical Support Older People (85+),Adult Services,Third Party Payments,Other establishments,27/05/2020,6366916,243.6,VENDOR,CRESCENT COMMUNITY CARE SERVICES LTD,100118
Portsmouth City Council,PCC,Adult Social Care,Physical Support Older People (85+),Adult Services,Third Party Payments,Other establishments,27/05/2020,6366916,487.2,VENDOR,CRESCENT COMMUNITY CARE SERVICES LTD,100118
Portsmouth City Council,PCC,Adult Social Care,Physical Support Older People (85+),Adult Services,Third Party Payments,Other establishments,27/05/2020,6366916,234.9,VENDOR,CRESCENT COMMUNITY CARE SERVICES LTD,100118
Portsmouth City Council,PCC,Adult Social Care,Physical Support Older People (85+),Adult Services,Third Party Payments,Other establishments,27/05/2020,6366916,609,VENDOR,CRESCENT COMMUNITY CARE SERVICES LTD,100118
Portsmouth City Council,PCC,Adult Social Care,Physical Support Older People (85+),Adult Services,Third Party Payments,Other establishments,27/05/2020,6366916,139.2,VENDOR,CRESCENT COMMUNITY CARE SERVICES LTD,100118
Portsmouth City Council,PCC,Adult Social Care,Physical Support Older People (85+),Adult Services,Third Party Payments,Other establishments,27/05/2020,6366916,243.6,VENDOR,CRESCENT COMMUNITY CARE SERVICES LTD,100118
Portsmouth City Council,PCC,Adult Social Care,Physical Support Older People (85+),Adult Services,Third Party Payments,Other establishments,27/05/2020,6366916,417.6,VENDOR,CRESCENT COMMUNITY CARE SERVICES LTD,100118
Portsmouth City Council,PCC,Adult Social Care,Physical Support Older People (85+),Adult Services,Third Party Payments,Other establishments,27/05/2020,6366916,378.45,VENDOR,CRESCENT COMMUNITY CARE SERVICES LTD,100118
Portsmouth City Council,PCC,Adult Social Care,Physical Support Older People (85+),Adult Services,Third Party Payments,Other establishments,27/05/2020,6366916,461.1,VENDOR,CRESCENT COMMUNITY CARE SERVICES LTD,100118
Portsmouth City Council,PCC,Adult Social Care,Physical Support Older People (85+),Adult Services,Third Party Payments,Other establishments,27/05/2020,6366916,461.1,VENDOR,CRESCENT COMMUNITY CARE SERVICES LTD,100118
Portsmouth City Council,PCC,Adult Social Care,Physical Support Older People (85+),Adult Services,Third Party Payments,Other establishments,27/05/2020,6366916,278.4,VENDOR,CRESCENT COMMUNITY CARE SERVICES LTD,100118
Portsmouth City Council,PCC,Adult Social Care,Physical Support Older People (85+),Adult Services,Third Party Payments,Other establishments,27/05/2020,6366916,870,VENDOR,CRESCENT COMMUNITY CARE SERVICES LTD,100118
Portsmouth City Council,PCC,Adult Social Care,Physical Support Older People (85+),Adult Services,Third Party Payments,Other establishments,27/05/2020,6366916,139.2,VENDOR,CRESCENT COMMUNITY CARE SERVICES LTD,100118
Portsmouth City Council,PCC,Adult Social Care,Physical Support Older People (85+),Adult Services,Third Party Payments,Other establishments,27/05/2020,6366916,491.55,VENDOR,CRESCENT COMMUNITY CARE SERVICES LTD,100118
Portsmouth City Council,PCC,Adult Social Care,Physical Support Older People (85+),Adult Services,Third Party Payments,Other establishments,27/05/2020,6366916,487.2,VENDOR,CRESCENT COMMUNITY CARE SERVICES LTD,100118
Portsmouth City Council,PCC,Adult Social Care,Physical Support Older People (85+),Adult Services,Third Party Payments,Other establishments,27/05/2020,6366916,991.8,VENDOR,CRESCENT COMMUNITY CARE SERVICES LTD,100118
Portsmouth City Council,PCC,Adult Social Care,Physical Support Older People (85+),Adult Services,Third Party Payments,Other establishments,27/05/2020,6366916,991.8,VENDOR,CRESCENT COMMUNITY CARE SERVICES LTD,100118
Portsmouth City Council,PCC,Adult Social Care,Physical Support Older People (85+),Adult Services,Third Party Payments,Other establishments,27/05/2020,6366916,261,VENDOR,CRESCENT COMMUNITY CARE SERVICES LTD,100118
Portsmouth City Council,PCC,Adult Social Care,Physical Support Older People (85+),Adult Services,Third Party Payments,Other establishments,27/05/2020,6366916,974.4,VENDOR,CRESCENT COMMUNITY CARE SERVICES LTD,100118
Portsmouth City Council,PCC,Adult Social Care,Physical Support Older People (85+),Adult Services,Third Party Payments,Other establishments,27/05/2020,6366916,365.4,VENDOR,CRESCENT COMMUNITY CARE SERVICES LTD,100118
Portsmouth City Council,PCC,Adult Social Care,Physical Support Older People (85+),Adult Services,Third Party Payments,Other establishments,27/05/2020,6366916,730.8,VENDOR,CRESCENT COMMUNITY CARE SERVICES LTD,100118
Portsmouth City Council,PCC,Adult Social Care,Physical Support Older People (85+),Adult Services,Third Party Payments,Other establishments,27/05/2020,6366916,104.4,VENDOR,CRESCENT COMMUNITY CARE SERVICES LTD,100118
Portsmouth City Council,PCC,Adult Social Care,Physical Support Older People (85+),Adult Services,Third Party Payments,Other establishments,27/05/2020,6366916,104.4,VENDOR,CRESCENT COMMUNITY CARE SERVICES LTD,100118
Portsmouth City Council,PCC,Adult Social Care,Physical Support Older People (85+),Adult Services,Third Party Payments,Other establishments,27/05/2020,6366916,1096.2,VENDOR,CRESCENT COMMUNITY CARE SERVICES LTD,100118
Portsmouth City Council,PCC,Adult Social Care,Physical Support Older People (85+),Adult Services,Third Party Payments,Other establishments,27/05/2020,6366916,1096.2,VENDOR,CRESCENT COMMUNITY CARE SERVICES LTD,100118
Portsmouth City Council,PCC,Adult Social Care,Physical Support Older People (85+),Adult Services,Third Party Payments,Other establishments,27/05/2020,6366916,104.4,VENDOR,CRESCENT COMMUNITY CARE SERVICES LTD,100118
Portsmouth City Council,PCC,Adult Social Care,Physical Support Older People (85+),Adult Services,Third Party Payments,Other establishments,27/05/2020,6366916,852.6,VENDOR,CRESCENT COMMUNITY CARE SERVICES LTD,100118
Portsmouth City Council,PCC,Adult Social Care,Physical Support Older People (85+),Adult Services,Third Party Payments,Other establishments,27/05/2020,6366916,174,VENDOR,CRESCENT COMMUNITY CARE SERVICES LTD,100118
Portsmouth City Council,PCC,Adult Social Care,Physical Support Older People (85+),Adult Services,Third Party Payments,Other establishments,27/05/2020,6366916,417.6,VENDOR,CRESCENT COMMUNITY CARE SERVICES LTD,100118
Portsmouth City Council,PCC,Adult Social Care,Physical Support Older People (85+),Adult Services,Third Party Payments,Other establishments,27/05/2020,6366916,365.4,VENDOR,CRESCENT COMMUNITY CARE SERVICES LTD,100118
Portsmouth City Council,PCC,Adult Social Care,Physical Support Older People (85+),Adult Services,Third Party Payments,Other establishments,27/05/2020,6366916,626.4,VENDOR,CRESCENT COMMUNITY CARE SERVICES LTD,100118
Portsmouth City Council,PCC,Adult Social Care,Physical Support Older People (85+),Adult Services,Third Party Payments,Other establishments,27/05/2020,6366916,59.84,VENDOR,CRESCENT COMMUNITY CARE SERVICES LTD,100118
Portsmouth City Council,PCC,Adult Social Care,Physical Support Older People (85+),Adult Services,Third Party Payments,Other establishments,27/05/2020,6366916,487.2,VENDOR,CRESCENT COMMUNITY CARE SERVICES LTD,100118
Portsmouth City Council,PCC,Adult Social Care,Physical Support Older People (85+),Adult Services,Third Party Payments,Other establishments,27/05/2020,6366916,1087.5,VENDOR,CRESCENT COMMUNITY CARE SERVICES LTD,100118
Portsmouth City Council,PCC,Adult Social Care,Physical Support Older People (85+),Adult Services,Third Party Payments,Other establishments,27/05/2020,6366916,243.6,VENDOR,CRESCENT COMMUNITY CARE SERVICES LTD,100118
Portsmouth City Council,PCC,Adult Social Care,Physical Support Older People (85+),Adult Services,Third Party Payments,Other establishments,27/05/2020,6366916,243.6,VENDOR,CRESCENT COMMUNITY CARE SERVICES LTD,100118
Portsmouth City Council,PCC,Adult Social Care,Physical Support Older People (85+),Adult Services,Third Party Payments,Other establishments,27/05/2020,6366916,443.7,VENDOR,CRESCENT COMMUNITY CARE SERVICES LTD,100118
Portsmouth City Council,PCC,Adult Social Care,Physical Support Older People (85+),Adult Services,Third Party Payments,Other establishments,27/05/2020,6366916,130.5,VENDOR,CRESCENT COMMUNITY CARE SERVICES LTD,100118
Portsmouth City Council,PCC,Adult Social Care,Physical Support Older People (85+),Adult Services,Third Party Payments,Other establishments,27/05/2020,6366916,243.6,VENDOR,CRESCENT COMMUNITY CARE SERVICES LTD,100118
Portsmouth City Council,PCC,Adult Social Care,Physical Support Older People (85+),Adult Services,Third Party Payments,Other establishments,27/05/2020,6366916,922.2,VENDOR,CRESCENT COMMUNITY CARE SERVICES LTD,100118
Portsmouth City Council,PCC,Adult Social Care,Physical Support Older People (85+),Adult Services,Third Party Payments,Other establishments,27/05/2020,6366916,174,VENDOR,CRESCENT COMMUNITY CARE SERVICES LTD,100118
Portsmouth City Council,PCC,Adult Social Care,Physical Support Older People (85+),Adult Services,Third Party Payments,Other establishments,27/05/2020,6366916,400.2,VENDOR,CRESCENT COMMUNITY CARE SERVICES LTD,100118
Portsmouth City Council,PCC,Adult Social Care,Physical Support Older People (85+),Adult Services,Third Party Payments,Other establishments,27/05/2020,6366916,696,VENDOR,CRESCENT COMMUNITY CARE SERVICES LTD,100118
Portsmouth City Council,PCC,Adult Social Care,Physical Support Older People (85+),Adult Services,Third Party Payments,Other establishments,27/05/2020,6366916,121.8,VENDOR,CRESCENT COMMUNITY CARE SERVICES LTD,100118
Portsmouth City Council,PCC,Adult Social Care,Physical Support Older People (85+),Adult Services,Third Party Payments,Other establishments,27/05/2020,6366916,104.4,VENDOR,CRESCENT COMMUNITY CARE SERVICES LTD,100118
Portsmouth City Council,PCC,Adult Social Care,Physical Support Older People (85+),Adult Services,Third Party Payments,Other establishments,27/05/2020,6366916,243.6,VENDOR,CRESCENT COMMUNITY CARE SERVICES LTD,100118
Portsmouth City Council,PCC,Adult Social Care,Physical Support Older People (85+),Adult Services,Third Party Payments,Other establishments,27/05/2020,6366916,130.5,VENDOR,CRESCENT COMMUNITY CARE SERVICES LTD,100118
Portsmouth City Council,PCC,Adult Social Care,Physical Support Older People (85+),Adult Services,Third Party Payments,Other establishments,27/05/2020,6366916,456.75,VENDOR,CRESCENT COMMUNITY CARE SERVICES LTD,100118
Portsmouth City Council,PCC,Adult Social Care,Physical Support Older People (85+),Adult Services,Third Party Payments,Other establishments,27/05/2020,6366916,730.8,VENDOR,CRESCENT COMMUNITY CARE SERVICES LTD,100118
Portsmouth City Council,PCC,Adult Social Care,Physical Support Older People (85+),Adult Services,Third Party Payments,Other establishments,27/05/2020,6366916,243.6,VENDOR,CRESCENT COMMUNITY CARE SERVICES LTD,100118
Portsmouth City Council,PCC,Adult Social Care,Physical Support Older People (85+),Adult Services,Third Party Payments,Other establishments,27/05/2020,6366916,243.6,VENDOR,CRESCENT COMMUNITY CARE SERVICES LTD,100118
Portsmouth City Council,PCC,Adult Social Care,Physical Support Older People (85+),Adult Services,Third Party Payments,Other establishments,27/05/2020,6366916,609,VENDOR,CRESCENT COMMUNITY CARE SERVICES LTD,100118
Portsmouth City Council,PCC,Adult Social Care,Physical Support Older People (85+),Adult Services,Third Party Payments,Other establishments,27/05/2020,6366916,452.4,VENDOR,CRESCENT COMMUNITY CARE SERVICES LTD,100118
Portsmouth City Council,PCC,Adult Social Care,Physical Support Older People (85+),Adult Services,Third Party Payments,Other establishments,27/05/2020,6366916,487.2,VENDOR,CRESCENT COMMUNITY CARE SERVICES LTD,100118
Portsmouth City Council,PCC,Adult Social Care,Physical Support Older People (85+),Adult Services,Third Party Payments,Other establishments,27/05/2020,6366916,87,VENDOR,CRESCENT COMMUNITY CARE SERVICES LTD,100118
Portsmouth City Council,PCC,Adult Social Care,Physical Support Older People (85+),Adult Services,Third Party Payments,Other establishments,27/05/2020,6366916,974.4,VENDOR,CRESCENT COMMUNITY CARE SERVICES LTD,100118
Portsmouth City Council,PCC,Adult Social Care,Physical Support Older People (85+),Adult Services,Third Party Payments,Other establishments,27/05/2020,6366916,-25.32,VENDOR,CRESCENT COMMUNITY CARE SERVICES LTD,100118
Portsmouth City Council,PCC,Adult Social Care,Physical Support Older People (85+),Adult Services,Third Party Payments,Other establishments,27/05/2020,6366916,104.4,VENDOR,CRESCENT COMMUNITY CARE SERVICES LTD,100118
Portsmouth City Council,PCC,Adult Social Care,Physical Support Older People (85+),Adult Services,Third Party Payments,Other establishments,27/05/2020,6366916,243.6,VENDOR,CRESCENT COMMUNITY CARE SERVICES LTD,100118
Portsmouth City Council,PCC,Adult Social Care,Physical Support Older People (85+),Adult Services,Third Party Payments,Other establishments,27/05/2020,6366916,139.2,VENDOR,CRESCENT COMMUNITY CARE SERVICES LTD,100118
Portsmouth City Council,PCC,Adult Social Care,Physical Support Older People (85+),Adult Services,Third Party Payments,Other establishments,27/05/2020,6366916,1096.2,VENDOR,CRESCENT COMMUNITY CARE SERVICES LTD,100118
Portsmouth City Council,PCC,Adult Social Care,Physical Support Older People (85+),Adult Services,Third Party Payments,Other establishments,27/05/2020,6366916,1096.2,VENDOR,CRESCENT COMMUNITY CARE SERVICES LTD,100118
Portsmouth City Council,PCC,Adult Social Care,Physical Support Older People (85+),Adult Services,Third Party Payments,Other establishments,27/05/2020,6366916,609,VENDOR,CRESCENT COMMUNITY CARE SERVICES LTD,100118
Portsmouth City Council,PCC,Adult Social Care,Physical Support Older People (85+),Adult Services,Third Party Payments,Other establishments,27/05/2020,6366916,91.35,VENDOR,CRESCENT COMMUNITY CARE SERVICES LTD,100118
Portsmouth City Council,PCC,Adult Social Care,Physical Support Older People (85+),Adult Services,Third Party Payments,Other establishments,27/05/2020,6366916,69.6,VENDOR,CRESCENT COMMUNITY CARE SERVICES LTD,100118
Portsmouth City Council,PCC,Adult Social Care,Physical Support Older People (85+),Adult Services,Third Party Payments,Other establishments,27/05/2020,6366916,556.8,VENDOR,CRESCENT COMMUNITY CARE SERVICES LTD,100118
Portsmouth City Council,PCC,Adult Social Care,Physical Support Older People (85+),Adult Services,Third Party Payments,Other establishments,27/05/2020,6366916,487.2,VENDOR,CRESCENT COMMUNITY CARE SERVICES LTD,100118
Portsmouth City Council,PCC,Adult Social Care,Physical Support Older People (85+),Adult Services,Third Party Payments,Other establishments,27/05/2020,6366916,243.6,VENDOR,CRESCENT COMMUNITY CARE SERVICES LTD,100118
Portsmouth City Council,PCC,Adult Social Care,Physical Support Older People (85+),Adult Services,Third Party Payments,Other establishments,27/05/2020,6366916,1218,VENDOR,CRESCENT COMMUNITY CARE SERVICES LTD,100118
Portsmouth City Council,PCC,Adult Social Care,Physical Support Older People (85+),Adult Services,Third Party Payments,Other establishments,27/05/2020,6366916,234.9,VENDOR,CRESCENT COMMUNITY CARE SERVICES LTD,100118
Portsmouth City Council,PCC,Adult Social Care,Physical Support Older People (85+),Adult Services,Third Party Payments,Other establishments,27/05/2020,6366916,69.6,VENDOR,CRESCENT COMMUNITY CARE SERVICES LTD,100118
Portsmouth City Council,PCC,Adult Social Care,Physical Support Older People (85+),Adult Services,Third Party Payments,Other establishments,27/05/2020,6366916,208.8,VENDOR,CRESCENT COMMUNITY CARE SERVICES LTD,100118
Portsmouth City Council,PCC,Adult Social Care,Physical Support Older People (85+),Adult Services,Third Party Payments,Other establishments,27/05/2020,6366916,974.4,VENDOR,CRESCENT COMMUNITY CARE SERVICES LTD,100118
Portsmouth City Council,PCC,Adult Social Care,Physical Support Older People (85+),Adult Services,Third Party Payments,Other establishments,27/05/2020,6366916,487.2,VENDOR,CRESCENT COMMUNITY CARE SERVICES LTD,100118
Portsmouth City Council,PCC,Adult Social Care,Physical Support Older People (85+),Adult Services,Third Party Payments,Other establishments,27/05/2020,6366916,1270.2,VENDOR,CRESCENT COMMUNITY CARE SERVICES LTD,100118
Portsmouth City Council,PCC,Adult Social Care,Physical Support Older People (85+),Adult Services,Third Party Payments,Other establishments,27/05/2020,6366916,1096.2,VENDOR,CRESCENT COMMUNITY CARE SERVICES LTD,100118
Portsmouth City Council,PCC,Adult Social Care,Physical Support Older People (85+),Adult Services,Third Party Payments,Other establishments,27/05/2020,6366916,1339.8,VENDOR,CRESCENT COMMUNITY CARE SERVICES LTD,100118
Portsmouth City Council,PCC,Adult Social Care,Physical Support Older People (85+),Adult Services,Third Party Payments,Other establishments,27/05/2020,6366916,1339.8,VENDOR,CRESCENT COMMUNITY CARE SERVICES LTD,100118
Portsmouth City Council,PCC,Adult Social Care,Physical Support Older People (85+),Adult Services,Third Party Payments,Other establishments,27/05/2020,6366916,365.4,VENDOR,CRESCENT COMMUNITY CARE SERVICES LTD,100118
Portsmouth City Council,PCC,Adult Social Care,Physical Support Older People (85+),Adult Services,Third Party Payments,Other establishments,27/05/2020,6366916,974.4,VENDOR,CRESCENT COMMUNITY CARE SERVICES LTD,100118
Portsmouth City Council,PCC,Adult Social Care,Physical Support Older People (85+),Adult Services,Third Party Payments,Other establishments,27/05/2020,6366916,974.4,VENDOR,CRESCENT COMMUNITY CARE SERVICES LTD,100118
Portsmouth City Council,PCC,Adult Social Care,Physical Support Older People (85+),Adult Services,Third Party Payments,Other establishments,27/05/2020,6366916,1096.2,VENDOR,CRESCENT COMMUNITY CARE SERVICES LTD,100118
Portsmouth City Council,PCC,Adult Social Care,Physical Support Older People (85+),Adult Services,Third Party Payments,Other establishments,27/05/2020,6366916,243.6,VENDOR,CRESCENT COMMUNITY CARE SERVICES LTD,100118
Portsmouth City Council,PCC,Adult Social Care,Physical Support Older People (85+),Adult Services,Third Party Payments,Other establishments,27/05/2020,6366916,974.4,VENDOR,CRESCENT COMMUNITY CARE SERVICES LTD,100118
Portsmouth City Council,PCC,Adult Social Care,Physical Support Older People (85+),Adult Services,Third Party Payments,Other establishments,27/05/2020,6366916,522,VENDOR,CRESCENT COMMUNITY CARE SERVICES LTD,100118
Portsmouth City Council,PCC,Adult Social Care,Physical Support Older People (85+),Adult Services,Third Party Payments,Other establishments,27/05/2020,6366916,69.6,VENDOR,CRESCENT COMMUNITY CARE SERVICES LTD,100118
Portsmouth City Council,PCC,Adult Social Care,Physical Support Older People (85+),Adult Services,Third Party Payments,Other establishments,27/05/2020,6366916,487.2,VENDOR,CRESCENT COMMUNITY CARE SERVICES LTD,100118
Portsmouth City Council,PCC,Adult Social Care,Physical Support Older People (85+),Adult Services,Third Party Payments,Other establishments,27/05/2020,6366916,609,VENDOR,CRESCENT COMMUNITY CARE SERVICES LTD,100118
Portsmouth City Council,PCC,Adult Social Care,Physical Support Older People (85+),Adult Services,Third Party Payments,Other establishments,27/05/2020,6366916,1096.2,VENDOR,CRESCENT COMMUNITY CARE SERVICES LTD,100118
Portsmouth City Council,PCC,Adult Social Care,Physical Support Older People (85+),Adult Services,Third Party Payments,Other establishments,27/05/2020,6366916,522,VENDOR,CRESCENT COMMUNITY CARE SERVICES LTD,100118
Portsmouth City Council,PCC,Adult Social Care,Physical Support Older People (85+),Adult Services,Third Party Payments,Other establishments,27/05/2020,6366916,300.15,VENDOR,CRESCENT COMMUNITY CARE SERVICES LTD,100118
Portsmouth City Council,PCC,Adult Social Care,Learning Disability Support  Adults (18 - 64),Adult Services,Third Party Payments,Other establishments,27/05/2020,6366916,69.6,VENDOR,CRESCENT COMMUNITY CARE SERVICES LTD,100118
Portsmouth City Council,PCC,Adult Social Care,Learning Disability Support  Adults (18 - 64),Adult Services,Third Party Payments,Other establishments,27/05/2020,6366916,-118.16,VENDOR,CRESCENT COMMUNITY CARE SERVICES LTD,100118
Portsmouth City Council,PCC,Adult Social Care,Learning Disability Support  Adults (18 - 64),Adult Services,Third Party Payments,Other establishments,27/05/2020,6366916,-118.16,VENDOR,CRESCENT COMMUNITY CARE SERVICES LTD,100118
Portsmouth City Council,PCC,Adult Social Care,Learning Disability Support  Adults (18 - 64),Adult Services,Third Party Payments,Other establishments,27/05/2020,6366916,487.2,VENDOR,CRESCENT COMMUNITY CARE SERVICES LTD,100118
Portsmouth City Council,PCC,Adult Social Care,Learning Disability Support  Adults (18 - 64),Adult Services,Third Party Payments,Other establishments,27/05/2020,6366916,487.2,VENDOR,CRESCENT COMMUNITY CARE SERVICES LTD,100118
Portsmouth City Council,PCC,Adult Social Care,Social Support - Support for Carer,Adult Services,Third Party Payments,Other establishments,27/05/2020,6366916,314.16,VENDOR,CRESCENT COMMUNITY CARE SERVICES LTD,100118
Portsmouth City Council,PCC,Adult Social Care,Social Support - Support for Carer,Adult Services,Third Party Payments,Other establishments,27/05/2020,6366916,359.04,VENDOR,CRESCENT COMMUNITY CARE SERVICES LTD,100118
Portsmouth City Council,PCC,Adult Social Care,Social Support - Support for Carer,Adult Services,Third Party Payments,Other establishments,27/05/2020,6366916,179.52,VENDOR,CRESCENT COMMUNITY CARE SERVICES LTD,100118
Portsmouth City Council,PCC,Adult Social Care,Social Support - Support for Carer,Adult Services,Third Party Payments,Other establishments,27/05/2020,6366916,119.68,VENDOR,CRESCENT COMMUNITY CARE SERVICES LTD,100118
Portsmouth City Council,PCC,Adult Social Care,Social Support - Support for Carer,Adult Services,Third Party Payments,Other establishments,27/05/2020,6366916,179.52,VENDOR,CRESCENT COMMUNITY CARE SERVICES LTD,100118
Portsmouth City Council,PCC,Adult Social Care,Social Support - Support for Carer,Adult Services,Third Party Payments,Other establishments,27/05/2020,6366916,359.04,VENDOR,CRESCENT COMMUNITY CARE SERVICES LTD,100118
Portsmouth City Council,PCC,Adult Social Care,Social Support - Support for Carer,Adult Services,Third Party Payments,Other establishments,27/05/2020,6366916,359.04,VENDOR,CRESCENT COMMUNITY CARE SERVICES LTD,100118
Portsmouth City Council,PCC,Adult Social Care,Social Support - Support for Carer,Adult Services,Third Party Payments,Other establishments,27/05/2020,6366916,119.68,VENDOR,CRESCENT COMMUNITY CARE SERVICES LTD,100118
Portsmouth City Council,PCC,Adult Social Care,Social Support - Support for Carer,Adult Services,Third Party Payments,Other establishments,27/05/2020,6366916,89.76,VENDOR,CRESCENT COMMUNITY CARE SERVICES LTD,100118
Portsmouth City Council,PCC,Adult Social Care,Social Support - Support for Carer,Adult Services,Third Party Payments,Other establishments,27/05/2020,6366916,359.04,VENDOR,CRESCENT COMMUNITY CARE SERVICES LTD,100118
Portsmouth City Council,PCC,Adult Social Care,Social Support - Support for Carer,Adult Services,Third Party Payments,Other establishments,27/05/2020,6366916,359.04,VENDOR,CRESCENT COMMUNITY CARE SERVICES LTD,100118
Portsmouth City Council,PCC,Adult Social Care,Social Support - Support for Carer,Adult Services,Third Party Payments,Other establishments,27/05/2020,6366916,37.4,VENDOR,CRESCENT COMMUNITY CARE SERVICES LTD,100118
Portsmouth City Council,PCC,Adult Social Care,Social Support - Support for Carer,Adult Services,Third Party Payments,Other establishments,27/05/2020,6366916,359.04,VENDOR,CRESCENT COMMUNITY CARE SERVICES LTD,100118
Portsmouth City Council,PCC,Adult Social Care,Social Support - Support for Carer,Adult Services,Third Party Payments,Other establishments,27/05/2020,6366916,119.68,VENDOR,CRESCENT COMMUNITY CARE SERVICES LTD,100118
Portsmouth City Council,PCC,Adult Social Care,Social Support - Support for Carer,Adult Services,Third Party Payments,Other establishments,27/05/2020,6366916,119.68,VENDOR,CRESCENT COMMUNITY CARE SERVICES LTD,100118
Portsmouth City Council,PCC,Adult Social Care,Social Support - Support for Carer,Adult Services,Third Party Payments,Other establishments,27/05/2020,6366916,359.04,VENDOR,CRESCENT COMMUNITY CARE SERVICES LTD,100118
Portsmouth City Council,PCC,Adult Social Care,Social Support - Support for Carer,Adult Services,Third Party Payments,Other establishments,27/05/2020,6366916,359.04,VENDOR,CRESCENT COMMUNITY CARE SERVICES LTD,100118
Portsmouth City Council,PCC,Adult Social Care,Social Support - Support for Carer,Adult Services,Third Party Payments,Other establishments,27/05/2020,6366916,314.16,VENDOR,CRESCENT COMMUNITY CARE SERVICES LTD,100118
Portsmouth City Council,PCC,Adult Social Care,Social Support - Support for Carer,Adult Services,Third Party Payments,Other establishments,27/05/2020,6366916,359.04,VENDOR,CRESCENT COMMUNITY CARE SERVICES LTD,100118
Portsmouth City Council,PCC,Highways and Transport Services,"Transport Planning, Policy and Strategy",Regeneration,Third Party Payments,Private contractors,26/05/2020,6366783,7440,VENDOR,TURNER & TOWNSEND GROUP LIMITED,132225
Portsmouth City Council,PCC,Cultural and Related Services,Culture and Heritage,"Culture, Leisure & Regulatory Services",Third Party Payments,Private contractors,06/05/2020,6363707,25000,VENDOR,PORTSMOUTH CREATES,146745
Portsmouth City Council,PCC,Cultural and Related Services,Culture and Heritage,"Culture, Leisure & Regulatory Services",Third Party Payments,Private contractors,06/05/2020,6363707,100000,VENDOR,PORTSMOUTH CREATES,146745
Portsmouth City Council,PCC,Children's and Education Services,Management and Support Services,Children's Services and Education,Third Party Payments,Other establishments,14/05/2020,6365225,3008.12,VENDOR,GOOD MANORS DAY NURSERY,140974
Portsmouth City Council,PCC,Housing Services,Supporting People,"Housing, Neighbourhood and Building Services",Third Party Payments,Other establishments,12/05/2020,6364549,49983.41,VENDOR,TWO SAINTS LTD,102584
Portsmouth City Council,PCC,Other,Suspense and Capital Schemes,Capital - Children & Families,Capital Charges,Capital Expenditure (WIP),21/05/2020,6366450,1800,VENDOR,SERVELEC GROUP LTD,144037
Portsmouth City Council,PCC,Highways and Transport Services,"Airports, Harbours and Toll Facilities",Portsmouth International Port,Premises-Related Expenditure,"Repairs, alterations and maintenance of buildings",21/05/2020,6366460,791.71,VENDOR,SWL ROPE LIFTING AND TESTING,133453
Portsmouth City Council,PCC,Highways and Transport Services,"Airports, Harbours and Toll Facilities",Portsmouth International Port,Premises-Related Expenditure,"Repairs, alterations and maintenance of buildings",14/05/2020,6365258,228.06,VENDOR,SWL ROPE LIFTING AND TESTING,133453
Portsmouth City Council,PCC,Highways and Transport Services,"Airports, Harbours and Toll Facilities",Portsmouth International Port,Premises-Related Expenditure,"Repairs, alterations and maintenance of buildings",14/05/2020,6365258,638.4,VENDOR,SWL ROPE LIFTING AND TESTING,133453
Portsmouth City Council,PCC,Support Service / Transparency Costs Unallocated,Financial Services,Finance & Resources,Supplies and Services,Services,01/05/2020,6362798,4000,VENDOR,NE PAYROLL LTD,143462
Portsmouth City Council,PCC,Planning Services,Planning Policy,Regeneration,Supplies and Services,Communications and computing,29/05/2020,6367507,355,VENDOR,GRAITEC LIMITED,106525
Portsmouth City Council,PCC,Environmental and Regulatory Services,Flood Defence and Land Drainage,Regeneration,Supplies and Services,Communications and computing,29/05/2020,6367507,200,VENDOR,GRAITEC LIMITED,106525
Portsmouth City Council,PCC,Environmental and Regulatory Services,Flood Defence and Land Drainage,Regeneration,Supplies and Services,Communications and computing,29/05/2020,6367507,355,VENDOR,GRAITEC LIMITED,106525
Portsmouth City Council,PCC,Highways and Transport Services,"Transport Planning, Policy and Strategy",Regeneration,Supplies and Services,Communications and computing,29/05/2020,6367507,1070,VENDOR,GRAITEC LIMITED,106525
Portsmouth City Council,PCC,Highways and Transport Services,"Transport Planning, Policy and Strategy",Regeneration,Supplies and Services,Communications and computing,29/05/2020,6367507,800,VENDOR,GRAITEC LIMITED,106525
Portsmouth City Council,PCC,Highways and Transport Services,"Transport Planning, Policy and Strategy",Regeneration,Supplies and Services,Communications and computing,29/05/2020,6367507,1420,VENDOR,GRAITEC LIMITED,106525
Portsmouth City Council,PCC,Highways and Transport Services,Traffic Management and Road Safety,Regeneration,Supplies and Services,Communications and computing,29/05/2020,6367507,355,VENDOR,GRAITEC LIMITED,106525
Portsmouth City Council,PCC,Support Service / Transparency Costs Unallocated,Information Services,Corporate Services,Supplies and Services,Communications and computing,29/05/2020,6367507,600,VENDOR,GRAITEC LIMITED,106525
Portsmouth City Council,PCC,Support Service / Transparency Costs Unallocated,AMS,Regeneration,Supplies and Services,Communications and computing,29/05/2020,6367507,2500,VENDOR,GRAITEC LIMITED,106525
Portsmouth City Council,PCC,Support Service / Transparency Costs Unallocated,AMS,"Housing, Neighbourhood and Building Services",Supplies and Services,Communications and computing,29/05/2020,6367507,13910,VENDOR,GRAITEC LIMITED,106525
Portsmouth City Council,PCC,Support Service / Transparency Costs Unallocated,AMS,"Housing, Neighbourhood and Building Services",Supplies and Services,Communications and computing,29/05/2020,6367507,690,VENDOR,GRAITEC LIMITED,106525
Portsmouth City Council,PCC,Support Service / Transparency Costs Unallocated,AMS,"Housing, Neighbourhood and Building Services",Supplies and Services,Communications and computing,29/05/2020,6367507,200,VENDOR,GRAITEC LIMITED,106525
Portsmouth City Council,PCC,Housing Revenue Account,Supervision and Management,"Housing, Neighbourhood and Building Services",Supplies and Services,Communications and computing,29/05/2020,6367507,1070,VENDOR,GRAITEC LIMITED,106525
Portsmouth City Council,PCC,Housing Revenue Account,Supervision and Management,"Housing, Neighbourhood and Building Services",Supplies and Services,Communications and computing,29/05/2020,6367507,2200,VENDOR,GRAITEC LIMITED,106525
Portsmouth City Council,PCC,Housing Revenue Account,Supervision and Management,"Housing, Neighbourhood and Building Services",Supplies and Services,Communications and computing,29/05/2020,6367507,5200,VENDOR,GRAITEC LIMITED,106525
Portsmouth City Council,PCC,Children's and Education Services,Children Looked After,Children's Services and Education,Third Party Payments,Other establishments,18/05/2020,6365482,-1000,VENDOR,ADVANCED ADOLESCENT CARE SOLUTIONS LTD,145305
Portsmouth City Council,PCC,Children's and Education Services,Children Looked After,Children's Services and Education,Third Party Payments,Other establishments,18/05/2020,6365482,29000,VENDOR,ADVANCED ADOLESCENT CARE SOLUTIONS LTD,145305
Portsmouth City Council,PCC,Adult Social Care,Social Care Activities,Adult Services,Third Party Payments,Other establishments,20/05/2020,6365898,420,VENDOR,BROOKVALE HEALTHCARE,101126
Portsmouth City Council,PCC,Adult Social Care,Physical Support Older People (85+),Adult Services,Third Party Payments,Other establishments,12/05/2020,6364316,2896.64,VENDOR,AGINCARE UK,134367
Portsmouth City Council,PCC,Adult Social Care,Support with Memory and Cognition Older People (85+),Adult Services,Third Party Payments,Other establishments,12/05/2020,6364319,4340,VENDOR,ALEXANDRA ROSE RESIDENTIAL CARE HOME,101952
Portsmouth City Council,PCC,Adult Social Care,Support with Memory and Cognition Older People (85+),Adult Services,Third Party Payments,Other establishments,12/05/2020,6364319,4268.7,VENDOR,ALEXANDRA ROSE RESIDENTIAL CARE HOME,101952
Portsmouth City Council,PCC,Adult Social Care,Support with Memory and Cognition Older People (85+),Adult Services,Third Party Payments,Other establishments,12/05/2020,6364319,4118.66,VENDOR,ALEXANDRA ROSE RESIDENTIAL CARE HOME,101952
Portsmouth City Council,PCC,Adult Social Care,Support with Memory and Cognition Older People (85+),Adult Services,Third Party Payments,Other establishments,12/05/2020,6364319,1271.31,VENDOR,ALEXANDRA ROSE RESIDENTIAL CARE HOME,101952
Portsmouth City Council,PCC,Highways and Transport Services,Parking Services,Regeneration,Supplies and Services,"Equipment, furniture and materials",04/05/2020,6362903,1270.75,VENDOR,EASY NETWORKS LTD,100142
Portsmouth City Council,PCC,Highways and Transport Services,Parking Services,Regeneration,Supplies and Services,"Equipment, furniture and materials",04/05/2020,6362903,317.69,VENDOR,EASY NETWORKS LTD,100142
Portsmouth City Council,PCC,Adult Social Care,Physical Support Older People (85+),Adult Services,Third Party Payments,Other establishments,12/05/2020,6364324,-579.2,VENDOR,ALTON HOUSE PARTNERSHIP,119112
Portsmouth City Council,PCC,Support Service / Transparency Costs Unallocated,AMS,"Housing, Neighbourhood and Building Services",Third Party Payments,Private contractors,29/05/2020,6367638,1249.5,VENDOR,WILCE SERVICES UK LTD,146062
Portsmouth City Council,PCC,Adult Social Care,Physical Support Older People (85+),Adult Services,Third Party Payments,Other establishments,12/05/2020,6364324,-434.4,VENDOR,ALTON HOUSE PARTNERSHIP,119112
Portsmouth City Council,PCC,Adult Social Care,Support with Memory and Cognition Older People (85+),Adult Services,Third Party Payments,Other establishments,12/05/2020,6364324,2861.3,VENDOR,ALTON HOUSE PARTNERSHIP,119112
Portsmouth City Council,PCC,Adult Social Care,Support with Memory and Cognition Older People (85+),Adult Services,Third Party Payments,Other establishments,12/05/2020,6364324,2861.3,VENDOR,ALTON HOUSE PARTNERSHIP,119112
Portsmouth City Council,PCC,Cultural and Related Services,Open Spaces,"Culture, Leisure & Regulatory Services",Premises-Related Expenditure,Grounds maintenance costs,04/05/2020,6362956,295,COMPANY,SSE CONTRACTING LTD,101806
Portsmouth City Council,PCC,Cultural and Related Services,Open Spaces,"Culture, Leisure & Regulatory Services",Premises-Related Expenditure,Grounds maintenance costs,04/05/2020,6362956,295,COMPANY,SSE CONTRACTING LTD,101806
Portsmouth City Council,PCC,Support Service / Transparency Costs Unallocated,AMS,Regeneration,Supplies and Services,Communications and computing,28/05/2020,6367329,5150,VENDOR,BELL ROCK WORKPLACE MANAGEMENT LIMITED,146165
Portsmouth City Council,PCC,Children's and Education Services,Other Education and Community Budget,Children's Services and Education,Supplies and Services,"Equipment, furniture and materials",28/05/2020,6367420,5352.6,COMPANY,SSE CONTRACTING LTD,101806
Portsmouth City Council,PCC,Other,Suspense and Capital Schemes,"Housing, Neighbourhood and Building Services",Premises-Related Expenditure,"Repairs, alterations and maintenance of buildings",21/05/2020,6366456,23359.97,COMPANY,SSE CONTRACTING LTD,101806
Portsmouth City Council,PCC,Adult Social Care,Support with Memory and Cognition Older People (85+),Adult Services,Third Party Payments,Other establishments,12/05/2020,6364324,2861.3,VENDOR,ALTON HOUSE PARTNERSHIP,119112
Portsmouth City Council,PCC,Adult Social Care,Support with Memory and Cognition Older People (85+),Adult Services,Third Party Payments,Other establishments,12/05/2020,6364325,2338.64,VENDOR,ALTON MANOR CARE HOME,130289
Portsmouth City Council,PCC,Adult Social Care,Support with Memory and Cognition Older People (85+),Adult Services,Third Party Payments,Other establishments,12/05/2020,6364325,2338.64,VENDOR,ALTON MANOR CARE HOME,130289
Portsmouth City Council,PCC,Adult Social Care,Support with Memory and Cognition Older People (85+),Adult Services,Third Party Payments,Other establishments,12/05/2020,6364325,2338.64,VENDOR,ALTON MANOR CARE HOME,130289
Portsmouth City Council,PCC,Adult Social Care,Support with Memory and Cognition Older People (85+),Adult Services,Third Party Payments,Other establishments,12/05/2020,6364325,2338.64,VENDOR,ALTON MANOR CARE HOME,130289
Portsmouth City Council,PCC,Adult Social Care,Support with Memory and Cognition Older People (85+),Adult Services,Third Party Payments,Other establishments,12/05/2020,6364325,2574.86,VENDOR,ALTON MANOR CARE HOME,130289
Portsmouth City Council,PCC,Adult Social Care,Support with Memory and Cognition Older People (85+),Adult Services,Third Party Payments,Other establishments,12/05/2020,6364325,2338.64,VENDOR,ALTON MANOR CARE HOME,130289
Portsmouth City Council,PCC,Adult Social Care,Support with Memory and Cognition Older People (85+),Adult Services,Third Party Payments,Other establishments,12/05/2020,6364325,2484.34,VENDOR,ALTON MANOR CARE HOME,130289
Portsmouth City Council,PCC,Adult Social Care,Support with Memory and Cognition Older People (85+),Adult Services,Third Party Payments,Other establishments,12/05/2020,6364325,2338.64,VENDOR,ALTON MANOR CARE HOME,130289
Portsmouth City Council,PCC,Adult Social Care,Support with Memory and Cognition Older People (85+),Adult Services,Third Party Payments,Other establishments,12/05/2020,6364325,2338.64,VENDOR,ALTON MANOR CARE HOME,130289
Portsmouth City Council,PCC,Adult Social Care,Support with Memory and Cognition Older People (85+),Adult Services,Third Party Payments,Other establishments,12/05/2020,6364325,2338.64,VENDOR,ALTON MANOR CARE HOME,130289
Portsmouth City Council,PCC,Adult Social Care,Support with Memory and Cognition Older People (85+),Adult Services,Third Party Payments,Other establishments,12/05/2020,6364325,2338.64,VENDOR,ALTON MANOR CARE HOME,130289
Portsmouth City Council,PCC,Adult Social Care,Support with Memory and Cognition Older People (85+),Adult Services,Third Party Payments,Other establishments,12/05/2020,6364325,-829.84,VENDOR,ALTON MANOR CARE HOME,130289
Portsmouth City Council,PCC,Adult Social Care,Support with Memory and Cognition Older People (85+),Adult Services,Third Party Payments,Other establishments,12/05/2020,6364325,3100,VENDOR,ALTON MANOR CARE HOME,130289
Portsmouth City Council,PCC,Adult Social Care,Support with Memory and Cognition Older People (85+),Adult Services,Third Party Payments,Other establishments,12/05/2020,6364325,1207.18,VENDOR,ALTON MANOR CARE HOME,130289
Portsmouth City Council,PCC,Adult Social Care,Support with Memory and Cognition Older People (85+),Adult Services,Third Party Payments,Other establishments,12/05/2020,6364325,2785.8,VENDOR,ALTON MANOR CARE HOME,130289
Portsmouth City Council,PCC,Adult Social Care,Support with Memory and Cognition Older People (85+),Adult Services,Third Party Payments,Other establishments,12/05/2020,6364325,2878.66,VENDOR,ALTON MANOR CARE HOME,130289
Portsmouth City Council,PCC,Adult Social Care,Support with Memory and Cognition Older People (85+),Adult Services,Third Party Payments,Other establishments,12/05/2020,6364325,3162,VENDOR,ALTON MANOR CARE HOME,130289
Portsmouth City Council,PCC,Adult Social Care,Support with Memory and Cognition Older People (85+),Adult Services,Third Party Payments,Other establishments,12/05/2020,6364325,2338.64,VENDOR,ALTON MANOR CARE HOME,130289
Portsmouth City Council,PCC,Adult Social Care,Support with Memory and Cognition Older People (85+),Adult Services,Third Party Payments,Other establishments,12/05/2020,6364325,2338.64,VENDOR,ALTON MANOR CARE HOME,130289
Portsmouth City Council,PCC,Adult Social Care,Mental Health Support Adults (18 - 64),Adult Services,Third Party Payments,Other establishments,12/05/2020,6364325,2201.31,VENDOR,ALTON MANOR CARE HOME,130289
Portsmouth City Council,PCC,Adult Social Care,Learning Disability Support  Adults (18 - 64),Adult Services,Third Party Payments,Other establishments,12/05/2020,6364331,10232.17,VENDOR,ASPENS CHARITIES,119343
Portsmouth City Council,PCC,Adult Social Care,Learning Disability Support  Adults (18 - 64),Adult Services,Third Party Payments,Other establishments,12/05/2020,6364333,9483.21,VENDOR,ASSURE HEALTH CARE GROUP,140779
Portsmouth City Council,PCC,Adult Social Care,Learning Disability Support  Adults (18 - 64),Adult Services,Third Party Payments,Other establishments,12/05/2020,6364333,7481.23,VENDOR,ASSURE HEALTH CARE GROUP,140779
Portsmouth City Council,PCC,Adult Social Care,Information and Early Intervention,Adult Services,Third Party Payments,Other establishments,12/05/2020,6364337,513.54,VENDOR,AUTISM HAMPSHIRE,139112
Portsmouth City Council,PCC,Adult Social Care,Information and Early Intervention,Adult Services,Third Party Payments,Other establishments,12/05/2020,6364337,102.71,VENDOR,AUTISM HAMPSHIRE,139112
Portsmouth City Council,PCC,Adult Social Care,Social Care Activities,Adult Services,Third Party Payments,Other establishments,12/05/2020,6364336,16177.66,VENDOR,AUTISM HAMPSHIRE,139112
Portsmouth City Council,PCC,Adult Social Care,Learning Disability Support  Adults (18 - 64),Adult Services,Third Party Payments,Other establishments,12/05/2020,6364336,6084.06,VENDOR,AUTISM HAMPSHIRE,139112
Portsmouth City Council,PCC,Adult Social Care,Learning Disability Support  Adults (18 - 64),Adult Services,Third Party Payments,Other establishments,12/05/2020,6364336,5822.73,VENDOR,AUTISM HAMPSHIRE,139112
Portsmouth City Council,PCC,Adult Social Care,Learning Disability Support  Adults (18 - 64),Adult Services,Third Party Payments,Other establishments,12/05/2020,6364336,3863.22,VENDOR,AUTISM HAMPSHIRE,139112
Portsmouth City Council,PCC,Adult Social Care,Learning Disability Support  Adults (18 - 64),Adult Services,Third Party Payments,Other establishments,12/05/2020,6364336,9095.4,VENDOR,AUTISM HAMPSHIRE,139112
Portsmouth City Council,PCC,Adult Social Care,Support with Memory and Cognition Older People (85+),Adult Services,Third Party Payments,Other establishments,12/05/2020,6364338,1550,VENDOR,AUTUMN VALE REST HOME,100551
Portsmouth City Council,PCC,Adult Social Care,Support with Memory and Cognition Older People (85+),Adult Services,Third Party Payments,Other establishments,12/05/2020,6364338,2428.23,VENDOR,AUTUMN VALE REST HOME,100551
Portsmouth City Council,PCC,Adult Social Care,Support with Memory and Cognition Older People (85+),Adult Services,Third Party Payments,Other establishments,12/05/2020,6364338,-1230,VENDOR,AUTUMN VALE REST HOME,100551
Portsmouth City Council,PCC,Adult Social Care,Mental Health Support Adults (18 - 64),Adult Services,Third Party Payments,Other establishments,12/05/2020,6364338,-3602.1,VENDOR,AUTUMN VALE REST HOME,100551
Portsmouth City Council,PCC,Adult Social Care,Mental Health Support Adults (18 - 64),Adult Services,Third Party Payments,Other establishments,12/05/2020,6364338,-3649.32,VENDOR,AUTUMN VALE REST HOME,100551
Portsmouth City Council,PCC,Adult Social Care,Mental Health Support Adults (18 - 64),Adult Services,Third Party Payments,Other establishments,12/05/2020,6364338,2167.83,VENDOR,AUTUMN VALE REST HOME,100551
Portsmouth City Council,PCC,Adult Social Care,Mental Health Support Adults (18 - 64),Adult Services,Third Party Payments,Other establishments,12/05/2020,6364338,1430.03,VENDOR,AUTUMN VALE REST HOME,100551
Portsmouth City Council,PCC,Adult Social Care,Mental Health Support Adults (18 - 64),Adult Services,Third Party Payments,Other establishments,12/05/2020,6364338,3558.18,VENDOR,AUTUMN VALE REST HOME,100551
Portsmouth City Council,PCC,Adult Social Care,Mental Health Support Adults (18 - 64),Adult Services,Third Party Payments,Other establishments,12/05/2020,6364338,2351.35,VENDOR,AUTUMN VALE REST HOME,100551
Portsmouth City Council,PCC,Adult Social Care,Mental Health Support Adults (18 - 64),Adult Services,Third Party Payments,Other establishments,12/05/2020,6364338,3419.61,VENDOR,AUTUMN VALE REST HOME,100551
Portsmouth City Council,PCC,Adult Social Care,Mental Health Support Adults (18 - 64),Adult Services,Third Party Payments,Other establishments,12/05/2020,6364338,2605.55,VENDOR,AUTUMN VALE REST HOME,100551
Portsmouth City Council,PCC,Adult Social Care,Mental Health Support Adults (18 - 64),Adult Services,Third Party Payments,Other establishments,12/05/2020,6364338,3321.96,VENDOR,AUTUMN VALE REST HOME,100551
Portsmouth City Council,PCC,Adult Social Care,Mental Health Support Adults (18 - 64),Adult Services,Third Party Payments,Other establishments,12/05/2020,6364338,2519.06,VENDOR,AUTUMN VALE REST HOME,100551
Portsmouth City Council,PCC,Adult Social Care,Social Care Activities,Adult Services,Third Party Payments,Other establishments,12/05/2020,6364341,3393.88,VENDOR,BEACONSFIELD RESIDENTIAL CARE HOME,100568
Portsmouth City Council,PCC,Adult Social Care,Learning Disability Support  Adults (18 - 64),Adult Services,Third Party Payments,Other establishments,12/05/2020,6364341,3489.36,VENDOR,BEACONSFIELD RESIDENTIAL CARE HOME,100568
Portsmouth City Council,PCC,Adult Social Care,Learning Disability Support  Adults (18 - 64),Adult Services,Third Party Payments,Other establishments,12/05/2020,6364341,2559.36,VENDOR,BEACONSFIELD RESIDENTIAL CARE HOME,100568
Portsmouth City Council,PCC,Adult Social Care,Mental Health Support Adults (18 - 64),Adult Services,Third Party Payments,Other establishments,12/05/2020,6364341,1861.55,VENDOR,BEACONSFIELD RESIDENTIAL CARE HOME,100568
Portsmouth City Council,PCC,Adult Social Care,Mental Health Support Adults (18 - 64),Adult Services,Third Party Payments,Other establishments,12/05/2020,6364341,1934.4,VENDOR,BEACONSFIELD RESIDENTIAL CARE HOME,100568
Portsmouth City Council,PCC,Adult Social Care,Mental Health Support Adults (18 - 64),Adult Services,Third Party Payments,Other establishments,12/05/2020,6364341,1806.37,VENDOR,BEACONSFIELD RESIDENTIAL CARE HOME,100568
Portsmouth City Council,PCC,Adult Social Care,Mental Health Support Adults (18 - 64),Adult Services,Third Party Payments,Other establishments,12/05/2020,6364341,2484.65,VENDOR,BEACONSFIELD RESIDENTIAL CARE HOME,100568
Portsmouth City Council,PCC,Adult Social Care,Mental Health Support Adults (18 - 64),Adult Services,Third Party Payments,Other establishments,12/05/2020,6364341,1898.13,VENDOR,BEACONSFIELD RESIDENTIAL CARE HOME,100568
Portsmouth City Council,PCC,Adult Social Care,Mental Health Support Adults (18 - 64),Adult Services,Third Party Payments,Other establishments,12/05/2020,6364341,2430.4,VENDOR,BEACONSFIELD RESIDENTIAL CARE HOME,100568
Portsmouth City Council,PCC,Adult Social Care,Mental Health Support Adults (18 - 64),Adult Services,Third Party Payments,Other establishments,12/05/2020,6364341,1898.13,VENDOR,BEACONSFIELD RESIDENTIAL CARE HOME,100568
Portsmouth City Council,PCC,Adult Social Care,Mental Health Support Adults (18 - 64),Adult Services,Third Party Payments,Other establishments,12/05/2020,6364341,1898.13,VENDOR,BEACONSFIELD RESIDENTIAL CARE HOME,100568
Portsmouth City Council,PCC,Adult Social Care,Mental Health Support Adults (18 - 64),Adult Services,Third Party Payments,Other establishments,12/05/2020,6364341,1824.97,VENDOR,BEACONSFIELD RESIDENTIAL CARE HOME,100568
Portsmouth City Council,PCC,Adult Social Care,Mental Health Support Adults (18 - 64),Adult Services,Third Party Payments,Other establishments,12/05/2020,6364341,2657.63,VENDOR,BEACONSFIELD RESIDENTIAL CARE HOME,100568
Portsmouth City Council,PCC,Adult Social Care,Mental Health Support Adults (18 - 64),Adult Services,Third Party Payments,Other establishments,12/05/2020,6364341,1861.55,VENDOR,BEACONSFIELD RESIDENTIAL CARE HOME,100568
Portsmouth City Council,PCC,Adult Social Care,Mental Health Support Adults (18 - 64),Adult Services,Third Party Payments,Other establishments,12/05/2020,6364341,1898.13,VENDOR,BEACONSFIELD RESIDENTIAL CARE HOME,100568
Portsmouth City Council,PCC,Adult Social Care,Mental Health Support Adults (18 - 64),Adult Services,Third Party Payments,Other establishments,12/05/2020,6364341,1861.55,VENDOR,BEACONSFIELD RESIDENTIAL CARE HOME,100568
Portsmouth City Council,PCC,Adult Social Care,Mental Health Support Adults (18 - 64),Adult Services,Third Party Payments,Other establishments,12/05/2020,6364341,2007.25,VENDOR,BEACONSFIELD RESIDENTIAL CARE HOME,100568
Portsmouth City Council,PCC,Adult Social Care,Mental Health Support Adults (18 - 64),Adult Services,Third Party Payments,Other establishments,12/05/2020,6364341,2063.98,VENDOR,BEACONSFIELD RESIDENTIAL CARE HOME,100568
Portsmouth City Council,PCC,Adult Social Care,Mental Health Support Adults (18 - 64),Adult Services,Third Party Payments,Other establishments,12/05/2020,6364341,1898.13,VENDOR,BEACONSFIELD RESIDENTIAL CARE HOME,100568
Portsmouth City Council,PCC,Adult Social Care,Mental Health Support Adults (18 - 64),Adult Services,Third Party Payments,Other establishments,12/05/2020,6364341,1970.98,VENDOR,BEACONSFIELD RESIDENTIAL CARE HOME,100568
Portsmouth City Council,PCC,Adult Social Care,Physical Support Adults (18 - 64),Adult Services,Third Party Payments,Other establishments,12/05/2020,6364343,5385.88,VENDOR,BEDHAMPTON NURSING HOME,100569
Portsmouth City Council,PCC,Adult Social Care,Physical Support Adults (18 - 64),Adult Services,Third Party Payments,Other establishments,12/05/2020,6364343,5757.32,VENDOR,BEDHAMPTON NURSING HOME,100569
Portsmouth City Council,PCC,Adult Social Care,Physical Support Adults (18 - 64),Adult Services,Third Party Payments,Other establishments,12/05/2020,6364343,420.56,VENDOR,BEDHAMPTON NURSING HOME,100569
Portsmouth City Council,PCC,Adult Social Care,Physical Support Adults (18 - 64),Adult Services,Third Party Payments,Other establishments,12/05/2020,6364343,6308.4,VENDOR,BEDHAMPTON NURSING HOME,100569
Portsmouth City Council,PCC,Adult Social Care,Physical Support Adults (18 - 64),Adult Services,Third Party Payments,Other establishments,12/05/2020,6364343,6518.68,VENDOR,BEDHAMPTON NURSING HOME,100569
Portsmouth City Council,PCC,Adult Social Care,Physical Support Adults (18 - 64),Adult Services,Third Party Payments,Other establishments,12/05/2020,6364343,4271.56,VENDOR,BEDHAMPTON NURSING HOME,100569
Portsmouth City Council,PCC,Adult Social Care,Social Care Activities,Adult Services,Third Party Payments,Other establishments,12/05/2020,6364343,11684.52,VENDOR,BEDHAMPTON NURSING HOME,100569
Portsmouth City Council,PCC,Adult Social Care,Social Care Activities,Adult Services,Third Party Payments,Other establishments,12/05/2020,6364343,4674.49,VENDOR,BEDHAMPTON NURSING HOME,100569
Portsmouth City Council,PCC,Adult Social Care,Social Care Activities,Adult Services,Third Party Payments,Other establishments,12/05/2020,6364343,5872.33,VENDOR,BEDHAMPTON NURSING HOME,100569
Portsmouth City Council,PCC,Adult Social Care,Social Care Activities,Adult Services,Third Party Payments,Other establishments,12/05/2020,6364343,604.31,VENDOR,BEDHAMPTON NURSING HOME,100569
Portsmouth City Council,PCC,Adult Social Care,Social Care Activities,Adult Services,Third Party Payments,Other establishments,12/05/2020,6364343,131.37,VENDOR,BEDHAMPTON NURSING HOME,100569
Portsmouth City Council,PCC,Adult Social Care,Social Care Activities,Adult Services,Third Party Payments,Other establishments,12/05/2020,6364343,52.67,VENDOR,BEDHAMPTON NURSING HOME,100569
Portsmouth City Council,PCC,Adult Social Care,Social Care Activities,Adult Services,Third Party Payments,Other establishments,12/05/2020,6364343,10.53,VENDOR,BEDHAMPTON NURSING HOME,100569
Portsmouth City Council,PCC,Adult Social Care,Social Care Activities,Adult Services,Third Party Payments,Other establishments,12/05/2020,6364343,63.22,VENDOR,BEDHAMPTON NURSING HOME,100569
Portsmouth City Council,PCC,Adult Social Care,Social Care Activities,Adult Services,Third Party Payments,Other establishments,12/05/2020,6364343,65.33,VENDOR,BEDHAMPTON NURSING HOME,100569
Portsmouth City Council,PCC,Adult Social Care,Social Care Activities,Adult Services,Third Party Payments,Other establishments,12/05/2020,6364343,65.33,VENDOR,BEDHAMPTON NURSING HOME,100569
Portsmouth City Council,PCC,Adult Social Care,Social Care Activities,Adult Services,Third Party Payments,Other establishments,12/05/2020,6364343,61.11,VENDOR,BEDHAMPTON NURSING HOME,100569
Portsmouth City Council,PCC,Adult Social Care,Social Care Activities,Adult Services,Third Party Payments,Other establishments,12/05/2020,6364343,65.33,VENDOR,BEDHAMPTON NURSING HOME,100569
Portsmouth City Council,PCC,Adult Social Care,Social Care Activities,Adult Services,Third Party Payments,Other establishments,12/05/2020,6364343,65.33,VENDOR,BEDHAMPTON NURSING HOME,100569
Portsmouth City Council,PCC,Adult Social Care,Social Care Activities,Adult Services,Third Party Payments,Other establishments,12/05/2020,6364343,63.22,VENDOR,BEDHAMPTON NURSING HOME,100569
Portsmouth City Council,PCC,Adult Social Care,Social Care Activities,Adult Services,Third Party Payments,Other establishments,12/05/2020,6364343,21.08,VENDOR,BEDHAMPTON NURSING HOME,100569
Portsmouth City Council,PCC,Adult Social Care,Social Care Activities,Adult Services,Third Party Payments,Other establishments,12/05/2020,6364343,65.33,VENDOR,BEDHAMPTON NURSING HOME,100569
Portsmouth City Council,PCC,Children's and Education Services,Children Looked After,Children's Services and Education,Third Party Payments,Other establishments,13/05/2020,6364575,383.45,VENDOR,ADVANCED ADOLESCENT CARE SOLUTIONS LTD,145305
Portsmouth City Council,PCC,Adult Social Care,Social Care Activities,Adult Services,Third Party Payments,Other establishments,12/05/2020,6364343,63.22,VENDOR,BEDHAMPTON NURSING HOME,100569
Portsmouth City Council,PCC,Adult Social Care,Social Care Activities,Adult Services,Third Party Payments,Other establishments,12/05/2020,6364343,65.33,VENDOR,BEDHAMPTON NURSING HOME,100569
Portsmouth City Council,PCC,Housing Services,Homelessness,"Housing, Neighbourhood and Building Services",Supplies and Services,Grants and subscriptions,05/05/2020,6363428,525,VENDOR,PORTSMOUTH LETTINGS PROPERTY MANAGEMENT,140978
Portsmouth City Council,PCC,Adult Social Care,Social Care Activities,Adult Services,Third Party Payments,Other establishments,12/05/2020,6364343,63.22,VENDOR,BEDHAMPTON NURSING HOME,100569
Portsmouth City Council,PCC,Adult Social Care,Social Care Activities,Adult Services,Third Party Payments,Other establishments,12/05/2020,6364343,63.22,VENDOR,BEDHAMPTON NURSING HOME,100569
Portsmouth City Council,PCC,Adult Social Care,Social Care Activities,Adult Services,Third Party Payments,Other establishments,12/05/2020,6364343,65.33,VENDOR,BEDHAMPTON NURSING HOME,100569
Portsmouth City Council,PCC,Adult Social Care,Social Care Activities,Adult Services,Third Party Payments,Other establishments,12/05/2020,6364343,61.11,VENDOR,BEDHAMPTON NURSING HOME,100569
Portsmouth City Council,PCC,Adult Social Care,Social Care Activities,Adult Services,Third Party Payments,Other establishments,12/05/2020,6364343,65.33,VENDOR,BEDHAMPTON NURSING HOME,100569
Portsmouth City Council,PCC,Adult Social Care,Social Care Activities,Adult Services,Third Party Payments,Other establishments,12/05/2020,6364343,63.22,VENDOR,BEDHAMPTON NURSING HOME,100569
Portsmouth City Council,PCC,Adult Social Care,Social Care Activities,Adult Services,Third Party Payments,Other establishments,12/05/2020,6364343,65.33,VENDOR,BEDHAMPTON NURSING HOME,100569
Portsmouth City Council,PCC,Adult Social Care,Social Care Activities,Adult Services,Third Party Payments,Other establishments,12/05/2020,6364343,63.22,VENDOR,BEDHAMPTON NURSING HOME,100569
Portsmouth City Council,PCC,Adult Social Care,Social Care Activities,Adult Services,Third Party Payments,Other establishments,12/05/2020,6364343,65.33,VENDOR,BEDHAMPTON NURSING HOME,100569
Portsmouth City Council,PCC,Adult Social Care,Social Care Activities,Adult Services,Third Party Payments,Other establishments,12/05/2020,6364343,63.22,VENDOR,BEDHAMPTON NURSING HOME,100569
Portsmouth City Council,PCC,Adult Social Care,Social Care Activities,Adult Services,Third Party Payments,Other establishments,12/05/2020,6364343,63.22,VENDOR,BEDHAMPTON NURSING HOME,100569
Portsmouth City Council,PCC,Adult Social Care,Social Care Activities,Adult Services,Third Party Payments,Other establishments,12/05/2020,6364343,4.22,VENDOR,BEDHAMPTON NURSING HOME,100569
Portsmouth City Council,PCC,Adult Social Care,Social Care Activities,Adult Services,Third Party Payments,Other establishments,12/05/2020,6364343,65.33,VENDOR,BEDHAMPTON NURSING HOME,100569
Portsmouth City Council,PCC,Adult Social Care,Social Care Activities,Adult Services,Third Party Payments,Other establishments,12/05/2020,6364343,63.22,VENDOR,BEDHAMPTON NURSING HOME,100569
Portsmouth City Council,PCC,Adult Social Care,Social Care Activities,Adult Services,Third Party Payments,Other establishments,12/05/2020,6364343,65.33,VENDOR,BEDHAMPTON NURSING HOME,100569
Portsmouth City Council,PCC,Adult Social Care,Social Care Activities,Adult Services,Third Party Payments,Other establishments,12/05/2020,6364343,65.33,VENDOR,BEDHAMPTON NURSING HOME,100569
Portsmouth City Council,PCC,Adult Social Care,Social Care Activities,Adult Services,Third Party Payments,Other establishments,12/05/2020,6364343,65.33,VENDOR,BEDHAMPTON NURSING HOME,100569
Portsmouth City Council,PCC,Adult Social Care,Social Care Activities,Adult Services,Third Party Payments,Other establishments,12/05/2020,6364343,61.11,VENDOR,BEDHAMPTON NURSING HOME,100569
Portsmouth City Council,PCC,Adult Social Care,Social Care Activities,Adult Services,Third Party Payments,Other establishments,12/05/2020,6364343,65.33,VENDOR,BEDHAMPTON NURSING HOME,100569
Portsmouth City Council,PCC,Adult Social Care,Social Care Activities,Adult Services,Third Party Payments,Other establishments,12/05/2020,6364343,65.33,VENDOR,BEDHAMPTON NURSING HOME,100569
Portsmouth City Council,PCC,Adult Social Care,Social Care Activities,Adult Services,Third Party Payments,Other establishments,12/05/2020,6364343,40.03,VENDOR,BEDHAMPTON NURSING HOME,100569
Portsmouth City Council,PCC,Adult Social Care,Social Care Activities,Adult Services,Third Party Payments,Other establishments,12/05/2020,6364343,65.33,VENDOR,BEDHAMPTON NURSING HOME,100569
Portsmouth City Council,PCC,Adult Social Care,Social Care Activities,Adult Services,Third Party Payments,Other establishments,12/05/2020,6364343,63.22,VENDOR,BEDHAMPTON NURSING HOME,100569
Portsmouth City Council,PCC,Adult Social Care,Social Care Activities,Adult Services,Third Party Payments,Other establishments,12/05/2020,6364343,65.33,VENDOR,BEDHAMPTON NURSING HOME,100569
Portsmouth City Council,PCC,Adult Social Care,Social Care Activities,Adult Services,Third Party Payments,Other establishments,12/05/2020,6364343,63.22,VENDOR,BEDHAMPTON NURSING HOME,100569
Portsmouth City Council,PCC,Adult Social Care,Social Care Activities,Adult Services,Third Party Payments,Other establishments,12/05/2020,6364343,78.69,VENDOR,BEDHAMPTON NURSING HOME,100569
Portsmouth City Council,PCC,Adult Social Care,Social Care Activities,Adult Services,Third Party Payments,Other establishments,12/05/2020,6364343,814.5,VENDOR,BEDHAMPTON NURSING HOME,100569
Portsmouth City Council,PCC,Adult Social Care,Social Care Activities,Adult Services,Third Party Payments,Other establishments,12/05/2020,6364343,25.28,VENDOR,BEDHAMPTON NURSING HOME,100569
Portsmouth City Council,PCC,Adult Social Care,Social Care Activities,Adult Services,Third Party Payments,Other establishments,12/05/2020,6364343,23.17,VENDOR,BEDHAMPTON NURSING HOME,100569
Portsmouth City Council,PCC,Adult Social Care,Social Care Activities,Adult Services,Third Party Payments,Other establishments,12/05/2020,6364343,63.22,VENDOR,BEDHAMPTON NURSING HOME,100569
Portsmouth City Council,PCC,Adult Social Care,Social Care Activities,Adult Services,Third Party Payments,Other establishments,12/05/2020,6364343,65.33,VENDOR,BEDHAMPTON NURSING HOME,100569
Portsmouth City Council,PCC,Adult Social Care,Social Care Activities,Adult Services,Third Party Payments,Other establishments,12/05/2020,6364343,65.33,VENDOR,BEDHAMPTON NURSING HOME,100569
Portsmouth City Council,PCC,Adult Social Care,Social Care Activities,Adult Services,Third Party Payments,Other establishments,12/05/2020,6364343,40.03,VENDOR,BEDHAMPTON NURSING HOME,100569
Portsmouth City Council,PCC,Adult Social Care,Social Care Activities,Adult Services,Third Party Payments,Other establishments,12/05/2020,6364343,65.33,VENDOR,BEDHAMPTON NURSING HOME,100569
Portsmouth City Council,PCC,Adult Social Care,Social Care Activities,Adult Services,Third Party Payments,Other establishments,12/05/2020,6364343,65.33,VENDOR,BEDHAMPTON NURSING HOME,100569
Portsmouth City Council,PCC,Adult Social Care,Social Care Activities,Adult Services,Third Party Payments,Other establishments,12/05/2020,6364343,63.22,VENDOR,BEDHAMPTON NURSING HOME,100569
Portsmouth City Council,PCC,Adult Social Care,Social Care Activities,Adult Services,Third Party Payments,Other establishments,12/05/2020,6364343,65.33,VENDOR,BEDHAMPTON NURSING HOME,100569
Portsmouth City Council,PCC,Adult Social Care,Social Care Activities,Adult Services,Third Party Payments,Other establishments,12/05/2020,6364343,63.22,VENDOR,BEDHAMPTON NURSING HOME,100569
Portsmouth City Council,PCC,Adult Social Care,Social Care Activities,Adult Services,Third Party Payments,Other establishments,12/05/2020,6364343,65.33,VENDOR,BEDHAMPTON NURSING HOME,100569
Portsmouth City Council,PCC,Adult Social Care,Social Care Activities,Adult Services,Third Party Payments,Other establishments,12/05/2020,6364343,63.22,VENDOR,BEDHAMPTON NURSING HOME,100569
Portsmouth City Council,PCC,Adult Social Care,Physical Support Older People (85+),Adult Services,Third Party Payments,Other establishments,12/05/2020,6364343,5881.32,VENDOR,BEDHAMPTON NURSING HOME,100569
Portsmouth City Council,PCC,Adult Social Care,Physical Support Older People (85+),Adult Services,Third Party Payments,Other establishments,12/05/2020,6364343,2887.65,VENDOR,BEDHAMPTON NURSING HOME,100569
Portsmouth City Council,PCC,Adult Social Care,Physical Support Adults (18 - 64),Adult Services,Third Party Payments,Other establishments,12/05/2020,6364345,857.2,VENDOR,BETHESDA HEALTHCARE,143824
Portsmouth City Council,PCC,Adult Social Care,Physical Support Adults (18 - 64),Adult Services,Third Party Payments,Other establishments,12/05/2020,6364345,3214.5,VENDOR,BETHESDA HEALTHCARE,143824
Portsmouth City Council,PCC,Adult Social Care,Physical Support Adults (18 - 64),Adult Services,Third Party Payments,Other establishments,12/05/2020,6364345,3321.65,VENDOR,BETHESDA HEALTHCARE,143824
Portsmouth City Council,PCC,Adult Social Care,Physical Support Adults (18 - 64),Adult Services,Third Party Payments,Other establishments,12/05/2020,6364345,-3107.35,VENDOR,BETHESDA HEALTHCARE,143824
Portsmouth City Council,PCC,Adult Social Care,Physical Support Adults (18 - 64),Adult Services,Third Party Payments,Other establishments,12/05/2020,6364345,341.5,VENDOR,BETHESDA HEALTHCARE,143824
Portsmouth City Council,PCC,Adult Social Care,Physical Support Adults (18 - 64),Adult Services,Third Party Payments,Other establishments,12/05/2020,6364345,4406.65,VENDOR,BETHESDA HEALTHCARE,143824
Portsmouth City Council,PCC,Adult Social Care,Physical Support Adults (18 - 64),Adult Services,Third Party Payments,Other establishments,12/05/2020,6364345,514.32,VENDOR,BETHESDA HEALTHCARE,143824
Portsmouth City Council,PCC,Adult Social Care,Physical Support Adults (18 - 64),Adult Services,Third Party Payments,Other establishments,12/05/2020,6364345,3323.2,VENDOR,BETHESDA HEALTHCARE,143824
Portsmouth City Council,PCC,Adult Social Care,Physical Support Older People (85+),Adult Services,Third Party Payments,Other establishments,12/05/2020,6364345,1800.12,VENDOR,BETHESDA HEALTHCARE,143824
Portsmouth City Council,PCC,Adult Social Care,Support with Memory and Cognition Older People (85+),Adult Services,Third Party Payments,Other establishments,12/05/2020,6364345,3117.67,VENDOR,BETHESDA HEALTHCARE,143824
Portsmouth City Council,PCC,Adult Social Care,Support with Memory and Cognition Older People (85+),Adult Services,Third Party Payments,Other establishments,12/05/2020,6364345,2710.33,VENDOR,BETHESDA HEALTHCARE,143824
Portsmouth City Council,PCC,Adult Social Care,Support with Memory and Cognition Older People (85+),Adult Services,Third Party Payments,Other establishments,12/05/2020,6364345,229.18,VENDOR,BETHESDA HEALTHCARE,143824
Portsmouth City Council,PCC,Adult Social Care,Support with Memory and Cognition Older People (85+),Adult Services,Third Party Payments,Other establishments,12/05/2020,6364345,1328.04,VENDOR,BETHESDA HEALTHCARE,143824
Portsmouth City Council,PCC,Adult Social Care,Support with Memory and Cognition Older People (85+),Adult Services,Third Party Payments,Other establishments,12/05/2020,6364345,3613.98,VENDOR,BETHESDA HEALTHCARE,143824
Portsmouth City Council,PCC,Adult Social Care,Support with Memory and Cognition Older People (85+),Adult Services,Third Party Payments,Other establishments,12/05/2020,6364345,3512.61,VENDOR,BETHESDA HEALTHCARE,143824
Portsmouth City Council,PCC,Adult Social Care,Support with Memory and Cognition Older People (85+),Adult Services,Third Party Payments,Other establishments,12/05/2020,6364344,3387.99,VENDOR,BETHESDA HEALTHCARE,143824
Portsmouth City Council,PCC,Adult Social Care,Social Care Activities,Adult Services,Third Party Payments,Other establishments,05/05/2020,6363035,5723.99,VENDOR,BLUEBELL NURSING HOME,100112
Portsmouth City Council,PCC,Adult Social Care,Social Care Activities,Adult Services,Third Party Payments,Other establishments,12/05/2020,6364348,609.34,VENDOR,BLUEBELL NURSING HOME,100112
Portsmouth City Council,PCC,Adult Social Care,Physical Support Adults (18 - 64),Adult Services,Third Party Payments,Other establishments,12/05/2020,6364348,-3200,VENDOR,BLUEBELL NURSING HOME,100112
Portsmouth City Council,PCC,Adult Social Care,Physical Support Adults (18 - 64),Adult Services,Third Party Payments,Other establishments,12/05/2020,6364348,1705,VENDOR,BLUEBELL NURSING HOME,100112
Portsmouth City Council,PCC,Adult Social Care,Physical Support Adults (18 - 64),Adult Services,Third Party Payments,Other establishments,12/05/2020,6364348,4805,VENDOR,BLUEBELL NURSING HOME,100112
Portsmouth City Council,PCC,Adult Social Care,Physical Support Adults (18 - 64),Adult Services,Third Party Payments,Other establishments,12/05/2020,6364348,4867,VENDOR,BLUEBELL NURSING HOME,100112
Portsmouth City Council,PCC,Adult Social Care,Social Care Activities,Adult Services,Third Party Payments,Other establishments,12/05/2020,6364348,1085,VENDOR,BLUEBELL NURSING HOME,100112
Portsmouth City Council,PCC,Adult Social Care,Social Care Activities,Adult Services,Third Party Payments,Other establishments,12/05/2020,6364348,4657.44,VENDOR,BLUEBELL NURSING HOME,100112
Portsmouth City Council,PCC,Adult Social Care,Social Care Activities,Adult Services,Third Party Payments,Other establishments,12/05/2020,6364348,2250,VENDOR,BLUEBELL NURSING HOME,100112
Portsmouth City Council,PCC,Adult Social Care,Social Care Activities,Adult Services,Third Party Payments,Other establishments,12/05/2020,6364348,4500,VENDOR,BLUEBELL NURSING HOME,100112
Portsmouth City Council,PCC,Adult Social Care,Social Care Activities,Adult Services,Third Party Payments,Other establishments,12/05/2020,6364348,4650,VENDOR,BLUEBELL NURSING HOME,100112
Portsmouth City Council,PCC,Adult Social Care,Social Care Activities,Adult Services,Third Party Payments,Other establishments,12/05/2020,6364348,5263.18,VENDOR,BLUEBELL NURSING HOME,100112
Portsmouth City Council,PCC,Adult Social Care,Social Care Activities,Adult Services,Third Party Payments,Other establishments,12/05/2020,6364348,4722.54,VENDOR,BLUEBELL NURSING HOME,100112
Portsmouth City Council,PCC,Adult Social Care,Social Care Activities,Adult Services,Third Party Payments,Other establishments,12/05/2020,6364348,4078.98,VENDOR,BLUEBELL NURSING HOME,100112
Portsmouth City Council,PCC,Adult Social Care,Social Care Activities,Adult Services,Third Party Payments,Other establishments,12/05/2020,6364348,4458.42,VENDOR,BLUEBELL NURSING HOME,100112
Portsmouth City Council,PCC,Adult Social Care,Social Care Activities,Adult Services,Third Party Payments,Other establishments,12/05/2020,6364348,5415.08,VENDOR,BLUEBELL NURSING HOME,100112
Portsmouth City Council,PCC,Adult Social Care,Social Care Activities,Adult Services,Third Party Payments,Other establishments,12/05/2020,6364348,-131.58,VENDOR,BLUEBELL NURSING HOME,100112
Portsmouth City Council,PCC,Adult Social Care,Social Care Activities,Adult Services,Third Party Payments,Other establishments,12/05/2020,6364348,131.58,VENDOR,BLUEBELL NURSING HOME,100112
Portsmouth City Council,PCC,Adult Social Care,Social Care Activities,Adult Services,Third Party Payments,Other establishments,12/05/2020,6364348,4078.98,VENDOR,BLUEBELL NURSING HOME,100112
Portsmouth City Council,PCC,Adult Social Care,Social Care Activities,Adult Services,Third Party Payments,Other establishments,12/05/2020,6364348,4410.99,VENDOR,BLUEBELL NURSING HOME,100112
Portsmouth City Council,PCC,Adult Social Care,Social Care Activities,Adult Services,Third Party Payments,Other establishments,12/05/2020,6364348,5699.66,VENDOR,BLUEBELL NURSING HOME,100112
Portsmouth City Council,PCC,Adult Social Care,Social Care Activities,Adult Services,Third Party Payments,Other establishments,12/05/2020,6364348,5149.1,VENDOR,BLUEBELL NURSING HOME,100112
Portsmouth City Council,PCC,Adult Social Care,Social Care Activities,Adult Services,Third Party Payments,Other establishments,12/05/2020,6364348,5536.6,VENDOR,BLUEBELL NURSING HOME,100112
Portsmouth City Council,PCC,Adult Social Care,Social Care Activities,Adult Services,Third Party Payments,Other establishments,12/05/2020,6364348,5375.4,VENDOR,BLUEBELL NURSING HOME,100112
Portsmouth City Council,PCC,Adult Social Care,Social Care Activities,Adult Services,Third Party Payments,Other establishments,12/05/2020,6364348,63.22,VENDOR,BLUEBELL NURSING HOME,100112
Portsmouth City Council,PCC,Adult Social Care,Social Care Activities,Adult Services,Third Party Payments,Other establishments,12/05/2020,6364348,65.33,VENDOR,BLUEBELL NURSING HOME,100112
Portsmouth City Council,PCC,Adult Social Care,Social Care Activities,Adult Services,Third Party Payments,Other establishments,12/05/2020,6364348,65.33,VENDOR,BLUEBELL NURSING HOME,100112
Portsmouth City Council,PCC,Adult Social Care,Social Care Activities,Adult Services,Third Party Payments,Other establishments,12/05/2020,6364348,61.11,VENDOR,BLUEBELL NURSING HOME,100112
Portsmouth City Council,PCC,Adult Social Care,Social Care Activities,Adult Services,Third Party Payments,Other establishments,12/05/2020,6364348,65.33,VENDOR,BLUEBELL NURSING HOME,100112
Portsmouth City Council,PCC,Adult Social Care,Social Care Activities,Adult Services,Third Party Payments,Other establishments,12/05/2020,6364348,65.33,VENDOR,BLUEBELL NURSING HOME,100112
Portsmouth City Council,PCC,Adult Social Care,Social Care Activities,Adult Services,Third Party Payments,Other establishments,12/05/2020,6364348,63.22,VENDOR,BLUEBELL NURSING HOME,100112
Portsmouth City Council,PCC,Adult Social Care,Social Care Activities,Adult Services,Third Party Payments,Other establishments,12/05/2020,6364348,65.33,VENDOR,BLUEBELL NURSING HOME,100112
Portsmouth City Council,PCC,Adult Social Care,Social Care Activities,Adult Services,Third Party Payments,Other establishments,12/05/2020,6364348,65.33,VENDOR,BLUEBELL NURSING HOME,100112
Portsmouth City Council,PCC,Adult Social Care,Social Care Activities,Adult Services,Third Party Payments,Other establishments,12/05/2020,6364348,63.22,VENDOR,BLUEBELL NURSING HOME,100112
Portsmouth City Council,PCC,Adult Social Care,Social Care Activities,Adult Services,Third Party Payments,Other establishments,12/05/2020,6364348,65.33,VENDOR,BLUEBELL NURSING HOME,100112
Portsmouth City Council,PCC,Adult Social Care,Social Care Activities,Adult Services,Third Party Payments,Other establishments,12/05/2020,6364348,63.22,VENDOR,BLUEBELL NURSING HOME,100112
Portsmouth City Council,PCC,Adult Social Care,Social Care Activities,Adult Services,Third Party Payments,Other establishments,12/05/2020,6364348,-315.43,VENDOR,BLUEBELL NURSING HOME,100112
Portsmouth City Council,PCC,Adult Social Care,Social Care Activities,Adult Services,Third Party Payments,Other establishments,12/05/2020,6364348,63.22,VENDOR,BLUEBELL NURSING HOME,100112
Portsmouth City Council,PCC,Adult Social Care,Social Care Activities,Adult Services,Third Party Payments,Other establishments,12/05/2020,6364348,65.33,VENDOR,BLUEBELL NURSING HOME,100112
Portsmouth City Council,PCC,Adult Social Care,Social Care Activities,Adult Services,Third Party Payments,Other establishments,12/05/2020,6364348,65.33,VENDOR,BLUEBELL NURSING HOME,100112
Portsmouth City Council,PCC,Adult Social Care,Social Care Activities,Adult Services,Third Party Payments,Other establishments,12/05/2020,6364348,61.11,VENDOR,BLUEBELL NURSING HOME,100112
Portsmouth City Council,PCC,Adult Social Care,Social Care Activities,Adult Services,Third Party Payments,Other establishments,12/05/2020,6364348,65.33,VENDOR,BLUEBELL NURSING HOME,100112
Portsmouth City Council,PCC,Adult Social Care,Social Care Activities,Adult Services,Third Party Payments,Other establishments,12/05/2020,6364348,65.33,VENDOR,BLUEBELL NURSING HOME,100112
Portsmouth City Council,PCC,Adult Social Care,Social Care Activities,Adult Services,Third Party Payments,Other establishments,12/05/2020,6364348,63.22,VENDOR,BLUEBELL NURSING HOME,100112
Portsmouth City Council,PCC,Adult Social Care,Social Care Activities,Adult Services,Third Party Payments,Other establishments,12/05/2020,6364348,-82.43,VENDOR,BLUEBELL NURSING HOME,100112
Portsmouth City Council,PCC,Adult Social Care,Social Care Activities,Adult Services,Third Party Payments,Other establishments,12/05/2020,6364348,65.33,VENDOR,BLUEBELL NURSING HOME,100112
Portsmouth City Council,PCC,Adult Social Care,Social Care Activities,Adult Services,Third Party Payments,Other establishments,12/05/2020,6364348,63.22,VENDOR,BLUEBELL NURSING HOME,100112
Portsmouth City Council,PCC,Adult Social Care,Social Care Activities,Adult Services,Third Party Payments,Other establishments,12/05/2020,6364348,65.33,VENDOR,BLUEBELL NURSING HOME,100112
Portsmouth City Council,PCC,Adult Social Care,Social Care Activities,Adult Services,Third Party Payments,Other establishments,12/05/2020,6364348,63.22,VENDOR,BLUEBELL NURSING HOME,100112
Portsmouth City Council,PCC,Adult Social Care,Social Care Activities,Adult Services,Third Party Payments,Other establishments,12/05/2020,6364348,63.22,VENDOR,BLUEBELL NURSING HOME,100112
Portsmouth City Council,PCC,Adult Social Care,Social Care Activities,Adult Services,Third Party Payments,Other establishments,12/05/2020,6364348,65.33,VENDOR,BLUEBELL NURSING HOME,100112
Portsmouth City Council,PCC,Adult Social Care,Social Care Activities,Adult Services,Third Party Payments,Other establishments,12/05/2020,6364348,65.33,VENDOR,BLUEBELL NURSING HOME,100112
Portsmouth City Council,PCC,Adult Social Care,Social Care Activities,Adult Services,Third Party Payments,Other establishments,12/05/2020,6364348,63.22,VENDOR,BLUEBELL NURSING HOME,100112
Portsmouth City Council,PCC,Adult Social Care,Social Care Activities,Adult Services,Third Party Payments,Other establishments,12/05/2020,6364348,65.33,VENDOR,BLUEBELL NURSING HOME,100112
Portsmouth City Council,PCC,Adult Social Care,Social Care Activities,Adult Services,Third Party Payments,Other establishments,12/05/2020,6364348,65.33,VENDOR,BLUEBELL NURSING HOME,100112
Portsmouth City Council,PCC,Adult Social Care,Social Care Activities,Adult Services,Third Party Payments,Other establishments,12/05/2020,6364348,63.22,VENDOR,BLUEBELL NURSING HOME,100112
Portsmouth City Council,PCC,Adult Social Care,Social Care Activities,Adult Services,Third Party Payments,Other establishments,12/05/2020,6364348,65.33,VENDOR,BLUEBELL NURSING HOME,100112
Portsmouth City Council,PCC,Adult Social Care,Social Care Activities,Adult Services,Third Party Payments,Other establishments,12/05/2020,6364348,65.33,VENDOR,BLUEBELL NURSING HOME,100112
Portsmouth City Council,PCC,Adult Social Care,Social Care Activities,Adult Services,Third Party Payments,Other establishments,12/05/2020,6364348,61.11,VENDOR,BLUEBELL NURSING HOME,100112
Portsmouth City Council,PCC,Adult Social Care,Social Care Activities,Adult Services,Third Party Payments,Other establishments,12/05/2020,6364348,65.33,VENDOR,BLUEBELL NURSING HOME,100112
Portsmouth City Council,PCC,Adult Social Care,Social Care Activities,Adult Services,Third Party Payments,Other establishments,12/05/2020,6364348,16.86,VENDOR,BLUEBELL NURSING HOME,100112
Portsmouth City Council,PCC,Adult Social Care,Social Care Activities,Adult Services,Third Party Payments,Other establishments,12/05/2020,6364348,65.33,VENDOR,BLUEBELL NURSING HOME,100112
Portsmouth City Council,PCC,Adult Social Care,Social Care Activities,Adult Services,Third Party Payments,Other establishments,12/05/2020,6364348,63.22,VENDOR,BLUEBELL NURSING HOME,100112
Portsmouth City Council,PCC,Adult Social Care,Social Care Activities,Adult Services,Third Party Payments,Other establishments,12/05/2020,6364348,65.33,VENDOR,BLUEBELL NURSING HOME,100112
Portsmouth City Council,PCC,Adult Social Care,Social Care Activities,Adult Services,Third Party Payments,Other establishments,12/05/2020,6364348,63.22,VENDOR,BLUEBELL NURSING HOME,100112
Portsmouth City Council,PCC,Adult Social Care,Social Care Activities,Adult Services,Third Party Payments,Other establishments,12/05/2020,6364348,78.69,VENDOR,BLUEBELL NURSING HOME,100112
Portsmouth City Council,PCC,Adult Social Care,Social Care Activities,Adult Services,Third Party Payments,Other establishments,12/05/2020,6364348,814.5,VENDOR,BLUEBELL NURSING HOME,100112
Portsmouth City Council,PCC,Adult Social Care,Social Care Activities,Adult Services,Third Party Payments,Other establishments,12/05/2020,6364348,10.53,VENDOR,BLUEBELL NURSING HOME,100112
Portsmouth City Council,PCC,Adult Social Care,Social Care Activities,Adult Services,Third Party Payments,Other establishments,12/05/2020,6364348,4.22,VENDOR,BLUEBELL NURSING HOME,100112
Portsmouth City Council,PCC,Adult Social Care,Social Care Activities,Adult Services,Third Party Payments,Other establishments,12/05/2020,6364348,63.22,VENDOR,BLUEBELL NURSING HOME,100112
Portsmouth City Council,PCC,Adult Social Care,Social Care Activities,Adult Services,Third Party Payments,Other establishments,12/05/2020,6364348,65.33,VENDOR,BLUEBELL NURSING HOME,100112
Portsmouth City Council,PCC,Adult Social Care,Social Care Activities,Adult Services,Third Party Payments,Other establishments,12/05/2020,6364348,65.33,VENDOR,BLUEBELL NURSING HOME,100112
Portsmouth City Council,PCC,Adult Social Care,Social Care Activities,Adult Services,Third Party Payments,Other establishments,12/05/2020,6364348,61.11,VENDOR,BLUEBELL NURSING HOME,100112
Portsmouth City Council,PCC,Adult Social Care,Social Care Activities,Adult Services,Third Party Payments,Other establishments,12/05/2020,6364348,65.33,VENDOR,BLUEBELL NURSING HOME,100112
Portsmouth City Council,PCC,Adult Social Care,Social Care Activities,Adult Services,Third Party Payments,Other establishments,12/05/2020,6364348,65.33,VENDOR,BLUEBELL NURSING HOME,100112
Portsmouth City Council,PCC,Adult Social Care,Social Care Activities,Adult Services,Third Party Payments,Other establishments,12/05/2020,6364348,63.22,VENDOR,BLUEBELL NURSING HOME,100112
Portsmouth City Council,PCC,Adult Social Care,Social Care Activities,Adult Services,Third Party Payments,Other establishments,12/05/2020,6364348,65.33,VENDOR,BLUEBELL NURSING HOME,100112
Portsmouth City Council,PCC,Adult Social Care,Social Care Activities,Adult Services,Third Party Payments,Other establishments,12/05/2020,6364348,65.33,VENDOR,BLUEBELL NURSING HOME,100112
Portsmouth City Council,PCC,Adult Social Care,Social Care Activities,Adult Services,Third Party Payments,Other establishments,12/05/2020,6364348,63.22,VENDOR,BLUEBELL NURSING HOME,100112
Portsmouth City Council,PCC,Adult Social Care,Social Care Activities,Adult Services,Third Party Payments,Other establishments,12/05/2020,6364348,65.33,VENDOR,BLUEBELL NURSING HOME,100112
Portsmouth City Council,PCC,Adult Social Care,Social Care Activities,Adult Services,Third Party Payments,Other establishments,12/05/2020,6364348,63.22,VENDOR,BLUEBELL NURSING HOME,100112
Portsmouth City Council,PCC,Adult Social Care,Social Care Activities,Adult Services,Third Party Payments,Other establishments,12/05/2020,6364348,78.69,VENDOR,BLUEBELL NURSING HOME,100112
Portsmouth City Council,PCC,Adult Social Care,Social Care Activities,Adult Services,Third Party Payments,Other establishments,12/05/2020,6364348,814.5,VENDOR,BLUEBELL NURSING HOME,100112
Portsmouth City Council,PCC,Adult Social Care,Social Care Activities,Adult Services,Third Party Payments,Other establishments,12/05/2020,6364348,78.69,VENDOR,BLUEBELL NURSING HOME,100112
Portsmouth City Council,PCC,Adult Social Care,Social Care Activities,Adult Services,Third Party Payments,Other establishments,12/05/2020,6364348,814.5,VENDOR,BLUEBELL NURSING HOME,100112
Portsmouth City Council,PCC,Adult Social Care,Social Care Activities,Adult Services,Third Party Payments,Other establishments,12/05/2020,6364348,63.22,VENDOR,BLUEBELL NURSING HOME,100112
Portsmouth City Council,PCC,Adult Social Care,Social Care Activities,Adult Services,Third Party Payments,Other establishments,12/05/2020,6364348,65.33,VENDOR,BLUEBELL NURSING HOME,100112
Portsmouth City Council,PCC,Adult Social Care,Social Care Activities,Adult Services,Third Party Payments,Other establishments,12/05/2020,6364348,65.33,VENDOR,BLUEBELL NURSING HOME,100112
Portsmouth City Council,PCC,Adult Social Care,Social Care Activities,Adult Services,Third Party Payments,Other establishments,12/05/2020,6364348,61.11,VENDOR,BLUEBELL NURSING HOME,100112
Portsmouth City Council,PCC,Adult Social Care,Social Care Activities,Adult Services,Third Party Payments,Other establishments,12/05/2020,6364348,65.33,VENDOR,BLUEBELL NURSING HOME,100112
Portsmouth City Council,PCC,Adult Social Care,Social Care Activities,Adult Services,Third Party Payments,Other establishments,12/05/2020,6364348,65.33,VENDOR,BLUEBELL NURSING HOME,100112
Portsmouth City Council,PCC,Adult Social Care,Social Care Activities,Adult Services,Third Party Payments,Other establishments,12/05/2020,6364348,63.22,VENDOR,BLUEBELL NURSING HOME,100112
Portsmouth City Council,PCC,Adult Social Care,Social Care Activities,Adult Services,Third Party Payments,Other establishments,12/05/2020,6364348,65.33,VENDOR,BLUEBELL NURSING HOME,100112
Portsmouth City Council,PCC,Adult Social Care,Social Care Activities,Adult Services,Third Party Payments,Other establishments,12/05/2020,6364348,65.33,VENDOR,BLUEBELL NURSING HOME,100112
Portsmouth City Council,PCC,Adult Social Care,Social Care Activities,Adult Services,Third Party Payments,Other establishments,12/05/2020,6364348,63.22,VENDOR,BLUEBELL NURSING HOME,100112
Portsmouth City Council,PCC,Adult Social Care,Social Care Activities,Adult Services,Third Party Payments,Other establishments,12/05/2020,6364348,65.33,VENDOR,BLUEBELL NURSING HOME,100112
Portsmouth City Council,PCC,Adult Social Care,Social Care Activities,Adult Services,Third Party Payments,Other establishments,12/05/2020,6364348,63.22,VENDOR,BLUEBELL NURSING HOME,100112
Portsmouth City Council,PCC,Adult Social Care,Social Care Activities,Adult Services,Third Party Payments,Other establishments,12/05/2020,6364348,42.14,VENDOR,BLUEBELL NURSING HOME,100112
Portsmouth City Council,PCC,Adult Social Care,Social Care Activities,Adult Services,Third Party Payments,Other establishments,12/05/2020,6364348,65.33,VENDOR,BLUEBELL NURSING HOME,100112
Portsmouth City Council,PCC,Adult Social Care,Social Care Activities,Adult Services,Third Party Payments,Other establishments,12/05/2020,6364348,61.11,VENDOR,BLUEBELL NURSING HOME,100112
Portsmouth City Council,PCC,Adult Social Care,Social Care Activities,Adult Services,Third Party Payments,Other establishments,12/05/2020,6364348,65.33,VENDOR,BLUEBELL NURSING HOME,100112
Portsmouth City Council,PCC,Adult Social Care,Social Care Activities,Adult Services,Third Party Payments,Other establishments,12/05/2020,6364348,65.33,VENDOR,BLUEBELL NURSING HOME,100112
Portsmouth City Council,PCC,Adult Social Care,Social Care Activities,Adult Services,Third Party Payments,Other establishments,12/05/2020,6364348,63.22,VENDOR,BLUEBELL NURSING HOME,100112
Portsmouth City Council,PCC,Adult Social Care,Social Care Activities,Adult Services,Third Party Payments,Other establishments,12/05/2020,6364348,4.22,VENDOR,BLUEBELL NURSING HOME,100112
Portsmouth City Council,PCC,Adult Social Care,Social Care Activities,Adult Services,Third Party Payments,Other establishments,12/05/2020,6364348,78.69,VENDOR,BLUEBELL NURSING HOME,100112
Portsmouth City Council,PCC,Adult Social Care,Social Care Activities,Adult Services,Third Party Payments,Other establishments,12/05/2020,6364348,814.5,VENDOR,BLUEBELL NURSING HOME,100112
Portsmouth City Council,PCC,Adult Social Care,Social Care Activities,Adult Services,Third Party Payments,Other establishments,12/05/2020,6364348,63.22,VENDOR,BLUEBELL NURSING HOME,100112
Portsmouth City Council,PCC,Adult Social Care,Social Care Activities,Adult Services,Third Party Payments,Other establishments,12/05/2020,6364348,65.33,VENDOR,BLUEBELL NURSING HOME,100112
Portsmouth City Council,PCC,Adult Social Care,Social Care Activities,Adult Services,Third Party Payments,Other establishments,12/05/2020,6364348,65.33,VENDOR,BLUEBELL NURSING HOME,100112
Portsmouth City Council,PCC,Adult Social Care,Social Care Activities,Adult Services,Third Party Payments,Other establishments,12/05/2020,6364348,61.11,VENDOR,BLUEBELL NURSING HOME,100112
Portsmouth City Council,PCC,Children's and Education Services,Children Looked After,Children's Services and Education,Third Party Payments,Other establishments,13/05/2020,6364575,300,VENDOR,ADVANCED ADOLESCENT CARE SOLUTIONS LTD,145305
Portsmouth City Council,PCC,Other,Suspense and Capital Schemes,Capital - Environment & Climate Change,Capital Charges,Capital Expenditure (WIP),04/05/2020,6362970,106288.25,PARTNERSHIP,VSBW JOINT VENTURE,146068
Portsmouth City Council,PCC,Other,Suspense and Capital Schemes,Capital - Environment & Climate Change,Capital Charges,Capital Expenditure (WIP),04/05/2020,6362970,-106288.25,PARTNERSHIP,VSBW JOINT VENTURE,146068
Portsmouth City Council,PCC,Other,Suspense and Capital Schemes,Capital - Environment & Climate Change,Capital Charges,Capital Expenditure (WIP),04/05/2020,6362970,106288.25,PARTNERSHIP,VSBW JOINT VENTURE,146068
Portsmouth City Council,PCC,Cultural and Related Services,Library Service,"Culture, Leisure & Regulatory Services",Supplies and Services,Communications and computing,22/05/2020,6366555,2843.76,VENDOR,INSIGHT MEDIA INTERNET LTD,104536
Portsmouth City Council,PCC,Housing Services,Homelessness,"Housing, Neighbourhood and Building Services",Third Party Payments,Private contractors,20/05/2020,6366185,280,VENDOR,PORTSMOUTH.COM REMOVALS LTD,137147
Portsmouth City Council,PCC,Housing Services,Homelessness,"Housing, Neighbourhood and Building Services",Supplies and Services,Catering,22/05/2020,6366645,482.5,VENDOR,THE WICKS COSHAM LTD,146825
Portsmouth City Council,PCC,Adult Social Care,Information and Early Intervention,Adult Services,Third Party Payments,Other establishments,11/05/2020,6364133,19981.5,VENDOR,APETITO LTD,100127
Portsmouth City Council,PCC,Adult Social Care,Information and Early Intervention,Adult Services,Third Party Payments,Other establishments,11/05/2020,6364133,1267.5,VENDOR,APETITO LTD,100127
Portsmouth City Council,PCC,Adult Social Care,Information and Early Intervention,Adult Services,Income,Customer and client receipts,11/05/2020,6364133,-19981.5,VENDOR,APETITO LTD,100127
Portsmouth City Council,PCC,Adult Social Care,Information and Early Intervention,Adult Services,Income,Customer and client receipts,11/05/2020,6364133,-1267.5,VENDOR,APETITO LTD,100127
Portsmouth City Council,PCC,Housing Services,Homelessness,"Housing, Neighbourhood and Building Services",Supplies and Services,Catering,01/05/2020,6362826,920.4,VENDOR,THE WICKS COSHAM LTD,146825
Portsmouth City Council,PCC,Housing Services,Homelessness,"Housing, Neighbourhood and Building Services",Supplies and Services,Catering,07/05/2020,6364124,826,VENDOR,THE WICKS COSHAM LTD,146825
Portsmouth City Council,PCC,Support Service / Transparency Costs Unallocated,Information Services,Corporate Services,Employees,Direct employee expenses,05/05/2020,6363261,4218.75,VENDOR,HAYS SPECIALIST RECRUITMENT LIMITED,100045
Portsmouth City Council,PCC,Support Service / Transparency Costs Unallocated,Information Services,Corporate Services,Employees,Direct employee expenses,11/05/2020,6364262,4218.75,VENDOR,HAYS SPECIALIST RECRUITMENT LIMITED,100045
Portsmouth City Council,PCC,Support Service / Transparency Costs Unallocated,Information Services,Corporate Services,Employees,Direct employee expenses,15/05/2020,6365400,4218.75,VENDOR,HAYS SPECIALIST RECRUITMENT LIMITED,100045
Portsmouth City Council,PCC,Housing Services,Homelessness,"Housing, Neighbourhood and Building Services",Supplies and Services,Catering,22/05/2020,6366645,425.4,VENDOR,THE WICKS COSHAM LTD,146825
Portsmouth City Council,PCC,Housing Services,Homelessness,"Housing, Neighbourhood and Building Services",Supplies and Services,Catering,26/05/2020,6366779,735,VENDOR,THE WICKS COSHAM LTD,146825
Portsmouth City Council,PCC,Other,Suspense and Capital Schemes,Capital - Traffic & Transportation,Capital Charges,Capital Expenditure (WIP),05/05/2020,6362989,1890,VENDOR,AHR BUILDING CONSULTANCY LTD,146225
Portsmouth City Council,PCC,Housing Services,Homelessness,"Housing, Neighbourhood and Building Services",Supplies and Services,Catering,26/05/2020,6366779,783.8,VENDOR,THE WICKS COSHAM LTD,146825
Portsmouth City Council,PCC,Planning Services,Business support,Regeneration,Supplies and Services,Grants and subscriptions,05/05/2020,6363427,10000,VENDOR,PORTSMOUTH HARBOUR MARINE CIC,146883
Portsmouth City Council,PCC,Housing Services,Homelessness,"Housing, Neighbourhood and Building Services",Supplies and Services,Catering,22/05/2020,6366645,601,VENDOR,THE WICKS COSHAM LTD,146825
Portsmouth City Council,PCC,Housing Services,Homelessness,"Housing, Neighbourhood and Building Services",Third Party Payments,Private contractors,20/05/2020,6366185,380,VENDOR,PORTSMOUTH.COM REMOVALS LTD,137147
Portsmouth City Council,PCC,Housing Services,Homelessness,"Housing, Neighbourhood and Building Services",Supplies and Services,Catering,22/05/2020,6366645,665.6,VENDOR,THE WICKS COSHAM LTD,146825
Portsmouth City Council,PCC,Housing Services,Homelessness,"Housing, Neighbourhood and Building Services",Third Party Payments,Private contractors,20/05/2020,6366185,480,VENDOR,PORTSMOUTH.COM REMOVALS LTD,137147
Portsmouth City Council,PCC,Housing Services,Homelessness,"Housing, Neighbourhood and Building Services",Third Party Payments,Private contractors,20/05/2020,6366185,380,VENDOR,PORTSMOUTH.COM REMOVALS LTD,137147
Portsmouth City Council,PCC,Housing Services,Homelessness,"Housing, Neighbourhood and Building Services",Third Party Payments,Private contractors,20/05/2020,6366185,380,VENDOR,PORTSMOUTH.COM REMOVALS LTD,137147
Portsmouth City Council,PCC,Other,Suspense and Capital Schemes,Capital - Housing General Fund,Capital Charges,Capital Expenditure (WIP),15/05/2020,6365440,979.2,VENDOR,SOLAR ADVANCED SYSTEMS LTD,144761
Portsmouth City Council,PCC,Children's and Education Services,Family Support Services,Children's Services and Education,Third Party Payments,Private contractors,01/05/2020,6362807,1249.68,VENDOR,RESTORE - RECORD STORAGE MANAGEMENT LIMITED,142168
Portsmouth City Council,PCC,Central Services,Coroners' Court Services,"Culture, Leisure & Regulatory Services",Supplies and Services,Services,04/05/2020,6362955,634.17,VENDOR,SOUTHAMPTON UNIVERSITY HOSPITALS,107921
Portsmouth City Council,PCC,Solent LEP,Business support,OTHER,Third Party Payments,Private contractors,20/05/2020,6365968,1120,VENDOR,DEEP SOUTH MEDIA LTD,143218
Portsmouth City Council,PCC,Children's and Education Services,Safeguarding Children and Young Peoples Services,Children's Services and Education,Third Party Payments,Other establishments,12/05/2020,6364519,-31.48,VENDOR,SAKURA CARE LIMITED,144940
Portsmouth City Council,PCC,Children's and Education Services,Safeguarding Children and Young Peoples Services,Children's Services and Education,Third Party Payments,Other establishments,12/05/2020,6364519,471.43,VENDOR,SAKURA CARE LIMITED,144940
Portsmouth City Council,PCC,Children's and Education Services,Safeguarding Children and Young Peoples Services,Children's Services and Education,Third Party Payments,Other establishments,12/05/2020,6364519,3707.15,VENDOR,SAKURA CARE LIMITED,144940
Portsmouth City Council,PCC,Children's and Education Services,Safeguarding Children and Young Peoples Services,Children's Services and Education,Third Party Payments,Other establishments,12/05/2020,6364519,-31.48,VENDOR,SAKURA CARE LIMITED,144940
Portsmouth City Council,PCC,Children's and Education Services,Safeguarding Children and Young Peoples Services,Children's Services and Education,Third Party Payments,Other establishments,12/05/2020,6364519,471.43,VENDOR,SAKURA CARE LIMITED,144940
Portsmouth City Council,PCC,Children's and Education Services,Safeguarding Children and Young Peoples Services,Children's Services and Education,Third Party Payments,Other establishments,12/05/2020,6364519,3707.15,VENDOR,SAKURA CARE LIMITED,144940
Portsmouth City Council,PCC,Cultural and Related Services,Tourism,"Culture, Leisure & Regulatory Services",Third Party Payments,Private contractors,04/05/2020,6362927,1246.59,VENDOR,LIFESTYLE MEDIA GROUP LIMITED,131557
Portsmouth City Council,PCC,Housing Revenue Account,Special Services,"Housing, Neighbourhood and Building Services",Premises-Related Expenditure,Water Services,15/05/2020,6365427,359.37,VENDOR,PORTSMOUTH WATER LTD,100253
Portsmouth City Council,PCC,Housing Revenue Account,Special Services,"Housing, Neighbourhood and Building Services",Premises-Related Expenditure,Water Services,26/05/2020,6366757,236.97,VENDOR,PORTSMOUTH WATER LTD,100253
Portsmouth City Council,PCC,Housing Revenue Account,Special Services,"Housing, Neighbourhood and Building Services",Premises-Related Expenditure,Water Services,15/05/2020,6365427,377.34,VENDOR,PORTSMOUTH WATER LTD,100253
Portsmouth City Council,PCC,Housing Revenue Account,Special Services,"Housing, Neighbourhood and Building Services",Premises-Related Expenditure,Water Services,15/05/2020,6365427,403.21,VENDOR,PORTSMOUTH WATER LTD,100253
Portsmouth City Council,PCC,Housing Revenue Account,Special Services,"Housing, Neighbourhood and Building Services",Premises-Related Expenditure,Water Services,26/05/2020,6366757,541.31,VENDOR,PORTSMOUTH WATER LTD,100253
Portsmouth City Council,PCC,Support Service / Transparency Costs Unallocated,Personnel,Corporate Services,Employees,Direct employee expenses,01/05/2020,6362701,126874.21,VENDOR,COMENSURA LTD,140265
Portsmouth City Council,PCC,Support Service / Transparency Costs Unallocated,Personnel,Corporate Services,Employees,Direct employee expenses,07/05/2020,6363756,110941.21,VENDOR,COMENSURA LTD,140265
Portsmouth City Council,PCC,Support Service / Transparency Costs Unallocated,Personnel,Corporate Services,Employees,Direct employee expenses,15/05/2020,6365301,126057.44,VENDOR,COMENSURA LTD,140265
Portsmouth City Council,PCC,Support Service / Transparency Costs Unallocated,Personnel,Corporate Services,Employees,Direct employee expenses,22/05/2020,6366499,126874.22,VENDOR,COMENSURA LTD,140265
Portsmouth City Council,PCC,Support Service / Transparency Costs Unallocated,Personnel,Corporate Services,Employees,Direct employee expenses,29/05/2020,6367450,99168.27,VENDOR,COMENSURA LTD,140265
Portsmouth City Council,PCC,Children's and Education Services,Special Schools,Children's Services and Education,Third Party Payments,Other establishments,26/05/2020,6366678,5890.32,VENDOR,COGNITA SCHOOLS LIMITED T/A KINGSCOURT PRIVATE SCHOOL,146861
Portsmouth City Council,PCC,Support Service / Transparency Costs Unallocated,AMS,Regeneration,Supplies and Services,Communications and computing,18/05/2020,6365491,432.86,VENDOR,CIVICA UK LTD,104001
Portsmouth City Council,PCC,Support Service / Transparency Costs Unallocated,AMS,Regeneration,Supplies and Services,Communications and computing,18/05/2020,6365491,193.18,VENDOR,CIVICA UK LTD,104001
Portsmouth City Council,PCC,Children's and Education Services,Management and Support Services,Children's Services and Education,Supplies and Services,Communications and computing,18/05/2020,6365557,1050,SOLETRADER,Classified as 'personal data' (under the Data Protection Act 2018),144686
Portsmouth City Council,PCC,Costs below Net Cost of Services,Trading,Regeneration,Supplies and Services,Services,04/05/2020,6362964,2092.91,VENDOR,THE OYSTER PARTNERSHIP,120530
Portsmouth City Council,PCC,Costs below Net Cost of Services,Trading,Regeneration,Supplies and Services,Services,19/05/2020,6365822,1697.25,VENDOR,THE OYSTER PARTNERSHIP,120530
Portsmouth City Council,PCC,Other,Suspense and Capital Schemes,Capital - Environment & Climate Change,Capital Charges,Capital Expenditure (WIP),07/05/2020,6364068,87900.19,VENDOR,HASKONINGDHV UK LIMITED,109400
Portsmouth City Council,PCC,Other,Suspense and Capital Schemes,Capital - Environment & Climate Change,Capital Charges,Capital Expenditure (WIP),07/05/2020,6364068,50000,VENDOR,HASKONINGDHV UK LIMITED,109400
Portsmouth City Council,PCC,Other,Suspense and Capital Schemes,Capital - Environment & Climate Change,Capital Charges,Capital Expenditure (WIP),15/05/2020,6365396,33467.33,VENDOR,HASKONINGDHV UK LIMITED,109400
Portsmouth City Council,PCC,Costs below Net Cost of Services,Trading,Regeneration,Supplies and Services,Services,26/05/2020,6366777,1338.09,VENDOR,THE OYSTER PARTNERSHIP,120530
Portsmouth City Council,PCC,Costs below Net Cost of Services,Trading,Regeneration,Supplies and Services,Services,26/05/2020,6366777,2244.75,VENDOR,THE OYSTER PARTNERSHIP,120530
Portsmouth City Council,PCC,Other,Suspense and Capital Schemes,Capital - Environment & Climate Change,Capital Charges,Capital Expenditure (WIP),22/05/2020,6366543,113395.94,VENDOR,HASKONINGDHV UK LIMITED,109400
Portsmouth City Council,PCC,Highways and Transport Services,"Airports, Harbours and Toll Facilities",Portsmouth International Port,Third Party Payments,Private contractors,14/05/2020,6365234,2450,VENDOR,LYMINGTON TECHNICAL SERVICES LTD,129180
Portsmouth City Council,PCC,Other,Suspense and Capital Schemes,Capital - Housing General Fund,Capital Charges,REFCUS,05/05/2020,6363470,5950,VENDOR,SHEPHERDS (HOSPITAL EQUIPMENT) LTD,116305
Portsmouth City Council,PCC,Children's and Education Services,Children Looked After,Children's Services and Education,Third Party Payments,Other establishments,13/05/2020,6364575,8000,VENDOR,ADVANCED ADOLESCENT CARE SOLUTIONS LTD,145305
Portsmouth City Council,PCC,Children's and Education Services,Children Looked After,Children's Services and Education,Third Party Payments,Other establishments,15/05/2020,6365278,-1000,VENDOR,ADVANCED ADOLESCENT CARE SOLUTIONS LTD,145305
Portsmouth City Council,PCC,Children's and Education Services,Children Looked After,Children's Services and Education,Third Party Payments,Other establishments,15/05/2020,6365278,29000,VENDOR,ADVANCED ADOLESCENT CARE SOLUTIONS LTD,145305
Portsmouth City Council,PCC,Children's and Education Services,Children Looked After,Children's Services and Education,Third Party Payments,Other establishments,26/05/2020,6366743,-16275,VENDOR,HILLCREST CHILDRENS SERVICES LIMITED,117913
Portsmouth City Council,PCC,Children's and Education Services,Children Looked After,Children's Services and Education,Third Party Payments,Other establishments,26/05/2020,6366743,-1525,VENDOR,HILLCREST CHILDRENS SERVICES LIMITED,117913
Portsmouth City Council,PCC,Children's and Education Services,Children Looked After,Children's Services and Education,Third Party Payments,Other establishments,26/05/2020,6366743,-15000,VENDOR,HILLCREST CHILDRENS SERVICES LIMITED,117913
Portsmouth City Council,PCC,Children's and Education Services,Children Looked After,Children's Services and Education,Third Party Payments,Other establishments,26/05/2020,6366743,-15500,VENDOR,HILLCREST CHILDRENS SERVICES LIMITED,117913
Portsmouth City Council,PCC,Children's and Education Services,Children Looked After,Children's Services and Education,Third Party Payments,Other establishments,26/05/2020,6366743,-16275,VENDOR,HILLCREST CHILDRENS SERVICES LIMITED,117913
Portsmouth City Council,PCC,Children's and Education Services,Children Looked After,Children's Services and Education,Third Party Payments,Other establishments,29/05/2020,6367514,-14700,VENDOR,HILLCREST CHILDRENS SERVICES LIMITED,117913
Portsmouth City Council,PCC,Children's and Education Services,Children Looked After,Children's Services and Education,Third Party Payments,Other establishments,26/05/2020,6366743,-16275,VENDOR,HILLCREST CHILDRENS SERVICES LIMITED,117913
Portsmouth City Council,PCC,Children's and Education Services,Children Looked After,Children's Services and Education,Third Party Payments,Other establishments,26/05/2020,6366743,-15750,VENDOR,HILLCREST CHILDRENS SERVICES LIMITED,117913
Portsmouth City Council,PCC,Children's and Education Services,Children Looked After,Children's Services and Education,Third Party Payments,Other establishments,26/05/2020,6366743,-16275,VENDOR,HILLCREST CHILDRENS SERVICES LIMITED,117913
Portsmouth City Council,PCC,Children's and Education Services,Children Looked After,Children's Services and Education,Third Party Payments,Other establishments,26/05/2020,6366743,-15750,VENDOR,HILLCREST CHILDRENS SERVICES LIMITED,117913
Portsmouth City Council,PCC,Children's and Education Services,Children Looked After,Children's Services and Education,Third Party Payments,Other establishments,26/05/2020,6366743,-16275,VENDOR,HILLCREST CHILDRENS SERVICES LIMITED,117913
Portsmouth City Council,PCC,Children's and Education Services,Children Looked After,Children's Services and Education,Third Party Payments,Other establishments,26/05/2020,6366743,-16275,VENDOR,HILLCREST CHILDRENS SERVICES LIMITED,117913
Portsmouth City Council,PCC,Children's and Education Services,Children Looked After,Children's Services and Education,Third Party Payments,Other establishments,26/05/2020,6366743,-15750,VENDOR,HILLCREST CHILDRENS SERVICES LIMITED,117913
Portsmouth City Council,PCC,Children's and Education Services,Children Looked After,Children's Services and Education,Third Party Payments,Other establishments,26/05/2020,6366743,-16275,VENDOR,HILLCREST CHILDRENS SERVICES LIMITED,117913
Portsmouth City Council,PCC,Children's and Education Services,Children Looked After,Children's Services and Education,Third Party Payments,Other establishments,26/05/2020,6366743,-15750,VENDOR,HILLCREST CHILDRENS SERVICES LIMITED,117913
Portsmouth City Council,PCC,Children's and Education Services,Children Looked After,Children's Services and Education,Third Party Payments,Other establishments,26/05/2020,6366743,-16275,VENDOR,HILLCREST CHILDRENS SERVICES LIMITED,117913
Portsmouth City Council,PCC,Children's and Education Services,Children Looked After,Children's Services and Education,Third Party Payments,Other establishments,26/05/2020,6366743,20189.86,VENDOR,HILLCREST CHILDRENS SERVICES LIMITED,117913
Portsmouth City Council,PCC,Children's and Education Services,Children Looked After,Children's Services and Education,Third Party Payments,Other establishments,29/05/2020,6367514,18236,VENDOR,HILLCREST CHILDRENS SERVICES LIMITED,117913
Portsmouth City Council,PCC,Children's and Education Services,Children Looked After,Children's Services and Education,Third Party Payments,Other establishments,26/05/2020,6366743,20189.86,VENDOR,HILLCREST CHILDRENS SERVICES LIMITED,117913
Portsmouth City Council,PCC,Children's and Education Services,Children Looked After,Children's Services and Education,Third Party Payments,Other establishments,26/05/2020,6366743,19538.57,VENDOR,HILLCREST CHILDRENS SERVICES LIMITED,117913
Portsmouth City Council,PCC,Children's and Education Services,Children Looked After,Children's Services and Education,Third Party Payments,Other establishments,26/05/2020,6366743,20189.86,VENDOR,HILLCREST CHILDRENS SERVICES LIMITED,117913
Portsmouth City Council,PCC,Children's and Education Services,Children Looked After,Children's Services and Education,Third Party Payments,Other establishments,26/05/2020,6366743,19538.57,VENDOR,HILLCREST CHILDRENS SERVICES LIMITED,117913
Portsmouth City Council,PCC,Children's and Education Services,Children Looked After,Children's Services and Education,Third Party Payments,Other establishments,26/05/2020,6366743,20189.86,VENDOR,HILLCREST CHILDRENS SERVICES LIMITED,117913
Portsmouth City Council,PCC,Children's and Education Services,Children Looked After,Children's Services and Education,Third Party Payments,Other establishments,26/05/2020,6366743,20189.86,VENDOR,HILLCREST CHILDRENS SERVICES LIMITED,117913
Portsmouth City Council,PCC,Children's and Education Services,Children Looked After,Children's Services and Education,Third Party Payments,Other establishments,26/05/2020,6366743,19538.57,VENDOR,HILLCREST CHILDRENS SERVICES LIMITED,117913
Portsmouth City Council,PCC,Children's and Education Services,Children Looked After,Children's Services and Education,Third Party Payments,Other establishments,26/05/2020,6366743,20189.86,VENDOR,HILLCREST CHILDRENS SERVICES LIMITED,117913
Portsmouth City Council,PCC,Children's and Education Services,Children Looked After,Children's Services and Education,Third Party Payments,Other establishments,26/05/2020,6366743,19538.57,VENDOR,HILLCREST CHILDRENS SERVICES LIMITED,117913
Portsmouth City Council,PCC,Children's and Education Services,Children Looked After,Children's Services and Education,Third Party Payments,Other establishments,26/05/2020,6366743,20189.86,VENDOR,HILLCREST CHILDRENS SERVICES LIMITED,117913
Portsmouth City Council,PCC,Children's and Education Services,Children Looked After,Children's Services and Education,Third Party Payments,Other establishments,26/05/2020,6366743,20189.86,VENDOR,HILLCREST CHILDRENS SERVICES LIMITED,117913
Portsmouth City Council,PCC,Children's and Education Services,Children Looked After,Children's Services and Education,Third Party Payments,Other establishments,26/05/2020,6366743,18236,VENDOR,HILLCREST CHILDRENS SERVICES LIMITED,117913
Portsmouth City Council,PCC,Children's and Education Services,Children Looked After,Children's Services and Education,Third Party Payments,Other establishments,26/05/2020,6366743,20189.86,VENDOR,HILLCREST CHILDRENS SERVICES LIMITED,117913
Portsmouth City Council,PCC,Children's and Education Services,Children Looked After,Children's Services and Education,Third Party Payments,Other establishments,26/05/2020,6366743,19538.57,VENDOR,HILLCREST CHILDRENS SERVICES LIMITED,117913
Portsmouth City Council,PCC,Children's and Education Services,Children Looked After,Children's Services and Education,Third Party Payments,Other establishments,26/05/2020,6366743,20189.86,VENDOR,HILLCREST CHILDRENS SERVICES LIMITED,117913
Portsmouth City Council,PCC,Children's and Education Services,Children Looked After,Children's Services and Education,Third Party Payments,Other establishments,26/05/2020,6366743,19538.57,VENDOR,HILLCREST CHILDRENS SERVICES LIMITED,117913
Portsmouth City Council,PCC,Children's and Education Services,Children Looked After,Children's Services and Education,Third Party Payments,Other establishments,26/05/2020,6366743,17723.85,VENDOR,HILLCREST CHILDRENS SERVICES LIMITED,117913
Portsmouth City Council,PCC,Children's and Education Services,Children Looked After,Children's Services and Education,Third Party Payments,Other establishments,26/05/2020,6366743,-16275,VENDOR,HILLCREST CHILDRENS SERVICES LIMITED,117913
Portsmouth City Council,PCC,Children's and Education Services,Children Looked After,Children's Services and Education,Third Party Payments,Other establishments,26/05/2020,6366743,-14700,VENDOR,HILLCREST CHILDRENS SERVICES LIMITED,117913
Portsmouth City Council,PCC,Children's and Education Services,Children Looked After,Children's Services and Education,Third Party Payments,Other establishments,26/05/2020,6366743,-16275,VENDOR,HILLCREST CHILDRENS SERVICES LIMITED,117913
Portsmouth City Council,PCC,Children's and Education Services,Children Looked After,Children's Services and Education,Third Party Payments,Other establishments,26/05/2020,6366743,-15750,VENDOR,HILLCREST CHILDRENS SERVICES LIMITED,117913
Portsmouth City Council,PCC,Support Service / Transparency Costs Unallocated,AMS,Regeneration,Supplies and Services,Services,05/05/2020,6363410,819.8,VENDOR,PARKER TORRINGTON LTD,106526
Portsmouth City Council,PCC,Housing Services,Homelessness,"Housing, Neighbourhood and Building Services",Supplies and Services,Grants and subscriptions,29/05/2020,6367513,700,VENDOR,ONE TAKE SOLUTIONS LTD,145350
Portsmouth City Council,PCC,Adult Social Care,Physical Support Older People (85+),Adult Services,Third Party Payments,Other establishments,01/05/2020,6362812,17388.48,VENDOR,SEVACARE (UK) LTD,136163
Portsmouth City Council,PCC,Adult Social Care,Physical Support Older People (85+),Adult Services,Third Party Payments,Other establishments,01/05/2020,6362812,11497.92,VENDOR,SEVACARE (UK) LTD,136163
Portsmouth City Council,PCC,Adult Social Care,Physical Support Older People (85+),Adult Services,Third Party Payments,Other establishments,04/05/2020,6362950,20616.96,VENDOR,SEVACARE (UK) LTD,136163
Portsmouth City Council,PCC,Adult Social Care,Physical Support Older People (85+),Adult Services,Third Party Payments,Other establishments,01/05/2020,6362812,17388.48,VENDOR,SEVACARE (UK) LTD,136163
Portsmouth City Council,PCC,Support Service / Transparency Costs Unallocated,Personnel,Corporate Services,Employees,Indirect employee expenses,01/05/2020,6362795,680,VENDOR,MG CARE EXECUTIVE LTD,145566
Portsmouth City Council,PCC,Support Service / Transparency Costs Unallocated,Personnel,Corporate Services,Employees,Indirect employee expenses,01/05/2020,6362795,76,VENDOR,MG CARE EXECUTIVE LTD,145566
Portsmouth City Council,PCC,Housing Revenue Account,Special Services,"Housing, Neighbourhood and Building Services",Employees,Direct employee expenses,13/05/2020,6365005,3768.4,VENDOR,SEVACARE (UK) LTD,136163
Portsmouth City Council,PCC,Support Service / Transparency Costs Unallocated,Personnel,Corporate Services,Employees,Indirect employee expenses,22/05/2020,6366571,480,VENDOR,MG CARE EXECUTIVE LTD,145566
Portsmouth City Council,PCC,Support Service / Transparency Costs Unallocated,Personnel,Corporate Services,Employees,Indirect employee expenses,22/05/2020,6366571,52,VENDOR,MG CARE EXECUTIVE LTD,145566
Portsmouth City Council,PCC,Costs below Net Cost of Services,Trading,Regeneration,Third Party Payments,Private contractors,29/05/2020,6367627,1616,VENDOR,THE MINISTRY OF DEFENCE,114001
Portsmouth City Council,PCC,Children's and Education Services,Asylum seekers,Children's Services and Education,Third Party Payments,Other establishments,28/05/2020,6367417,248.15,VENDOR,SILVER BIRCH CARE LIMITED,146315
Portsmouth City Council,PCC,Children's and Education Services,Asylum seekers,Children's Services and Education,Third Party Payments,Other establishments,28/05/2020,6367417,27535.72,VENDOR,SILVER BIRCH CARE LIMITED,146315
Portsmouth City Council,PCC,Children's and Education Services,Asylum seekers,Children's Services and Education,Third Party Payments,Other establishments,28/05/2020,6367417,-288.83,VENDOR,SILVER BIRCH CARE LIMITED,146315
Portsmouth City Council,PCC,Children's and Education Services,Asylum seekers,Children's Services and Education,Third Party Payments,Other establishments,28/05/2020,6367417,3750,VENDOR,SILVER BIRCH CARE LIMITED,146315
Portsmouth City Council,PCC,Children's and Education Services,Children Looked After,Children's Services and Education,Third Party Payments,Other establishments,27/05/2020,6367207,-291,VENDOR,SILVER BIRCH CARE LIMITED,146315
Portsmouth City Council,PCC,Children's and Education Services,Children Looked After,Children's Services and Education,Third Party Payments,Other establishments,27/05/2020,6367207,3783.85,VENDOR,SILVER BIRCH CARE LIMITED,146315
Portsmouth City Council,PCC,Adult Social Care,Support with Memory and Cognition Older People (65 - 74),Adult Services,Supplies and Services,Catering,05/05/2020,6363028,884.86,VENDOR,BFS GROUP LTD T/A BIDFOOD,100106
Portsmouth City Council,PCC,Adult Social Care,Support with Memory and Cognition Older People (65 - 74),Adult Services,Supplies and Services,Catering,14/05/2020,6365118,875.36,VENDOR,BFS GROUP LTD T/A BIDFOOD,100106
Portsmouth City Council,PCC,Housing Services,Homelessness,"Housing, Neighbourhood and Building Services",Supplies and Services,Grants and subscriptions,27/05/2020,6366834,560,VENDOR,BARRAKAV PROPERTIES,146896
Portsmouth City Council,PCC,Other,Suspense and Capital Schemes,"Housing, Neighbourhood and Building Services",Third Party Payments,Private contractors,27/05/2020,6366995,450000,OTHER LOCAL AUTHORITY,HAMPSHIRE COUNTY COUNCIL,100030
Portsmouth City Council,PCC,Children's and Education Services,Children Looked After,Children's Services and Education,Third Party Payments,Other establishments,26/05/2020,6366743,12374.43,VENDOR,HILLCREST CHILDRENS SERVICES LIMITED,117913
Portsmouth City Council,PCC,Children's and Education Services,Children Looked After,Children's Services and Education,Third Party Payments,Other establishments,26/05/2020,6366743,20189.86,VENDOR,HILLCREST CHILDRENS SERVICES LIMITED,117913
Portsmouth City Council,PCC,Children's and Education Services,Special Schools,Children's Services and Education,Third Party Payments,Other establishments,22/05/2020,6366547,4827.14,VENDOR,HILLCREST CHILDRENS SERVICES LIMITED,117913
Portsmouth City Council,PCC,Housing Services,Homelessness,"Housing, Neighbourhood and Building Services",Supplies and Services,Grants and subscriptions,13/05/2020,6364606,560,VENDOR,BARRAKAV PROPERTIES,146896
Portsmouth City Council,PCC,Housing Services,Homelessness,"Housing, Neighbourhood and Building Services",Supplies and Services,Grants and subscriptions,19/05/2020,6365693,1200,SOLETRADER,Classified as 'personal data' (under the Data Protection Act 2018),146868
Portsmouth City Council,PCC,Housing Services,Homelessness,"Housing, Neighbourhood and Building Services",Supplies and Services,Catering,07/05/2020,6363746,352.91,VENDOR,BFS GROUP LTD T/A BIDFOOD,100106
Portsmouth City Council,PCC,Costs below Net Cost of Services,Trading,Finance & Resources,Supplies and Services,Miscellaneous expenses,20/05/2020,6366313,30025,VENDOR,ZURICH INSURANCE PLC,102966
Portsmouth City Council,PCC,Planning Services,Business support,Regeneration,Premises-Related Expenditure,"Repairs, alterations and maintenance of buildings",12/05/2020,6364528,20.16,VENDOR,SIX DEGREES TECHNOLOGY GROUP LTD,137034
Portsmouth City Council,PCC,Planning Services,Business support,Regeneration,Premises-Related Expenditure,"Repairs, alterations and maintenance of buildings",12/05/2020,6364528,37.32,VENDOR,SIX DEGREES TECHNOLOGY GROUP LTD,137034
Portsmouth City Council,PCC,Cultural and Related Services,Recreation and Sport,"Culture, Leisure & Regulatory Services",Premises-Related Expenditure,"Repairs, alterations and maintenance of buildings",12/05/2020,6364528,37.32,VENDOR,SIX DEGREES TECHNOLOGY GROUP LTD,137034
Portsmouth City Council,PCC,Support Service / Transparency Costs Unallocated,LLM,"Housing, Neighbourhood and Building Services",Premises-Related Expenditure,"Repairs, alterations and maintenance of buildings",12/05/2020,6364528,57.48,VENDOR,SIX DEGREES TECHNOLOGY GROUP LTD,137034
Portsmouth City Council,PCC,Support Service / Transparency Costs Unallocated,LLM,"Housing, Neighbourhood and Building Services",Premises-Related Expenditure,"Repairs, alterations and maintenance of buildings",12/05/2020,6364528,18.69,VENDOR,SIX DEGREES TECHNOLOGY GROUP LTD,137034
Portsmouth City Council,PCC,Support Service / Transparency Costs Unallocated,LLM,"Housing, Neighbourhood and Building Services",Premises-Related Expenditure,"Repairs, alterations and maintenance of buildings",12/05/2020,6364528,18.66,VENDOR,SIX DEGREES TECHNOLOGY GROUP LTD,137034
Portsmouth City Council,PCC,Support Service / Transparency Costs Unallocated,LLM,"Housing, Neighbourhood and Building Services",Premises-Related Expenditure,"Repairs, alterations and maintenance of buildings",12/05/2020,6364528,18.67,VENDOR,SIX DEGREES TECHNOLOGY GROUP LTD,137034
Portsmouth City Council,PCC,Support Service / Transparency Costs Unallocated,LLM,"Housing, Neighbourhood and Building Services",Premises-Related Expenditure,"Repairs, alterations and maintenance of buildings",12/05/2020,6364528,40.32,VENDOR,SIX DEGREES TECHNOLOGY GROUP LTD,137034
Portsmouth City Council,PCC,Support Service / Transparency Costs Unallocated,LLM,"Housing, Neighbourhood and Building Services",Premises-Related Expenditure,"Repairs, alterations and maintenance of buildings",12/05/2020,6364528,40.32,VENDOR,SIX DEGREES TECHNOLOGY GROUP LTD,137034
Portsmouth City Council,PCC,Support Service / Transparency Costs Unallocated,LLM,"Housing, Neighbourhood and Building Services",Premises-Related Expenditure,"Repairs, alterations and maintenance of buildings",12/05/2020,6364528,20.16,VENDOR,SIX DEGREES TECHNOLOGY GROUP LTD,137034
Portsmouth City Council,PCC,Support Service / Transparency Costs Unallocated,LLM,"Housing, Neighbourhood and Building Services",Premises-Related Expenditure,"Repairs, alterations and maintenance of buildings",12/05/2020,6364528,20.16,VENDOR,SIX DEGREES TECHNOLOGY GROUP LTD,137034
Portsmouth City Council,PCC,Support Service / Transparency Costs Unallocated,LLM,"Housing, Neighbourhood and Building Services",Premises-Related Expenditure,"Repairs, alterations and maintenance of buildings",12/05/2020,6364528,20.17,VENDOR,SIX DEGREES TECHNOLOGY GROUP LTD,137034
Portsmouth City Council,PCC,Support Service / Transparency Costs Unallocated,LLM,"Housing, Neighbourhood and Building Services",Premises-Related Expenditure,"Repairs, alterations and maintenance of buildings",12/05/2020,6364528,18.66,VENDOR,SIX DEGREES TECHNOLOGY GROUP LTD,137034
Portsmouth City Council,PCC,Support Service / Transparency Costs Unallocated,LLM,"Housing, Neighbourhood and Building Services",Premises-Related Expenditure,"Repairs, alterations and maintenance of buildings",12/05/2020,6364528,18.66,VENDOR,SIX DEGREES TECHNOLOGY GROUP LTD,137034
Portsmouth City Council,PCC,Housing Revenue Account,Repairs and Maintenance,"Housing, Neighbourhood and Building Services",Premises-Related Expenditure,"Repairs, alterations and maintenance of buildings",12/05/2020,6364528,1485.73,VENDOR,SIX DEGREES TECHNOLOGY GROUP LTD,137034
Portsmouth City Council,PCC,Children's and Education Services,Children Looked After,Children's Services and Education,Third Party Payments,Private contractors,13/05/2020,6364870,682,VENDOR,LJ WASTE & MAINTENANCE LTD,146759
Portsmouth City Council,PCC,Other,Suspense and Capital Schemes,Capital - Traffic & Transportation,Capital Charges,Capital Expenditure (WIP),29/05/2020,6367553,1236,COMPANY,POWERWORKS MAINTENANCE SERVICES LTD,141178
Portsmouth City Council,PCC,Adult Social Care,Social Care Activities,Adult Services,Third Party Payments,Other establishments,12/05/2020,6364348,65.33,VENDOR,BLUEBELL NURSING HOME,100112
Portsmouth City Council,PCC,Adult Social Care,Social Care Activities,Adult Services,Third Party Payments,Other establishments,12/05/2020,6364348,65.33,VENDOR,BLUEBELL NURSING HOME,100112
Portsmouth City Council,PCC,Adult Social Care,Social Care Activities,Adult Services,Third Party Payments,Other establishments,12/05/2020,6364348,63.22,VENDOR,BLUEBELL NURSING HOME,100112
Portsmouth City Council,PCC,Adult Social Care,Social Care Activities,Adult Services,Third Party Payments,Other establishments,12/05/2020,6364348,65.33,VENDOR,BLUEBELL NURSING HOME,100112
Portsmouth City Council,PCC,Adult Social Care,Social Care Activities,Adult Services,Third Party Payments,Other establishments,12/05/2020,6364348,65.33,VENDOR,BLUEBELL NURSING HOME,100112
Portsmouth City Council,PCC,Adult Social Care,Social Care Activities,Adult Services,Third Party Payments,Other establishments,12/05/2020,6364348,63.22,VENDOR,BLUEBELL NURSING HOME,100112
Portsmouth City Council,PCC,Adult Social Care,Social Care Activities,Adult Services,Third Party Payments,Other establishments,12/05/2020,6364348,65.33,VENDOR,BLUEBELL NURSING HOME,100112
Portsmouth City Council,PCC,Adult Social Care,Social Care Activities,Adult Services,Third Party Payments,Other establishments,12/05/2020,6364348,63.22,VENDOR,BLUEBELL NURSING HOME,100112
Portsmouth City Council,PCC,Other,Suspense and Capital Schemes,"Housing, Neighbourhood and Building Services",Supplies and Services,Miscellaneous expenses,28/05/2020,6367390,12000,VENDOR,KEMP BUILDERS,135362
Portsmouth City Council,PCC,Planning Services,Business support,Regeneration,Supplies and Services,"Equipment, furniture and materials",01/05/2020,6362773,2181,COMPANY,HAMPSHIRE COMMERCIAL REFURBISHMENT LTD,139067
Portsmouth City Council,PCC,Planning Services,Business support,Regeneration,Premises-Related Expenditure,"Repairs, alterations and maintenance of buildings",01/05/2020,6362772,244.47,COMPANY,HAMPSHIRE COMMERCIAL REFURBISHMENT LTD,139067
Portsmouth City Council,PCC,Planning Services,Business support,Regeneration,Premises-Related Expenditure,"Repairs, alterations and maintenance of buildings",01/05/2020,6362772,450,COMPANY,HAMPSHIRE COMMERCIAL REFURBISHMENT LTD,139067
Portsmouth City Council,PCC,Planning Services,Business support,Regeneration,Premises-Related Expenditure,"Repairs, alterations and maintenance of buildings",01/05/2020,6362772,193,COMPANY,HAMPSHIRE COMMERCIAL REFURBISHMENT LTD,139067
Portsmouth City Council,PCC,Planning Services,Business support,Regeneration,Premises-Related Expenditure,"Repairs, alterations and maintenance of buildings",01/05/2020,6362772,400,COMPANY,HAMPSHIRE COMMERCIAL REFURBISHMENT LTD,139067
Portsmouth City Council,PCC,Planning Services,Business support,Regeneration,Premises-Related Expenditure,"Repairs, alterations and maintenance of buildings",11/05/2020,6364260,926,COMPANY,HAMPSHIRE COMMERCIAL REFURBISHMENT LTD,139067
Portsmouth City Council,PCC,Planning Services,Business support,Regeneration,Premises-Related Expenditure,"Repairs, alterations and maintenance of buildings",11/05/2020,6364260,1500,COMPANY,HAMPSHIRE COMMERCIAL REFURBISHMENT LTD,139067
Portsmouth City Council,PCC,Housing Revenue Account,Supervision and Management,"Housing, Neighbourhood and Building Services",Employees,Indirect employee expenses,27/05/2020,6367182,60,VENDOR,RMC EMEA LIMITED,122070
Portsmouth City Council,PCC,Children's and Education Services,Other Children and Family Services,Children's Services and Education,Employees,Indirect employee expenses,27/05/2020,6367182,180,VENDOR,RMC EMEA LIMITED,122070
Portsmouth City Council,PCC,Housing Revenue Account,Supervision and Management,"Housing, Neighbourhood and Building Services",Employees,Indirect employee expenses,27/05/2020,6367182,60,VENDOR,RMC EMEA LIMITED,122070
Portsmouth City Council,PCC,Support Service / Transparency Costs Unallocated,Financial Services,Finance & Resources,Employees,Indirect employee expenses,27/05/2020,6367182,60,VENDOR,RMC EMEA LIMITED,122070
Portsmouth City Council,PCC,Adult Social Care,Learning Disability Support  Adults (18 - 64),Adult Services,Third Party Payments,Other establishments,12/05/2020,6364317,7687.69,VENDOR,AITCH CARE HOMES (LONDON) LIMITED,125606
Portsmouth City Council,PCC,Children's and Education Services,Other Children and Family Services,Children's Services and Education,Employees,Indirect employee expenses,27/05/2020,6367182,60,VENDOR,RMC EMEA LIMITED,122070
Portsmouth City Council,PCC,Support Service / Transparency Costs Unallocated,Personnel,Corporate Services,Employees,Indirect employee expenses,27/05/2020,6367182,347.52,VENDOR,RMC EMEA LIMITED,122070
Portsmouth City Council,PCC,Support Service / Transparency Costs Unallocated,Personnel,Corporate Services,Employees,Indirect employee expenses,27/05/2020,6367182,133.74,VENDOR,RMC EMEA LIMITED,122070
Portsmouth City Council,PCC,Support Service / Transparency Costs Unallocated,Personnel,Corporate Services,Employees,Indirect employee expenses,27/05/2020,6367182,103.77,VENDOR,RMC EMEA LIMITED,122070
Portsmouth City Council,PCC,Children's and Education Services,Other Children and Family Services,Children's Services and Education,Employees,Indirect employee expenses,27/05/2020,6367182,48,VENDOR,RMC EMEA LIMITED,122070
Portsmouth City Council,PCC,Adult Social Care,Learning Disability Support  Adults (18 - 64),Adult Services,Third Party Payments,Other establishments,12/05/2020,6364317,8018.77,VENDOR,AITCH CARE HOMES (LONDON) LIMITED,125606
Portsmouth City Council,PCC,Support Service / Transparency Costs Unallocated,Personnel,Corporate Services,Employees,Indirect employee expenses,27/05/2020,6367182,96,VENDOR,RMC EMEA LIMITED,122070
Portsmouth City Council,PCC,Children's and Education Services,Post 16,Children's Services and Education,Third Party Payments,Other establishments,27/05/2020,6366958,1013,VENDOR,FAREHAM COLLEGE,102182
Portsmouth City Council,PCC,Housing Services,Homelessness,"Housing, Neighbourhood and Building Services",Supplies and Services,Grants and subscriptions,22/05/2020,6366567,505,VENDOR,MACKS & SONS,102366
Portsmouth City Council,PCC,Housing Services,Homelessness,"Housing, Neighbourhood and Building Services",Supplies and Services,Catering,07/05/2020,6363746,520.68,VENDOR,BFS GROUP LTD T/A BIDFOOD,100106
Portsmouth City Council,PCC,Highways and Transport Services,"Airports, Harbours and Toll Facilities",Portsmouth International Port,Premises-Related Expenditure,Cleaning and domestic supplies,28/05/2020,6367405,17138.33,VENDOR,NVIRO LTD,124507
Portsmouth City Council,PCC,Highways and Transport Services,"Airports, Harbours and Toll Facilities",Portsmouth International Port,Premises-Related Expenditure,Cleaning and domestic supplies,28/05/2020,6367405,2167,VENDOR,NVIRO LTD,124507
Portsmouth City Council,PCC,Adult Social Care,Support with Memory and Cognition Older People (65 - 74),Adult Services,Supplies and Services,Catering,28/05/2020,6367330,731.94,VENDOR,BFS GROUP LTD T/A BIDFOOD,100106
Portsmouth City Council,PCC,Children's and Education Services,Family Support Services,Children's Services and Education,Third Party Payments,Private contractors,07/05/2020,6364128,2384,VENDOR,YMCA FAIRTHORNE GROUP,101744
Portsmouth City Council,PCC,Housing Services,Homelessness,"Housing, Neighbourhood and Building Services",Supplies and Services,Catering,28/05/2020,6367330,394.47,VENDOR,BFS GROUP LTD T/A BIDFOOD,100106
Portsmouth City Council,PCC,Children's and Education Services,Family Support Services,Children's Services and Education,Third Party Payments,Private contractors,05/05/2020,6363503,497.08,VENDOR,THE ALARMING CO LTD,101350
Portsmouth City Council,PCC,Housing Services,Homelessness,"Housing, Neighbourhood and Building Services",Supplies and Services,Catering,28/05/2020,6367330,581.53,VENDOR,BFS GROUP LTD T/A BIDFOOD,100106
Portsmouth City Council,PCC,Children's and Education Services,Other Education and Community Budget,Children's Services and Education,Third Party Payments,Other local authorities,27/05/2020,6367228,465.57,VENDOR,ST CATHERINES SCHOOL,103758
Portsmouth City Council,PCC,Children's and Education Services,Other Education and Community Budget,Children's Services and Education,Third Party Payments,Other local authorities,27/05/2020,6367228,370.43,VENDOR,ST CATHERINES SCHOOL,103758
Portsmouth City Council,PCC,Housing Services,Homelessness,"Housing, Neighbourhood and Building Services",Supplies and Services,Catering,28/05/2020,6367330,445.29,VENDOR,BFS GROUP LTD T/A BIDFOOD,100106
Portsmouth City Council,PCC,Children's and Education Services,Children Looked After,Children's Services and Education,Third Party Payments,Other establishments,15/05/2020,6365278,20000,VENDOR,ADVANCED ADOLESCENT CARE SOLUTIONS LTD,145305
Portsmouth City Council,PCC,Highways and Transport Services,"Airports, Harbours and Toll Facilities",Portsmouth International Port,Third Party Payments,Private contractors,28/05/2020,6367419,40,VENDOR,SOUTHERN MARITIME SERVICES LIMITED,120765
Portsmouth City Council,PCC,Highways and Transport Services,"Airports, Harbours and Toll Facilities",Portsmouth International Port,Third Party Payments,Private contractors,28/05/2020,6367419,40,VENDOR,SOUTHERN MARITIME SERVICES LIMITED,120765
Portsmouth City Council,PCC,Highways and Transport Services,"Airports, Harbours and Toll Facilities",Portsmouth International Port,Third Party Payments,Private contractors,28/05/2020,6367419,67.6,VENDOR,SOUTHERN MARITIME SERVICES LIMITED,120765
Portsmouth City Council,PCC,Highways and Transport Services,"Airports, Harbours and Toll Facilities",Portsmouth International Port,Third Party Payments,Private contractors,28/05/2020,6367419,1848.6,VENDOR,SOUTHERN MARITIME SERVICES LIMITED,120765
Portsmouth City Council,PCC,Highways and Transport Services,"Airports, Harbours and Toll Facilities",Portsmouth International Port,Third Party Payments,Private contractors,28/05/2020,6367419,1656.2,VENDOR,SOUTHERN MARITIME SERVICES LIMITED,120765
Portsmouth City Council,PCC,Highways and Transport Services,"Airports, Harbours and Toll Facilities",Portsmouth International Port,Third Party Payments,Private contractors,28/05/2020,6367419,2399.8,VENDOR,SOUTHERN MARITIME SERVICES LIMITED,120765
Portsmouth City Council,PCC,Highways and Transport Services,"Airports, Harbours and Toll Facilities",Portsmouth International Port,Third Party Payments,Private contractors,28/05/2020,6367419,1419.6,VENDOR,SOUTHERN MARITIME SERVICES LIMITED,120765
Portsmouth City Council,PCC,Highways and Transport Services,"Airports, Harbours and Toll Facilities",Portsmouth International Port,Third Party Payments,Private contractors,28/05/2020,6367419,1617.2,VENDOR,SOUTHERN MARITIME SERVICES LIMITED,120765
Portsmouth City Council,PCC,Highways and Transport Services,"Airports, Harbours and Toll Facilities",Portsmouth International Port,Third Party Payments,Private contractors,28/05/2020,6367419,2061.8,VENDOR,SOUTHERN MARITIME SERVICES LIMITED,120765
Portsmouth City Council,PCC,Support Service / Transparency Costs Unallocated,Information Services,Corporate Services,Supplies and Services,Communications and computing,18/05/2020,6365542,489,VENDOR,PCF HOLDINGS LIMITED,131766
Portsmouth City Council,PCC,Support Service / Transparency Costs Unallocated,Information Services,Corporate Services,Supplies and Services,Communications and computing,27/05/2020,6367264,1292.38,VENDOR,TWOFOLD,108876
Portsmouth City Council,PCC,Adult Social Care,Information and Early Intervention,Adult Services,Third Party Payments,Other establishments,27/05/2020,6366813,23650,VENDOR,APETITO LTD,100127
Portsmouth City Council,PCC,Adult Social Care,Information and Early Intervention,Adult Services,Third Party Payments,Other establishments,27/05/2020,6366813,2086.5,VENDOR,APETITO LTD,100127
Portsmouth City Council,PCC,Adult Social Care,Information and Early Intervention,Adult Services,Income,Customer and client receipts,27/05/2020,6366813,-23650,VENDOR,APETITO LTD,100127
Portsmouth City Council,PCC,Adult Social Care,Information and Early Intervention,Adult Services,Income,Customer and client receipts,27/05/2020,6366813,-2086.5,VENDOR,APETITO LTD,100127
Portsmouth City Council,PCC,Adult Social Care,Social Care Activities,Adult Services,Third Party Payments,Other establishments,12/05/2020,6364348,78.69,VENDOR,BLUEBELL NURSING HOME,100112
Portsmouth City Council,PCC,Adult Social Care,Social Care Activities,Adult Services,Third Party Payments,Other establishments,12/05/2020,6364348,814.5,VENDOR,BLUEBELL NURSING HOME,100112
Portsmouth City Council,PCC,Adult Social Care,Social Care Activities,Adult Services,Third Party Payments,Other establishments,12/05/2020,6364348,63.22,VENDOR,BLUEBELL NURSING HOME,100112
Portsmouth City Council,PCC,Adult Social Care,Learning Disability Support  Adults (18 - 64),Adult Services,Third Party Payments,Other establishments,12/05/2020,6364317,8753.78,VENDOR,AITCH CARE HOMES (LONDON) LIMITED,125606
Portsmouth City Council,PCC,Children's and Education Services,Other Education and Community Budget,Children's Services and Education,Third Party Payments,Other local authorities,28/05/2020,6367422,512,VENDOR,ST CATHERINES SCHOOL,103758
Portsmouth City Council,PCC,Adult Social Care,Social Care Activities,Adult Services,Third Party Payments,Other establishments,04/05/2020,6362965,63.3,VENDOR,THE PORTSMOUTH SITTING SERVICE AND COMMUNITY CARE SERVICES LTD T/A ASSURED CARE,100201
Portsmouth City Council,PCC,Adult Social Care,Social Care Activities,Adult Services,Third Party Payments,Other establishments,04/05/2020,6362965,247.95,VENDOR,THE PORTSMOUTH SITTING SERVICE AND COMMUNITY CARE SERVICES LTD T/A ASSURED CARE,100201
Portsmouth City Council,PCC,Adult Social Care,Social Care Activities,Adult Services,Third Party Payments,Other establishments,04/05/2020,6362965,139.2,VENDOR,THE PORTSMOUTH SITTING SERVICE AND COMMUNITY CARE SERVICES LTD T/A ASSURED CARE,100201
Portsmouth City Council,PCC,Adult Social Care,Mental Health Support Older People (65 - 74),Adult Services,Third Party Payments,Other establishments,04/05/2020,6362965,149.51,VENDOR,THE PORTSMOUTH SITTING SERVICE AND COMMUNITY CARE SERVICES LTD T/A ASSURED CARE,100201
Portsmouth City Council,PCC,Adult Social Care,Mental Health Support Older People (65 - 74),Adult Services,Third Party Payments,Other establishments,04/05/2020,6362965,324.39,VENDOR,THE PORTSMOUTH SITTING SERVICE AND COMMUNITY CARE SERVICES LTD T/A ASSURED CARE,100201
Portsmouth City Council,PCC,Adult Social Care,Physical Support Adults (18 - 64),Adult Services,Third Party Payments,Other establishments,04/05/2020,6362965,206.18,VENDOR,THE PORTSMOUTH SITTING SERVICE AND COMMUNITY CARE SERVICES LTD T/A ASSURED CARE,100201
Portsmouth City Council,PCC,Adult Social Care,Physical Support Adults (18 - 64),Adult Services,Third Party Payments,Other establishments,04/05/2020,6362965,448.67,VENDOR,THE PORTSMOUTH SITTING SERVICE AND COMMUNITY CARE SERVICES LTD T/A ASSURED CARE,100201
Portsmouth City Council,PCC,Adult Social Care,Physical Support Adults (18 - 64),Adult Services,Third Party Payments,Other establishments,04/05/2020,6362965,27.13,VENDOR,THE PORTSMOUTH SITTING SERVICE AND COMMUNITY CARE SERVICES LTD T/A ASSURED CARE,100201
Portsmouth City Council,PCC,Adult Social Care,Physical Support Adults (18 - 64),Adult Services,Third Party Payments,Other establishments,04/05/2020,6362965,54.69,VENDOR,THE PORTSMOUTH SITTING SERVICE AND COMMUNITY CARE SERVICES LTD T/A ASSURED CARE,100201
Portsmouth City Council,PCC,Adult Social Care,Physical Support Adults (18 - 64),Adult Services,Third Party Payments,Other establishments,04/05/2020,6362965,158.55,VENDOR,THE PORTSMOUTH SITTING SERVICE AND COMMUNITY CARE SERVICES LTD T/A ASSURED CARE,100201
Portsmouth City Council,PCC,Adult Social Care,Physical Support Adults (18 - 64),Adult Services,Third Party Payments,Other establishments,04/05/2020,6362965,336.81,VENDOR,THE PORTSMOUTH SITTING SERVICE AND COMMUNITY CARE SERVICES LTD T/A ASSURED CARE,100201
Portsmouth City Council,PCC,Adult Social Care,Physical Support Older People (85+),Adult Services,Third Party Payments,Other establishments,04/05/2020,6362965,152.52,VENDOR,THE PORTSMOUTH SITTING SERVICE AND COMMUNITY CARE SERVICES LTD T/A ASSURED CARE,100201
Portsmouth City Council,PCC,Adult Social Care,Physical Support Older People (85+),Adult Services,Third Party Payments,Other establishments,04/05/2020,6362965,295.18,VENDOR,THE PORTSMOUTH SITTING SERVICE AND COMMUNITY CARE SERVICES LTD T/A ASSURED CARE,100201
Portsmouth City Council,PCC,Adult Social Care,Physical Support Older People (85+),Adult Services,Third Party Payments,Other establishments,04/05/2020,6362965,130.22,VENDOR,THE PORTSMOUTH SITTING SERVICE AND COMMUNITY CARE SERVICES LTD T/A ASSURED CARE,100201
Portsmouth City Council,PCC,Adult Social Care,Physical Support Older People (85+),Adult Services,Third Party Payments,Other establishments,04/05/2020,6362965,283.37,VENDOR,THE PORTSMOUTH SITTING SERVICE AND COMMUNITY CARE SERVICES LTD T/A ASSURED CARE,100201
Portsmouth City Council,PCC,Adult Social Care,Physical Support Older People (85+),Adult Services,Third Party Payments,Other establishments,04/05/2020,6362965,75.96,VENDOR,THE PORTSMOUTH SITTING SERVICE AND COMMUNITY CARE SERVICES LTD T/A ASSURED CARE,100201
Portsmouth City Council,PCC,Adult Social Care,Physical Support Older People (85+),Adult Services,Third Party Payments,Other establishments,04/05/2020,6362965,165.3,VENDOR,THE PORTSMOUTH SITTING SERVICE AND COMMUNITY CARE SERVICES LTD T/A ASSURED CARE,100201
Portsmouth City Council,PCC,Adult Social Care,Physical Support Older People (85+),Adult Services,Third Party Payments,Other establishments,04/05/2020,6362965,299.02,VENDOR,THE PORTSMOUTH SITTING SERVICE AND COMMUNITY CARE SERVICES LTD T/A ASSURED CARE,100201
Portsmouth City Council,PCC,Adult Social Care,Physical Support Older People (85+),Adult Services,Third Party Payments,Other establishments,04/05/2020,6362965,622.67,VENDOR,THE PORTSMOUTH SITTING SERVICE AND COMMUNITY CARE SERVICES LTD T/A ASSURED CARE,100201
Portsmouth City Council,PCC,Adult Social Care,Physical Support Older People (85+),Adult Services,Third Party Payments,Other establishments,04/05/2020,6362965,32.55,VENDOR,THE PORTSMOUTH SITTING SERVICE AND COMMUNITY CARE SERVICES LTD T/A ASSURED CARE,100201
Portsmouth City Council,PCC,Adult Social Care,Physical Support Older People (85+),Adult Services,Third Party Payments,Other establishments,04/05/2020,6362965,70.84,VENDOR,THE PORTSMOUTH SITTING SERVICE AND COMMUNITY CARE SERVICES LTD T/A ASSURED CARE,100201
Portsmouth City Council,PCC,Adult Social Care,Physical Support Older People (85+),Adult Services,Third Party Payments,Other establishments,04/05/2020,6362965,43.41,VENDOR,THE PORTSMOUTH SITTING SERVICE AND COMMUNITY CARE SERVICES LTD T/A ASSURED CARE,100201
Portsmouth City Council,PCC,Adult Social Care,Physical Support Older People (85+),Adult Services,Third Party Payments,Other establishments,04/05/2020,6362965,94.46,VENDOR,THE PORTSMOUTH SITTING SERVICE AND COMMUNITY CARE SERVICES LTD T/A ASSURED CARE,100201
Portsmouth City Council,PCC,Adult Social Care,Physical Support Older People (85+),Adult Services,Third Party Payments,Other establishments,04/05/2020,6362965,295.4,VENDOR,THE PORTSMOUTH SITTING SERVICE AND COMMUNITY CARE SERVICES LTD T/A ASSURED CARE,100201
Portsmouth City Council,PCC,Adult Social Care,Physical Support Older People (85+),Adult Services,Third Party Payments,Other establishments,04/05/2020,6362965,26.53,VENDOR,THE PORTSMOUTH SITTING SERVICE AND COMMUNITY CARE SERVICES LTD T/A ASSURED CARE,100201
Portsmouth City Council,PCC,Adult Social Care,Physical Support Older People (85+),Adult Services,Third Party Payments,Other establishments,04/05/2020,6362965,578.55,VENDOR,THE PORTSMOUTH SITTING SERVICE AND COMMUNITY CARE SERVICES LTD T/A ASSURED CARE,100201
Portsmouth City Council,PCC,Adult Social Care,Physical Support Older People (85+),Adult Services,Third Party Payments,Other establishments,04/05/2020,6362965,68.36,VENDOR,THE PORTSMOUTH SITTING SERVICE AND COMMUNITY CARE SERVICES LTD T/A ASSURED CARE,100201
Portsmouth City Council,PCC,Adult Social Care,Physical Support Older People (85+),Adult Services,Third Party Payments,Other establishments,04/05/2020,6362965,303.84,VENDOR,THE PORTSMOUTH SITTING SERVICE AND COMMUNITY CARE SERVICES LTD T/A ASSURED CARE,100201
Portsmouth City Council,PCC,Adult Social Care,Physical Support Older People (85+),Adult Services,Third Party Payments,Other establishments,04/05/2020,6362965,21.7,VENDOR,THE PORTSMOUTH SITTING SERVICE AND COMMUNITY CARE SERVICES LTD T/A ASSURED CARE,100201
Portsmouth City Council,PCC,Adult Social Care,Physical Support Older People (85+),Adult Services,Third Party Payments,Other establishments,04/05/2020,6362965,543.75,VENDOR,THE PORTSMOUTH SITTING SERVICE AND COMMUNITY CARE SERVICES LTD T/A ASSURED CARE,100201
Portsmouth City Council,PCC,Adult Social Care,Physical Support Older People (85+),Adult Services,Third Party Payments,Other establishments,04/05/2020,6362965,47.23,VENDOR,THE PORTSMOUTH SITTING SERVICE AND COMMUNITY CARE SERVICES LTD T/A ASSURED CARE,100201
Portsmouth City Council,PCC,Adult Social Care,Physical Support Older People (85+),Adult Services,Third Party Payments,Other establishments,04/05/2020,6362965,247.77,VENDOR,THE PORTSMOUTH SITTING SERVICE AND COMMUNITY CARE SERVICES LTD T/A ASSURED CARE,100201
Portsmouth City Council,PCC,Adult Social Care,Physical Support Older People (85+),Adult Services,Third Party Payments,Other establishments,04/05/2020,6362965,531.94,VENDOR,THE PORTSMOUTH SITTING SERVICE AND COMMUNITY CARE SERVICES LTD T/A ASSURED CARE,100201
Portsmouth City Council,PCC,Adult Social Care,Physical Support Older People (85+),Adult Services,Third Party Payments,Other establishments,04/05/2020,6362965,227.88,VENDOR,THE PORTSMOUTH SITTING SERVICE AND COMMUNITY CARE SERVICES LTD T/A ASSURED CARE,100201
Portsmouth City Council,PCC,Adult Social Care,Physical Support Older People (85+),Adult Services,Third Party Payments,Other establishments,04/05/2020,6362965,495.9,VENDOR,THE PORTSMOUTH SITTING SERVICE AND COMMUNITY CARE SERVICES LTD T/A ASSURED CARE,100201
Portsmouth City Council,PCC,Adult Social Care,Physical Support Older People (85+),Adult Services,Third Party Payments,Other establishments,04/05/2020,6362965,232.1,VENDOR,THE PORTSMOUTH SITTING SERVICE AND COMMUNITY CARE SERVICES LTD T/A ASSURED CARE,100201
Portsmouth City Council,PCC,Adult Social Care,Physical Support Older People (85+),Adult Services,Third Party Payments,Other establishments,04/05/2020,6362965,28.94,VENDOR,THE PORTSMOUTH SITTING SERVICE AND COMMUNITY CARE SERVICES LTD T/A ASSURED CARE,100201
Portsmouth City Council,PCC,Adult Social Care,Physical Support Older People (85+),Adult Services,Third Party Payments,Other establishments,04/05/2020,6362965,909.15,VENDOR,THE PORTSMOUTH SITTING SERVICE AND COMMUNITY CARE SERVICES LTD T/A ASSURED CARE,100201
Portsmouth City Council,PCC,Adult Social Care,Physical Support Older People (85+),Adult Services,Third Party Payments,Other establishments,04/05/2020,6362965,283.37,VENDOR,THE PORTSMOUTH SITTING SERVICE AND COMMUNITY CARE SERVICES LTD T/A ASSURED CARE,100201
Portsmouth City Council,PCC,Adult Social Care,Physical Support Older People (85+),Adult Services,Third Party Payments,Other establishments,04/05/2020,6362965,198.34,VENDOR,THE PORTSMOUTH SITTING SERVICE AND COMMUNITY CARE SERVICES LTD T/A ASSURED CARE,100201
Portsmouth City Council,PCC,Adult Social Care,Physical Support Older People (85+),Adult Services,Third Party Payments,Other establishments,04/05/2020,6362965,86.81,VENDOR,THE PORTSMOUTH SITTING SERVICE AND COMMUNITY CARE SERVICES LTD T/A ASSURED CARE,100201
Portsmouth City Council,PCC,Adult Social Care,Physical Support Older People (85+),Adult Services,Third Party Payments,Other establishments,04/05/2020,6362965,413.25,VENDOR,THE PORTSMOUTH SITTING SERVICE AND COMMUNITY CARE SERVICES LTD T/A ASSURED CARE,100201
Portsmouth City Council,PCC,Adult Social Care,Physical Support Older People (85+),Adult Services,Third Party Payments,Other establishments,04/05/2020,6362965,188.91,VENDOR,THE PORTSMOUTH SITTING SERVICE AND COMMUNITY CARE SERVICES LTD T/A ASSURED CARE,100201
Portsmouth City Council,PCC,Adult Social Care,Physical Support Older People (85+),Adult Services,Third Party Payments,Other establishments,04/05/2020,6362965,113.94,VENDOR,THE PORTSMOUTH SITTING SERVICE AND COMMUNITY CARE SERVICES LTD T/A ASSURED CARE,100201
Portsmouth City Council,PCC,Adult Social Care,Physical Support Older People (85+),Adult Services,Third Party Payments,Other establishments,04/05/2020,6362965,247.95,VENDOR,THE PORTSMOUTH SITTING SERVICE AND COMMUNITY CARE SERVICES LTD T/A ASSURED CARE,100201
Portsmouth City Council,PCC,Adult Social Care,Physical Support Older People (85+),Adult Services,Third Party Payments,Other establishments,04/05/2020,6362965,206.78,VENDOR,THE PORTSMOUTH SITTING SERVICE AND COMMUNITY CARE SERVICES LTD T/A ASSURED CARE,100201
Portsmouth City Council,PCC,Adult Social Care,Physical Support Older People (85+),Adult Services,Third Party Payments,Other establishments,04/05/2020,6362965,413.25,VENDOR,THE PORTSMOUTH SITTING SERVICE AND COMMUNITY CARE SERVICES LTD T/A ASSURED CARE,100201
Portsmouth City Council,PCC,Adult Social Care,Physical Support Older People (85+),Adult Services,Third Party Payments,Other establishments,04/05/2020,6362965,60.9,VENDOR,THE PORTSMOUTH SITTING SERVICE AND COMMUNITY CARE SERVICES LTD T/A ASSURED CARE,100201
Portsmouth City Council,PCC,Adult Social Care,Social Support - Support for Carer,Adult Services,Third Party Payments,Other establishments,04/05/2020,6362965,102.68,VENDOR,THE PORTSMOUTH SITTING SERVICE AND COMMUNITY CARE SERVICES LTD T/A ASSURED CARE,100201
Portsmouth City Council,PCC,Adult Social Care,Social Support - Support for Carer,Adult Services,Third Party Payments,Other establishments,04/05/2020,6362965,223.33,VENDOR,THE PORTSMOUTH SITTING SERVICE AND COMMUNITY CARE SERVICES LTD T/A ASSURED CARE,100201
Portsmouth City Council,PCC,Adult Social Care,Social Support - Support for Carer,Adult Services,Third Party Payments,Other establishments,04/05/2020,6362965,56.01,VENDOR,THE PORTSMOUTH SITTING SERVICE AND COMMUNITY CARE SERVICES LTD T/A ASSURED CARE,100201
Portsmouth City Council,PCC,Adult Social Care,Social Support - Support for Carer,Adult Services,Third Party Payments,Other establishments,04/05/2020,6362965,121.82,VENDOR,THE PORTSMOUTH SITTING SERVICE AND COMMUNITY CARE SERVICES LTD T/A ASSURED CARE,100201
Portsmouth City Council,PCC,Adult Social Care,Social Support - Support for Carer,Adult Services,Third Party Payments,Other establishments,04/05/2020,6362965,74.67,VENDOR,THE PORTSMOUTH SITTING SERVICE AND COMMUNITY CARE SERVICES LTD T/A ASSURED CARE,100201
Portsmouth City Council,PCC,Adult Social Care,Social Support - Support for Carer,Adult Services,Third Party Payments,Other establishments,04/05/2020,6362965,162.42,VENDOR,THE PORTSMOUTH SITTING SERVICE AND COMMUNITY CARE SERVICES LTD T/A ASSURED CARE,100201
Portsmouth City Council,PCC,Adult Social Care,Social Support - Support for Carer,Adult Services,Third Party Payments,Other establishments,04/05/2020,6362965,112.01,VENDOR,THE PORTSMOUTH SITTING SERVICE AND COMMUNITY CARE SERVICES LTD T/A ASSURED CARE,100201
Portsmouth City Council,PCC,Adult Social Care,Social Support - Support for Carer,Adult Services,Third Party Payments,Other establishments,04/05/2020,6362965,243.63,VENDOR,THE PORTSMOUTH SITTING SERVICE AND COMMUNITY CARE SERVICES LTD T/A ASSURED CARE,100201
Portsmouth City Council,PCC,Adult Social Care,Social Support - Support for Carer,Adult Services,Third Party Payments,Other establishments,04/05/2020,6362965,155.57,VENDOR,THE PORTSMOUTH SITTING SERVICE AND COMMUNITY CARE SERVICES LTD T/A ASSURED CARE,100201
Portsmouth City Council,PCC,Adult Social Care,Social Support - Support for Carer,Adult Services,Third Party Payments,Other establishments,04/05/2020,6362965,243.63,VENDOR,THE PORTSMOUTH SITTING SERVICE AND COMMUNITY CARE SERVICES LTD T/A ASSURED CARE,100201
Portsmouth City Council,PCC,Adult Social Care,Social Support - Support for Carer,Adult Services,Third Party Payments,Other establishments,04/05/2020,6362965,56.01,VENDOR,THE PORTSMOUTH SITTING SERVICE AND COMMUNITY CARE SERVICES LTD T/A ASSURED CARE,100201
Portsmouth City Council,PCC,Adult Social Care,Social Support - Support for Carer,Adult Services,Third Party Payments,Other establishments,04/05/2020,6362965,121.82,VENDOR,THE PORTSMOUTH SITTING SERVICE AND COMMUNITY CARE SERVICES LTD T/A ASSURED CARE,100201
Portsmouth City Council,PCC,Adult Social Care,Social Support - Support for Carer,Adult Services,Third Party Payments,Other establishments,04/05/2020,6362965,93.34,VENDOR,THE PORTSMOUTH SITTING SERVICE AND COMMUNITY CARE SERVICES LTD T/A ASSURED CARE,100201
Portsmouth City Council,PCC,Adult Social Care,Social Support - Support for Carer,Adult Services,Third Party Payments,Other establishments,04/05/2020,6362965,203.03,VENDOR,THE PORTSMOUTH SITTING SERVICE AND COMMUNITY CARE SERVICES LTD T/A ASSURED CARE,100201
Portsmouth City Council,PCC,Adult Social Care,Social Support - Support for Carer,Adult Services,Third Party Payments,Other establishments,04/05/2020,6362965,112.01,VENDOR,THE PORTSMOUTH SITTING SERVICE AND COMMUNITY CARE SERVICES LTD T/A ASSURED CARE,100201
Portsmouth City Council,PCC,Adult Social Care,Social Support - Support for Carer,Adult Services,Third Party Payments,Other establishments,04/05/2020,6362965,243.63,VENDOR,THE PORTSMOUTH SITTING SERVICE AND COMMUNITY CARE SERVICES LTD T/A ASSURED CARE,100201
Portsmouth City Council,PCC,Adult Social Care,Social Support - Support for Carer,Adult Services,Third Party Payments,Other establishments,04/05/2020,6362965,112.01,VENDOR,THE PORTSMOUTH SITTING SERVICE AND COMMUNITY CARE SERVICES LTD T/A ASSURED CARE,100201
Portsmouth City Council,PCC,Adult Social Care,Social Support - Support for Carer,Adult Services,Third Party Payments,Other establishments,04/05/2020,6362965,243.63,VENDOR,THE PORTSMOUTH SITTING SERVICE AND COMMUNITY CARE SERVICES LTD T/A ASSURED CARE,100201
Portsmouth City Council,PCC,Children's and Education Services,Other Children and Family Services,Children's Services and Education,Supplies and Services,Services,11/05/2020,6364256,240.75,VENDOR,E4LAW LTD T/A LEXTOX,143185
Portsmouth City Council,PCC,Children's and Education Services,Special Schools,Children's Services and Education,Third Party Payments,Other establishments,20/05/2020,6366240,11741.21,VENDOR,ST CATHERINES SCHOOL,103758
Portsmouth City Council,PCC,Children's and Education Services,Special Schools,Children's Services and Education,Third Party Payments,Other establishments,20/05/2020,6366240,851.24,VENDOR,ST CATHERINES SCHOOL,103758
Portsmouth City Council,PCC,Children's and Education Services,Other Education and Community Budget,Children's Services and Education,Third Party Payments,Other local authorities,28/05/2020,6367422,305.43,VENDOR,ST CATHERINES SCHOOL,103758
Portsmouth City Council,PCC,Cultural and Related Services,Open Spaces,"Culture, Leisure & Regulatory Services",Third Party Payments,Private contractors,01/05/2020,6362688,278.9,COMPANY,BARHILL PLANT LTD,100355
Portsmouth City Council,PCC,Cultural and Related Services,Open Spaces,"Culture, Leisure & Regulatory Services",Third Party Payments,Private contractors,01/05/2020,6362688,3117.96,COMPANY,BARHILL PLANT LTD,100355
Portsmouth City Council,PCC,Cultural and Related Services,Open Spaces,"Culture, Leisure & Regulatory Services",Third Party Payments,Private contractors,01/05/2020,6362688,149.97,COMPANY,BARHILL PLANT LTD,100355
Portsmouth City Council,PCC,Cultural and Related Services,Open Spaces,"Culture, Leisure & Regulatory Services",Third Party Payments,Private contractors,01/05/2020,6362688,270.96,COMPANY,BARHILL PLANT LTD,100355
Portsmouth City Council,PCC,Cultural and Related Services,Open Spaces,"Culture, Leisure & Regulatory Services",Third Party Payments,Private contractors,01/05/2020,6362688,70,COMPANY,BARHILL PLANT LTD,100355
Portsmouth City Council,PCC,Cultural and Related Services,Open Spaces,"Culture, Leisure & Regulatory Services",Third Party Payments,Private contractors,01/05/2020,6362688,60,COMPANY,BARHILL PLANT LTD,100355
Portsmouth City Council,PCC,Cultural and Related Services,Open Spaces,"Culture, Leisure & Regulatory Services",Third Party Payments,Private contractors,01/05/2020,6362688,30,COMPANY,BARHILL PLANT LTD,100355
Portsmouth City Council,PCC,Cultural and Related Services,Open Spaces,"Culture, Leisure & Regulatory Services",Third Party Payments,Private contractors,01/05/2020,6362688,147.96,COMPANY,BARHILL PLANT LTD,100355
Portsmouth City Council,PCC,Cultural and Related Services,Open Spaces,"Culture, Leisure & Regulatory Services",Third Party Payments,Private contractors,01/05/2020,6362688,120,COMPANY,BARHILL PLANT LTD,100355
Portsmouth City Council,PCC,Housing Revenue Account,Special Services,"Housing, Neighbourhood and Building Services",Third Party Payments,Private contractors,04/05/2020,6362842,2760,COMPANY,BARHILL PLANT LTD,100355
Portsmouth City Council,PCC,Other,Suspense and Capital Schemes,Capital - Education,Capital Charges,Capital Expenditure (WIP),05/05/2020,6363253,1266.48,COMPANY,HAMPSHIRE PARTITIONING CONTRACTS LTD,104637
Portsmouth City Council,PCC,Adult Social Care,Social Care Activities,Adult Services,Third Party Payments,Other establishments,12/05/2020,6364348,78.69,VENDOR,BLUEBELL NURSING HOME,100112
Portsmouth City Council,PCC,Adult Social Care,Social Care Activities,Adult Services,Third Party Payments,Other establishments,12/05/2020,6364348,814.5,VENDOR,BLUEBELL NURSING HOME,100112
Portsmouth City Council,PCC,Adult Social Care,Social Care Activities,Adult Services,Third Party Payments,Other establishments,12/05/2020,6364348,63.22,VENDOR,BLUEBELL NURSING HOME,100112
Portsmouth City Council,PCC,Adult Social Care,Social Care Activities,Adult Services,Third Party Payments,Other establishments,12/05/2020,6364348,65.33,VENDOR,BLUEBELL NURSING HOME,100112
Portsmouth City Council,PCC,Adult Social Care,Social Care Activities,Adult Services,Third Party Payments,Other establishments,12/05/2020,6364348,65.33,VENDOR,BLUEBELL NURSING HOME,100112
Portsmouth City Council,PCC,Adult Social Care,Social Care Activities,Adult Services,Third Party Payments,Other establishments,12/05/2020,6364348,61.11,VENDOR,BLUEBELL NURSING HOME,100112
Portsmouth City Council,PCC,Adult Social Care,Social Care Activities,Adult Services,Third Party Payments,Other establishments,12/05/2020,6364348,65.33,VENDOR,BLUEBELL NURSING HOME,100112
Portsmouth City Council,PCC,Adult Social Care,Social Care Activities,Adult Services,Third Party Payments,Other establishments,12/05/2020,6364348,65.33,VENDOR,BLUEBELL NURSING HOME,100112
Portsmouth City Council,PCC,Adult Social Care,Social Care Activities,Adult Services,Third Party Payments,Other establishments,12/05/2020,6364348,63.22,VENDOR,BLUEBELL NURSING HOME,100112
Portsmouth City Council,PCC,Adult Social Care,Social Care Activities,Adult Services,Third Party Payments,Other establishments,12/05/2020,6364348,65.33,VENDOR,BLUEBELL NURSING HOME,100112
Portsmouth City Council,PCC,Adult Social Care,Social Care Activities,Adult Services,Third Party Payments,Other establishments,12/05/2020,6364348,65.33,VENDOR,BLUEBELL NURSING HOME,100112
Portsmouth City Council,PCC,Adult Social Care,Social Care Activities,Adult Services,Third Party Payments,Other establishments,12/05/2020,6364348,63.22,VENDOR,BLUEBELL NURSING HOME,100112
Portsmouth City Council,PCC,Adult Social Care,Social Care Activities,Adult Services,Third Party Payments,Other establishments,12/05/2020,6364348,65.33,VENDOR,BLUEBELL NURSING HOME,100112
Portsmouth City Council,PCC,Adult Social Care,Social Care Activities,Adult Services,Third Party Payments,Other establishments,12/05/2020,6364348,63.22,VENDOR,BLUEBELL NURSING HOME,100112
Portsmouth City Council,PCC,Adult Social Care,Social Care Activities,Adult Services,Third Party Payments,Other establishments,12/05/2020,6364348,61.11,VENDOR,BLUEBELL NURSING HOME,100112
Portsmouth City Council,PCC,Adult Social Care,Social Care Activities,Adult Services,Third Party Payments,Other establishments,12/05/2020,6364348,25.28,VENDOR,BLUEBELL NURSING HOME,100112
Portsmouth City Council,PCC,Adult Social Care,Social Care Activities,Adult Services,Third Party Payments,Other establishments,12/05/2020,6364348,78.69,VENDOR,BLUEBELL NURSING HOME,100112
Portsmouth City Council,PCC,Adult Social Care,Social Care Activities,Adult Services,Third Party Payments,Other establishments,12/05/2020,6364348,63.22,VENDOR,BLUEBELL NURSING HOME,100112
Portsmouth City Council,PCC,Adult Social Care,Social Care Activities,Adult Services,Third Party Payments,Other establishments,12/05/2020,6364348,65.33,VENDOR,BLUEBELL NURSING HOME,100112
Portsmouth City Council,PCC,Adult Social Care,Social Care Activities,Adult Services,Third Party Payments,Other establishments,12/05/2020,6364348,65.33,VENDOR,BLUEBELL NURSING HOME,100112
Portsmouth City Council,PCC,Adult Social Care,Social Care Activities,Adult Services,Third Party Payments,Other establishments,12/05/2020,6364348,2.11,VENDOR,BLUEBELL NURSING HOME,100112
Portsmouth City Council,PCC,Adult Social Care,Social Care Activities,Adult Services,Third Party Payments,Other establishments,12/05/2020,6364348,65.33,VENDOR,BLUEBELL NURSING HOME,100112
Portsmouth City Council,PCC,Adult Social Care,Social Care Activities,Adult Services,Third Party Payments,Other establishments,12/05/2020,6364348,63.22,VENDOR,BLUEBELL NURSING HOME,100112
Portsmouth City Council,PCC,Adult Social Care,Social Care Activities,Adult Services,Third Party Payments,Other establishments,12/05/2020,6364348,65.33,VENDOR,BLUEBELL NURSING HOME,100112
Portsmouth City Council,PCC,Adult Social Care,Social Care Activities,Adult Services,Third Party Payments,Other establishments,12/05/2020,6364348,63.22,VENDOR,BLUEBELL NURSING HOME,100112
Portsmouth City Council,PCC,Adult Social Care,Social Care Activities,Adult Services,Third Party Payments,Other establishments,12/05/2020,6364348,65.33,VENDOR,BLUEBELL NURSING HOME,100112
Portsmouth City Council,PCC,Adult Social Care,Social Care Activities,Adult Services,Third Party Payments,Other establishments,12/05/2020,6364348,63.22,VENDOR,BLUEBELL NURSING HOME,100112
Portsmouth City Council,PCC,Adult Social Care,Social Care Activities,Adult Services,Third Party Payments,Other establishments,12/05/2020,6364348,63.22,VENDOR,BLUEBELL NURSING HOME,100112
Portsmouth City Council,PCC,Adult Social Care,Social Care Activities,Adult Services,Third Party Payments,Other establishments,12/05/2020,6364348,65.33,VENDOR,BLUEBELL NURSING HOME,100112
Portsmouth City Council,PCC,Adult Social Care,Social Care Activities,Adult Services,Third Party Payments,Other establishments,12/05/2020,6364348,65.33,VENDOR,BLUEBELL NURSING HOME,100112
Portsmouth City Council,PCC,Adult Social Care,Social Care Activities,Adult Services,Third Party Payments,Other establishments,12/05/2020,6364348,61.11,VENDOR,BLUEBELL NURSING HOME,100112
Portsmouth City Council,PCC,Adult Social Care,Social Care Activities,Adult Services,Third Party Payments,Other establishments,12/05/2020,6364348,65.33,VENDOR,BLUEBELL NURSING HOME,100112
Portsmouth City Council,PCC,Adult Social Care,Social Care Activities,Adult Services,Third Party Payments,Other establishments,12/05/2020,6364348,65.33,VENDOR,BLUEBELL NURSING HOME,100112
Portsmouth City Council,PCC,Adult Social Care,Social Care Activities,Adult Services,Third Party Payments,Other establishments,12/05/2020,6364348,63.22,VENDOR,BLUEBELL NURSING HOME,100112
Portsmouth City Council,PCC,Adult Social Care,Social Care Activities,Adult Services,Third Party Payments,Other establishments,12/05/2020,6364348,8.42,VENDOR,BLUEBELL NURSING HOME,100112
Portsmouth City Council,PCC,Adult Social Care,Social Care Activities,Adult Services,Third Party Payments,Other establishments,12/05/2020,6364348,65.33,VENDOR,BLUEBELL NURSING HOME,100112
Portsmouth City Council,PCC,Children's and Education Services,Other Children and Family Services,Children's Services and Education,Supplies and Services,Services,11/05/2020,6364256,225,VENDOR,E4LAW LTD T/A LEXTOX,143185
Portsmouth City Council,PCC,Environmental and Regulatory Services,Agricultural and Fisheries Services,Portsmouth International Port,Third Party Payments,Private contractors,14/05/2020,6365230,2949.8,VENDOR,KEN BROWN BOATS LTD,100926
Portsmouth City Council,PCC,Environmental and Regulatory Services,Agricultural and Fisheries Services,Portsmouth International Port,Third Party Payments,Private contractors,28/05/2020,6367391,2949.8,VENDOR,KEN BROWN BOATS LTD,100926
Portsmouth City Council,PCC,Adult Social Care,Social Care Activities,Adult Services,Third Party Payments,Other establishments,12/05/2020,6364348,63.22,VENDOR,BLUEBELL NURSING HOME,100112
Portsmouth City Council,PCC,Adult Social Care,Social Care Activities,Adult Services,Third Party Payments,Other establishments,12/05/2020,6364348,65.33,VENDOR,BLUEBELL NURSING HOME,100112
Portsmouth City Council,PCC,Other,Suspense and Capital Schemes,Capital - Leader - Solent LEP,Capital Charges,REFCUS,06/05/2020,6363685,561.46,VENDOR,DANIEL THWAITES PLC,139047
Portsmouth City Council,PCC,Children's and Education Services,Other Children and Family Services,Children's Services and Education,Supplies and Services,Services,11/05/2020,6364256,112.5,VENDOR,E4LAW LTD T/A LEXTOX,143185
Portsmouth City Council,PCC,Support Service / Transparency Costs Unallocated,AMS,"Housing, Neighbourhood and Building Services",Third Party Payments,Private contractors,01/05/2020,6362830,669.6,VENDOR,VESPASIAN SECURITY LTD,126345
Portsmouth City Council,PCC,Highways and Transport Services,"Airports, Harbours and Toll Facilities",Portsmouth International Port,Supplies and Services,"Printing, stationery and general office expenses",21/05/2020,6366431,2226,VENDOR,PORT SKILLS AND SAFETY LTD,108229
Portsmouth City Council,PCC,Cultural and Related Services,Library Service,"Culture, Leisure & Regulatory Services",Supplies and Services,"Equipment, furniture and materials",13/05/2020,6365076,7459,VENDOR,W F HOWES LTD,101764
Portsmouth City Council,PCC,Adult Social Care,Social Care Activities,Adult Services,Third Party Payments,Other establishments,12/05/2020,6364348,63.22,VENDOR,BLUEBELL NURSING HOME,100112
Portsmouth City Council,PCC,Adult Social Care,Social Care Activities,Adult Services,Third Party Payments,Other establishments,12/05/2020,6364348,78.69,VENDOR,BLUEBELL NURSING HOME,100112
Portsmouth City Council,PCC,Adult Social Care,Social Care Activities,Adult Services,Third Party Payments,Other establishments,12/05/2020,6364348,814.5,VENDOR,BLUEBELL NURSING HOME,100112
Portsmouth City Council,PCC,Adult Social Care,Social Care Activities,Adult Services,Third Party Payments,Other establishments,12/05/2020,6364348,63.22,VENDOR,BLUEBELL NURSING HOME,100112
Portsmouth City Council,PCC,Adult Social Care,Social Care Activities,Adult Services,Third Party Payments,Other establishments,12/05/2020,6364348,65.33,VENDOR,BLUEBELL NURSING HOME,100112
Portsmouth City Council,PCC,Adult Social Care,Social Care Activities,Adult Services,Third Party Payments,Other establishments,12/05/2020,6364348,65.33,VENDOR,BLUEBELL NURSING HOME,100112
Portsmouth City Council,PCC,Adult Social Care,Social Care Activities,Adult Services,Third Party Payments,Other establishments,12/05/2020,6364348,61.11,VENDOR,BLUEBELL NURSING HOME,100112
Portsmouth City Council,PCC,Adult Social Care,Social Care Activities,Adult Services,Third Party Payments,Other establishments,12/05/2020,6364348,65.33,VENDOR,BLUEBELL NURSING HOME,100112
Portsmouth City Council,PCC,Adult Social Care,Social Care Activities,Adult Services,Third Party Payments,Other establishments,12/05/2020,6364348,65.33,VENDOR,BLUEBELL NURSING HOME,100112
Portsmouth City Council,PCC,Adult Social Care,Social Care Activities,Adult Services,Third Party Payments,Other establishments,12/05/2020,6364348,63.22,VENDOR,BLUEBELL NURSING HOME,100112
Portsmouth City Council,PCC,Adult Social Care,Social Care Activities,Adult Services,Third Party Payments,Other establishments,12/05/2020,6364348,65.33,VENDOR,BLUEBELL NURSING HOME,100112
Portsmouth City Council,PCC,Adult Social Care,Social Care Activities,Adult Services,Third Party Payments,Other establishments,12/05/2020,6364348,65.33,VENDOR,BLUEBELL NURSING HOME,100112
Portsmouth City Council,PCC,Adult Social Care,Social Care Activities,Adult Services,Third Party Payments,Other establishments,12/05/2020,6364348,63.22,VENDOR,BLUEBELL NURSING HOME,100112
Portsmouth City Council,PCC,Adult Social Care,Social Care Activities,Adult Services,Third Party Payments,Other establishments,12/05/2020,6364348,65.33,VENDOR,BLUEBELL NURSING HOME,100112
Portsmouth City Council,PCC,Adult Social Care,Social Care Activities,Adult Services,Third Party Payments,Other establishments,12/05/2020,6364348,63.22,VENDOR,BLUEBELL NURSING HOME,100112
Portsmouth City Council,PCC,Adult Social Care,Social Care Activities,Adult Services,Third Party Payments,Other establishments,12/05/2020,6364348,63.22,VENDOR,BLUEBELL NURSING HOME,100112
Portsmouth City Council,PCC,Adult Social Care,Social Care Activities,Adult Services,Third Party Payments,Other establishments,12/05/2020,6364348,65.33,VENDOR,BLUEBELL NURSING HOME,100112
Portsmouth City Council,PCC,Adult Social Care,Social Care Activities,Adult Services,Third Party Payments,Other establishments,12/05/2020,6364348,65.33,VENDOR,BLUEBELL NURSING HOME,100112
Portsmouth City Council,PCC,Adult Social Care,Social Care Activities,Adult Services,Third Party Payments,Other establishments,12/05/2020,6364348,61.11,VENDOR,BLUEBELL NURSING HOME,100112
Portsmouth City Council,PCC,Adult Social Care,Social Care Activities,Adult Services,Third Party Payments,Other establishments,12/05/2020,6364348,65.33,VENDOR,BLUEBELL NURSING HOME,100112
Portsmouth City Council,PCC,Other,Suspense and Capital Schemes,Capital - Education,Capital Charges,REFCUS,22/05/2020,6366649,74000,VENDOR,UNITED LEARNING TRUST,137910
Portsmouth City Council,PCC,Cultural and Related Services,Library Service,"Culture, Leisure & Regulatory Services",Third Party Payments,Private contractors,14/05/2020,6365240,1200,SOLETRADER,Classified as 'personal data' (under the Data Protection Act 2018),142425
Portsmouth City Council,PCC,Highways and Transport Services,"Airports, Harbours and Toll Facilities",Portsmouth International Port,Premises-Related Expenditure,"Repairs, alterations and maintenance of buildings",14/05/2020,6365123,650,VENDOR,CAMEO SYSTEMS LTD,142855
Portsmouth City Council,PCC,Highways and Transport Services,Traffic Management and Road Safety,Regeneration,Supplies and Services,Services,12/05/2020,6364537,12761.58,VENDOR,STANTEC UK LTD,146701
Portsmouth City Council,PCC,Highways and Transport Services,Traffic Management and Road Safety,Regeneration,Supplies and Services,Services,12/05/2020,6364537,15222.97,VENDOR,STANTEC UK LTD,146701
Portsmouth City Council,PCC,Adult Social Care,Social Care Activities,Adult Services,Third Party Payments,Other establishments,20/05/2020,6365846,10371.76,VENDOR,ALBANY CARE (PORTCHESTER) LIMITED,146887
Portsmouth City Council,PCC,Children's and Education Services,Other Education and Community Budget,Children's Services and Education,Transport-Related Expenditure,Car allowances,11/05/2020,6364134,400,VENDOR,AQUA CARS LIMITED,100011
Portsmouth City Council,PCC,Other,Suspense and Capital Schemes,Capital - Housing RA,Capital Charges,Capital Expenditure (WIP),22/05/2020,6366592,1487.75,VENDOR,RIDGE AND PARTNERS LLP,139659
Portsmouth City Council,PCC,Adult Social Care,Social Care Activities,Adult Services,Third Party Payments,Other establishments,07/05/2020,6363739,1396,VENDOR,AQUA CARS LIMITED,100011
Portsmouth City Council,PCC,Adult Social Care,Social Care Activities,Adult Services,Third Party Payments,Other establishments,07/05/2020,6363739,5.4,VENDOR,AQUA CARS LIMITED,100011
Portsmouth City Council,PCC,Housing Services,Homelessness,"Housing, Neighbourhood and Building Services",Supplies and Services,Grants and subscriptions,11/05/2020,6364313,4687.2,VENDOR,VESPASIAN SECURITY LTD,126345
Portsmouth City Council,PCC,Children's and Education Services,Children Looked After,Children's Services and Education,Transport-Related Expenditure,Direct transport costs,12/05/2020,6364329,13.5,VENDOR,AQUA CARS LIMITED,100011
Portsmouth City Council,PCC,Children's and Education Services,Children Looked After,Children's Services and Education,Transport-Related Expenditure,Direct transport costs,12/05/2020,6364329,11.2,VENDOR,AQUA CARS LIMITED,100011
Portsmouth City Council,PCC,Adult Social Care,Social Care Activities,Adult Services,Third Party Payments,Other establishments,12/05/2020,6364328,880,VENDOR,AQUA CARS LIMITED,100011
Portsmouth City Council,PCC,Housing Services,Homelessness,"Housing, Neighbourhood and Building Services",Supplies and Services,Grants and subscriptions,29/05/2020,6367637,5021.76,VENDOR,VESPASIAN SECURITY LTD,126345
Portsmouth City Council,PCC,Housing Services,Homelessness,"Housing, Neighbourhood and Building Services",Supplies and Services,Grants and subscriptions,26/05/2020,6366787,4687.2,VENDOR,VESPASIAN SECURITY LTD,126345
Portsmouth City Council,PCC,Children's and Education Services,Family Support Services,Children's Services and Education,Third Party Payments,Other establishments,29/05/2020,6367554,93.7,VENDOR,PREPAID FINANCIAL SERVICES,137139
Portsmouth City Council,PCC,Children's and Education Services,Children Looked After,Children's Services and Education,Third Party Payments,Other establishments,29/05/2020,6367554,33.6,VENDOR,PREPAID FINANCIAL SERVICES,137139
Portsmouth City Council,PCC,Children's and Education Services,Other Education and Community Budget,Children's Services and Education,Third Party Payments,Other establishments,29/05/2020,6367554,91.2,VENDOR,PREPAID FINANCIAL SERVICES,137139
Portsmouth City Council,PCC,Children's and Education Services,Other Education and Community Budget,Children's Services and Education,Third Party Payments,Other establishments,29/05/2020,6367554,796.57,VENDOR,PREPAID FINANCIAL SERVICES,137139
Portsmouth City Council,PCC,Adult Social Care,Social Care Activities,Adult Services,Third Party Payments,Other establishments,12/05/2020,6364348,65.33,VENDOR,BLUEBELL NURSING HOME,100112
Portsmouth City Council,PCC,Housing Services,Homelessness,"Housing, Neighbourhood and Building Services",Supplies and Services,Grants and subscriptions,06/05/2020,6363723,1166.8,VENDOR,THE PORTSMOUTH LETTINGS AGENCY LIMITED,134027
Portsmouth City Council,PCC,Adult Social Care,Social Care Activities,Adult Services,Third Party Payments,Other establishments,12/05/2020,6364348,63.22,VENDOR,BLUEBELL NURSING HOME,100112
Portsmouth City Council,PCC,Adult Social Care,Social Care Activities,Adult Services,Third Party Payments,Other establishments,12/05/2020,6364348,65.33,VENDOR,BLUEBELL NURSING HOME,100112
Portsmouth City Council,PCC,Adult Social Care,Social Care Activities,Adult Services,Third Party Payments,Other establishments,12/05/2020,6364348,65.33,VENDOR,BLUEBELL NURSING HOME,100112
Portsmouth City Council,PCC,Adult Social Care,Social Care Activities,Adult Services,Third Party Payments,Other establishments,12/05/2020,6364348,63.22,VENDOR,BLUEBELL NURSING HOME,100112
Portsmouth City Council,PCC,Adult Social Care,Social Care Activities,Adult Services,Third Party Payments,Other establishments,12/05/2020,6364348,65.33,VENDOR,BLUEBELL NURSING HOME,100112
Portsmouth City Council,PCC,Adult Social Care,Social Care Activities,Adult Services,Third Party Payments,Other establishments,12/05/2020,6364348,63.22,VENDOR,BLUEBELL NURSING HOME,100112
Portsmouth City Council,PCC,Adult Social Care,Social Care Activities,Adult Services,Third Party Payments,Other establishments,12/05/2020,6364348,78.69,VENDOR,BLUEBELL NURSING HOME,100112
Portsmouth City Council,PCC,Adult Social Care,Social Care Activities,Adult Services,Third Party Payments,Other establishments,12/05/2020,6364348,814.5,VENDOR,BLUEBELL NURSING HOME,100112
Portsmouth City Council,PCC,Adult Social Care,Social Care Activities,Adult Services,Third Party Payments,Other establishments,12/05/2020,6364348,63.22,VENDOR,BLUEBELL NURSING HOME,100112
Portsmouth City Council,PCC,Adult Social Care,Social Care Activities,Adult Services,Third Party Payments,Other establishments,12/05/2020,6364348,65.33,VENDOR,BLUEBELL NURSING HOME,100112
Portsmouth City Council,PCC,Housing Services,Housing Benefits Administration,Finance & Resources,Supplies and Services,Communications and computing,15/05/2020,6365475,8791,VENDOR,VICTORIA SOLUTIONS LTD T/A VICTORIA FORMS,143788
Portsmouth City Council,PCC,Children's and Education Services,Special Schools,Children's Services and Education,Third Party Payments,Other establishments,13/05/2020,6365010,63709.57,VENDOR,SHEILING SCHOOL,145872
Portsmouth City Council,PCC,Adult Social Care,Social Care Activities,Adult Services,Third Party Payments,Other establishments,12/05/2020,6364328,9.9,VENDOR,AQUA CARS LIMITED,100011
Portsmouth City Council,PCC,Children's and Education Services,Children Looked After,Children's Services and Education,Third Party Payments,Other establishments,13/05/2020,6364817,-0.08,VENDOR,HORIZON CARE AND EDUCATION GROUP LTD,138450
Portsmouth City Council,PCC,Children's and Education Services,Children Looked After,Children's Services and Education,Third Party Payments,Other establishments,13/05/2020,6364817,2914.28,VENDOR,HORIZON CARE AND EDUCATION GROUP LTD,138450
Portsmouth City Council,PCC,Children's and Education Services,Special Schools,Children's Services and Education,Third Party Payments,Other establishments,06/05/2020,6363688,29174.64,VENDOR,FAIRWAYS CARE (UK) LTD,111915
Portsmouth City Council,PCC,Highways and Transport Services,"Airports, Harbours and Toll Facilities",Portsmouth International Port,Premises-Related Expenditure,"Repairs, alterations and maintenance of buildings",07/05/2020,6363744,2185,COMPANY,BAKER TRAYTE MARINE LIMITED,100563
Portsmouth City Council,PCC,Children's and Education Services,Other Education and Community Budget,Children's Services and Education,Transport-Related Expenditure,Car allowances,11/05/2020,6364286,1125,VENDOR,PDS AUTOS LTD,143908
Portsmouth City Council,PCC,Children's and Education Services,Other Education and Community Budget,Children's Services and Education,Transport-Related Expenditure,Car allowances,04/05/2020,6362937,2310,VENDOR,PDS AUTOS LTD,143908
Portsmouth City Council,PCC,Children's and Education Services,Other Education and Community Budget,Children's Services and Education,Transport-Related Expenditure,Car allowances,04/05/2020,6362937,1645.6,VENDOR,PDS AUTOS LTD,143908
Portsmouth City Council,PCC,Support Service / Transparency Costs Unallocated,AMS,Regeneration,Supplies and Services,Services,19/05/2020,6365769,2311.53,VENDOR,RE FORMAT LLP,131569
Portsmouth City Council,PCC,Other,Suspense and Capital Schemes,Portsmouth International Port,Supplies and Services,"Equipment, furniture and materials",28/05/2020,6367331,505,VENDOR,BUSINESS TECHNOLOGY PARTNERS LTD,106282
Portsmouth City Council,PCC,Highways and Transport Services,"Airports, Harbours and Toll Facilities",Portsmouth International Port,Supplies and Services,Communications and computing,28/05/2020,6367331,505,VENDOR,BUSINESS TECHNOLOGY PARTNERS LTD,106282
Portsmouth City Council,PCC,Children's and Education Services,Asylum seekers,Children's Services and Education,Third Party Payments,Other establishments,22/05/2020,6366595,2057.6,VENDOR,RYANCARE FOSTERING LTD,139524
Portsmouth City Council,PCC,Children's and Education Services,Asylum seekers,Children's Services and Education,Third Party Payments,Other establishments,22/05/2020,6366595,2057.6,VENDOR,RYANCARE FOSTERING LTD,139524
Portsmouth City Council,PCC,Adult Social Care,Social Care Activities,Adult Services,Third Party Payments,Other establishments,12/05/2020,6364348,65.33,VENDOR,BLUEBELL NURSING HOME,100112
Portsmouth City Council,PCC,Adult Social Care,Social Care Activities,Adult Services,Third Party Payments,Other establishments,12/05/2020,6364348,63.22,VENDOR,BLUEBELL NURSING HOME,100112
Portsmouth City Council,PCC,Adult Social Care,Social Care Activities,Adult Services,Third Party Payments,Other establishments,12/05/2020,6364348,65.33,VENDOR,BLUEBELL NURSING HOME,100112
Portsmouth City Council,PCC,Adult Social Care,Social Care Activities,Adult Services,Third Party Payments,Other establishments,12/05/2020,6364348,44.25,VENDOR,BLUEBELL NURSING HOME,100112
Portsmouth City Council,PCC,Adult Social Care,Social Care Activities,Adult Services,Third Party Payments,Other establishments,12/05/2020,6364348,63.22,VENDOR,BLUEBELL NURSING HOME,100112
Portsmouth City Council,PCC,Adult Social Care,Social Care Activities,Adult Services,Third Party Payments,Other establishments,12/05/2020,6364348,65.33,VENDOR,BLUEBELL NURSING HOME,100112
Portsmouth City Council,PCC,Adult Social Care,Social Care Activities,Adult Services,Third Party Payments,Other establishments,12/05/2020,6364348,65.33,VENDOR,BLUEBELL NURSING HOME,100112
Portsmouth City Council,PCC,Adult Social Care,Social Care Activities,Adult Services,Third Party Payments,Other establishments,12/05/2020,6364348,61.11,VENDOR,BLUEBELL NURSING HOME,100112
Portsmouth City Council,PCC,Adult Social Care,Social Care Activities,Adult Services,Third Party Payments,Other establishments,12/05/2020,6364348,65.33,VENDOR,BLUEBELL NURSING HOME,100112
Portsmouth City Council,PCC,Adult Social Care,Social Care Activities,Adult Services,Third Party Payments,Other establishments,12/05/2020,6364348,65.33,VENDOR,BLUEBELL NURSING HOME,100112
Portsmouth City Council,PCC,Adult Social Care,Social Care Activities,Adult Services,Third Party Payments,Other establishments,12/05/2020,6364348,63.22,VENDOR,BLUEBELL NURSING HOME,100112
Portsmouth City Council,PCC,Adult Social Care,Social Care Activities,Adult Services,Third Party Payments,Other establishments,12/05/2020,6364348,65.33,VENDOR,BLUEBELL NURSING HOME,100112
Portsmouth City Council,PCC,Adult Social Care,Social Care Activities,Adult Services,Third Party Payments,Other establishments,12/05/2020,6364348,65.33,VENDOR,BLUEBELL NURSING HOME,100112
Portsmouth City Council,PCC,Adult Social Care,Social Care Activities,Adult Services,Third Party Payments,Other establishments,12/05/2020,6364348,63.22,VENDOR,BLUEBELL NURSING HOME,100112
Portsmouth City Council,PCC,Adult Social Care,Social Care Activities,Adult Services,Third Party Payments,Other establishments,12/05/2020,6364348,65.33,VENDOR,BLUEBELL NURSING HOME,100112
Portsmouth City Council,PCC,Adult Social Care,Social Care Activities,Adult Services,Third Party Payments,Other establishments,12/05/2020,6364348,63.22,VENDOR,BLUEBELL NURSING HOME,100112
